Workbook

Sheet START
A1: PODDEKOMPOZYCJA RÓŻNIC
A2: dla województw
C4: WYBIERZ WOJEWÓDZTWO
C5: WYBIERZ ROK
A7: Podkarpackie
A8: 2007
C14: wydajność pracy | H14: pracujący wśród aktywnych zawodowo | N14: współczynnik aktywności zawodowej

Sheet odwolanie (hidden)
A1: województwo | B1: rok
A2: Łódzkie | B2: 2002
A3: Mazowieckie | B3: 2007
A4: Małopolskie | B4: 2012
A5: Śląskie
A6: Lubelskie
A7: Podkarpackie
A8: Podlaskie
A9: Świętokrzyskie
A10: Lubuskie
A11: Wielkopolskie
A12: Zachodniopomorskie
A13: Dolnośląskie
A14: Opolskie
A15: Kujawsko-pomorskie
A16: Pomorskie
A17: Warmińsko-mazurskie

Sheet 2012wyd
B1: PODDEKOMPOZYCJA RÓŻNIC W WYDAJNOŚCI PRACY
B2: 2012
C4: Sekcje | D4: Rolnictwo - A | E4: Przemysł pozostały - B, D, E | F4: Przetwórstwo przemysłowe - C | G4: Budownictwo - F | H4: Usługi - G, H, I, J | I4: Usługi - K, L | J4: Usługi - M, N, O, P, Q, R
B5: ŁÓDZKIE | C5: Różnice w rozwoju infrastruktury i technologii | D5: =D41 -> -0.4% | E5: 2.6% | F5: -3.8% | G5: -0.3% | H5: -2.7% | I5: 0.1% | J5: -1.5%
C6: Specjalizacja sektorowa | D6: =D61 -> 0.6% | E6: -0.7% | F6: 2.7% | G6: -1.6% | H6: -2.0% | I6: -1.1% | J6: -1.4%
B7: MAZOWIECKIE | C7: Różnice w rozwoju infrastruktury i technologii | D7: =D42 -> 1.0% | E7: 2.5% | F7: 3.7% | G7: 2.2% | H7: 12.1% | I7: 0.8% | J7: 5.3%
C8: Specjalizacja sektorowa | D8: =D62 -> -0.5% | E8: -3.0% | F8: -6.4% | G8: -0.7% | H8: 5.1% | I8: 5.9% | J8: 2.8%
B9: MAŁOPOLSKIE | C9: Różnice w rozwoju infrastruktury i technologii | D9: =D43 -> -2.4% | E9: -1.1% | F9: -1.1% | G9: -0.6% | H9: -3.4% | I9: 0.0% | J9: -0.1%
C10: Specjalizacja sektorowa | D10: =D63 -> 0.6% | E10: -1.4% | F10: -2.9% | G10: 1.4% | H10: -0.1% | I10: -1.7% | J10: -0.2%
B11: ŚLĄSKIE | C11: Różnice w rozwoju infrastruktury i technologii | D11: =D44 -> -0.1% | E11: -3.7% | F11: 0.4% | G11: -0.2% | H11: -2.0% | I11: -0.9% | J11: -1.3%
C12: Specjalizacja sektorowa | D12: =D64 -> -2.0% | E12: 11.6% | F12: 3.0% | G12: 0.7% | H12: 1.3% | I12: -0.2% | J12: -0.1%
B13: LUBELSKIE | C13: Różnice w rozwoju infrastruktury i technologii | D13: =D45 -> -2.6% | E13: -0.7% | F13: -1.7% | G13: -0.7% | H13: -1.8% | I13: 1.0% | J13: -2.0%
C14: Specjalizacja sektorowa | D14: =D65 -> 3.7% | E14: -1.6% | F14: -7.2% | G14: -1.8% | H14: -7.0% | I14: -2.7% | J14: -2.5%
B15: PODKARPACKIE | C15: Różnice w rozwoju infrastruktury i technologii | D15: =D46 -> -4.1% | E15: -0.9% | F15: -3.6% | G15: -1.0% | H15: -2.6% | I15: 1.2% | J15: -3.0%
C16: Specjalizacja sektorowa | D16: =D66 -> 2.3% | E16: -2.0% | F16: 0.9% | G16: -0.9% | H16: -6.4% | I16: -4.1% | J16: -2.9%
B17: PODLASKIE | C17: Różnice w rozwoju infrastruktury i technologii | D17: =D47 -> 0.2% | E17: -0.9% | F17: -2.2% | G17: -0.5% | H17: -1.8% | I17: 0.7% | J17: -1.7%
C18: Specjalizacja sektorowa | D18: =D67 -> 2.8% | E18: -2.7% | F18: -4.5% | G18: -1.4% | H18: -5.2% | I18: -2.7% | J18: -1.6%
B19: ŚWIĘTOKRZYSKIE | C19: Różnice w rozwoju infrastruktury i technologii | D19: =D48 -> -2.9% | E19: 0.9% | F19: -3.0% | G19: -0.1% | H19: -1.9% | I19: 1.2% | J19: -1.8%
C20: Specjalizacja sektorowa | D20: =D68 -> 3.0% | E20: -1.6% | F20: -2.4% | G20: -0.5% | H20: -6.4% | I20: -4.2% | J20: -3.5%
B21: LUBUSKIE | C21: Różnice w rozwoju infrastruktury i technologii | D21: =D49 -> 1.8% | E21: 1.5% | F21: -2.6% | G21: -0.6% | H21: -5.9% | I21: -0.1% | J21: -3.1%
C22: Specjalizacja sektorowa | D22: =D69 -> -1.1% | E22: -1.2% | F22: 6.3% | G22: -0.6% | H22: 1.0% | I22: -1.6% | J22: 0.8%
B23: WIELKOPOLSKIE | C23: Różnice w rozwoju infrastruktury i technologii | D23: =D50 -> 1.7% | E23: 0.0% | F23: -2.4% | G23: -0.9% | H23: -1.4% | I23: -0.1% | J23: -0.3%
C24: Specjalizacja sektorowa | D24: =D70 -> -0.2% | E24: -2.1% | F24: 5.4% | G24: 0.6% | H24: 0.8% | I24: -1.6% | J24: -2.8%
B25: ZACHODNIOPOMORSKIE | C25: Różnice w rozwoju infrastruktury i technologii | D25: =D51 -> 1.9% | E25: -0.5% | F25: -3.4% | G25: 1.1% | H25: -3.1% | I25: -0.3% | J25: 0.3%
C26: Specjalizacja sektorowa | D26: =D71 -> -1.2% | E26: -0.9% | F26: -0.9% | G26: 1.0% | H26: 3.8% | I26: -0.2% | J26: 3.1%
B27: DOLNOŚLĄSKIE | C27: Różnice w rozwoju infrastruktury i technologii | D27: =D52 -> 0.3% | E27: 0.5% | F27: 10.5% | G27: 0.4% | H27: -2.8% | I27: -0.5% | J27: 0.4%
C28: Specjalizacja sektorowa | D28: =D72 -> -1.5% | E28: 2.5% | F28: 2.7% | G28: 0.2% | H28: 0.8% | I28: 0.7% | J28: 2.1%
B29: OPOLSKIE | C29: Różnice w rozwoju infrastruktury i technologii | D29: =D53 -> 1.3% | E29: 0.6% | F29: -2.5% | G29: -1.6% | H29: -1.8% | I29: 1.1% | J29: -1.0%
C30: Specjalizacja sektorowa | D30: =D73 -> -0.2% | E30: -0.8% | F30: 4.7% | G30: 1.2% | H30: -3.8% | I30: -2.5% | J30: 0.7%
B31: KUJAWSKO-POMORSKIE | C31: Różnice w rozwoju infrastruktury i technologii | D31: =D54 -> 1.0% | E31: -0.6% | F31: -2.9% | G31: -0.7% | H31: -2.9% | I31: -1.7% | J31: -2.0%
C32: Specjalizacja sektorowa | D32: =D74 -> 0.0% | E32: -2.2% | F32: 3.8% | G32: 0.1% | H32: -1.6% | I32: -0.5% | J32: -0.6%
B33: POMORSKIE | C33: Różnice w rozwoju infrastruktury i technologii | D33: =D55 -> 1.0% | E33: 0.4% | F33: 2.3% | G33: -0.4% | H33: -1.4% | I33: -1.9% | J33: 0.0%
C34: Specjalizacja sektorowa | D34: =D75 -> -1.4% | E34: -2.4% | F34: 1.6% | G34: 1.7% | H34: 3.5% | I34: 2.5% | J34: 1.2%
B35: WARMIŃSKO-MAZURSKIE | C35: Różnice w rozwoju infrastruktury i technologii | D35: =D56 -> 2.9% | E35: -1.2% | F35: -4.8% | G35: -0.7% | H35: -3.6% | I35: 0.1% | J35: -1.9%
C36: Specjalizacja sektorowa | D36: =D76 -> 0.1% | E36: -1.8% | F36: 3.4% | G36: -0.1% | H36: -3.8% | I36: -1.7% | J36: 1.2%
C40: Roznice wynikajace w rozwoju infrastruktury i technologii | D40: rolnictwo,leśnictwo, łowiectwo i rybactwo (sekcja A) | E40: przemysł bez przetwórstwa przemsyłowego (sekcje B,D,E) | F40: przetwórstwo przemysłowe (sekcja C) | G40: budownictwo (sekcja F) | H40: handel; naprawa pojazd_w samochodowych; transport i gospodarka magazynowa; zakwaterowanie i gastronomia; informacja i komunikacja (sekcje G,H,I,J) | I40: działalność finansowa i ubezpieczeniowa; obsługa rynku nieruchomości (sekcje K,L) | J40: pozostałe usługi (sekcje M,N,O,P,Q,R,S,T) | K40: SUMA (*)
C41: ŁÓDZKIE | D41: =D80*(E99-E$115)/$D$115 -> -0.4% | E41: 2.6% | F41: -3.8% | G41: -0.3% | H41: -2.7% | I41: 0.1% | J41: -1.5% | K41: =SUM(D41:J41) -> -6.0%
C42: MAZOWIECKIE | D42: 1.0% | E42: 2.5% | F42: 3.7% | G42: 2.2% | H42: 12.1% | I42: 0.8% | J42: 5.3% | K42: 27.6%
C43: MAŁOPOLSKIE | D43: -2.4% | E43: -1.1% | F43: -1.1% | G43: -0.6% | H43: -3.4% | I43: 0.0% | J43: -0.1% | K43: -8.7%
C44: ŚLĄSKIE | D44: -0.1% | E44: -3.7% | F44: 0.4% | G44: -0.2% | H44: -2.0% | I44: -0.9% | J44: -1.3% | K44: -7.8%
C45: LUBELSKIE | D45: -2.6% | E45: -0.7% | F45: -1.7% | G45: -0.7% | H45: -1.8% | I45: 1.0% | J45: -2.0% | K45: -8.4%
C46: PODKARPACKIE | D46: -4.1% | E46: -0.9% | F46: -3.6% | G46: -1.0% | H46: -2.6% | I46: 1.2% | J46: -3.0% | K46: -14.0%
C47: PODLASKIE | D47: 0.2% | E47: -0.9% | F47: -2.2% | G47: -0.5% | H47: -1.8% | I47: 0.7% | J47: -1.7% | K47: -6.2%
C48: ŚWIĘTOKRZYSKIE | D48: -2.9% | E48: 0.9% | F48: -3.0% | G48: -0.1% | H48: -1.9% | I48: 1.2% | J48: -1.8% | K48: -7.7%
C49: LUBUSKIE | D49: 1.8% | E49: 1.5% | F49: -2.6% | G49: -0.6% | H49: -5.9% | I49: -0.1% | J49: -3.1% | K49: -9.0%
C50: WIELKOPOLSKIE | D50: 1.7% | E50: 0.0% | F50: -2.4% | G50: -0.9% | H50: -1.4% | I50: -0.1% | J50: -0.3% | K50: -3.3%
C51: ZACHODNIOPOMORSKIE | D51: =D90*(E109-E$115)/$D$115 -> 1.9% | E51: -0.5% | F51: -3.4% | G51: 1.1% | H51: -3.1% | I51: -0.3% | J51: 0.3% | K51: -4.0%
C52: DOLNOŚLĄSKIE | D52: 0.3% | E52: 0.5% | F52: 10.5% | G52: 0.4% | H52: -2.8% | I52: -0.5% | J52: 0.4% | K52: 8.7%
C53: OPOLSKIE | D53: 1.3% | E53: 0.6% | F53: -2.5% | G53: -1.6% | H53: -1.8% | I53: 1.1% | J53: -1.0% | K53: -3.8%
C54: KUJAWSKO-POMORSKIE | D54: 1.0% | E54: -0.6% | F54: -2.9% | G54: -0.7% | H54: -2.9% | I54: -1.7% | J54: -2.0% | K54: -9.8%
C55: POMORSKIE | D55: 1.0% | E55: 0.4% | F55: 2.3% | G55: -0.4% | H55: -1.4% | I55: -1.9% | J55: 0.0% | K55: 0.0%
C56: WARMIŃSKO-MAZURSKIE | D56: 2.9% | E56: -1.2% | F56: -4.8% | G56: -0.7% | H56: -3.6% | I56: 0.1% | J56: -1.9% | K56: -9.1%
D57: =COUNTIF(D41:D56,">0") -> 10 | E57: 8 | F57: 4 | G57: 3 | H57: 1 | I57: 9 | J57: 4
C60: Specjalizacja sektorowa | D60: rolnictwo,leśnictwo, łowiectwo i rybactwo (sekcja A) | E60: przemysł bez przetwórstwa przemsyłowego (sekcje B,D,E) | F60: przetwórstwo przemysłowe (sekcja C) | G60: budownictwo (sekcja F) | H60: handel; naprawa pojazd_w samochodowych; transport i gospodarka magazynowa; zakwaterowanie i gastronomia; informacja i komunikacja (sekcje G,H,I,J) | I60: działalność finansowa i ubezpieczeniowa; obsługa rynku nieruchomości (sekcje K,L) | J60: pozostałe usługi (sekcje M,N,O,P,Q,R,S,T) | K60: SUMA (*) | M60: (WDBi/Pi-WDB/P)/(WDB/P) | N60: Weryfikacja
C61: ŁÓDZKIE | D61: =E$115*(D80-D$96)/$D$115 -> 0.6% | E61: -0.7% | F61: 2.7% | G61: -1.6% | H61: -2.0% | I61: -1.1% | J61: -1.4% | K61: =SUM(D61:J61) -> -3.4% | M61: =(D99-$D$115)/$D$115 -> -9.35% | N61: =K41+K61 -> -9.35%
C62: MAZOWIECKIE | D62: -0.5% | E62: -3.0% | F62: -6.4% | G62: -0.7% | H62: 5.1% | I62: 5.9% | J62: 2.8% | K62: 3.2% | M62: 30.81% | N62: 30.81%
C63: MAŁOPOLSKIE | D63: 0.6% | E63: -1.4% | F63: -2.9% | G63: 1.4% | H63: -0.1% | I63: -1.7% | J63: -0.2% | K63: -4.3% | M63: -12.92% | N63: -12.92%
C64: ŚLĄSKIE | D64: -2.0% | E64: 11.6% | F64: 3.0% | G64: 0.7% | H64: 1.3% | I64: -0.2% | J64: -0.1% | K64: 14.3% | M64: 6.48% | N64: 6.48%
C65: LUBELSKIE | D65: 3.7% | E65: -1.6% | F65: -7.2% | G65: -1.8% | H65: -7.0% | I65: -2.7% | J65: -2.5% | K65: -19.1% | M65: -27.48% | N65: -27.48%
C66: PODKARPACKIE | D66: 2.3% | E66: -2.0% | F66: 0.9% | G66: -0.9% | H66: -6.4% | I66: -4.1% | J66: -2.9% | K66: -13.0% | M66: -27.00% | N66: -27.00%
C67: PODLASKIE | D67: 2.8% | E67: -2.7% | F67: -4.5% | G67: -1.4% | H67: -5.2% | I67: -2.7% | J67: -1.6% | K67: -15.4% | M67: -21.53% | N67: -21.53%
C68: ŚWIĘTOKRZYSKIE | D68: 3.0% | E68: -1.6% | F68: -2.4% | G68: -0.5% | H68: -6.4% | I68: -4.2% | J68: -3.5% | K68: -15.7% | M68: -23.39% | N68: -23.39%
C69: LUBUSKIE | D69: -1.1% | E69: -1.2% | F69: 6.3% | G69: -0.6% | H69: 1.0% | I69: -1.6% | J69: 0.8% | K69: 3.5% | M69: -5.43% | N69: -5.43%
C70: WIELKOPOLSKIE | D70: -0.2% | E70: -2.1% | F70: 5.4% | G70: 0.6% | H70: 0.8% | I70: -1.6% | J70: -2.8% | K70: 0.1% | M70: -3.23% | N70: -3.23%
C71: ZACHODNIOPOMORSKIE | D71: =E$115*(D90-D$96)/$D$115 -> -1.2% | E71: -0.9% | F71: -0.9% | G71: 1.0% | H71: 3.8% | I71: -0.2% | J71: 3.1% | K71: 4.6% | M71: 0.62% | N71: 0.62%
C72: DOLNOŚLĄSKIE | D72: -1.5% | E72: 2.5% | F72: 2.7% | G72: 0.2% | H72: 0.8% | I72: 0.7% | J72: 2.1% | K72: 7.6% | M72: 16.26% | N72: 16.26%
C73: OPOLSKIE | D73: -0.2% | E73: -0.8% | F73: 4.7% | G73: 1.2% | H73: -3.8% | I73: -2.5% | J73: 0.7% | K73: -0.7% | M73: -4.57% | N73: -4.57%
C74: KUJAWSKO-POMORSKIE | D74: 0.0% | E74: -2.2% | F74: 3.8% | G74: 0.1% | H74: -1.6% | I74: -0.5% | J74: -0.6% | K74: -1.0% | M74: -10.74% | N74: -10.74%
C75: POMORSKIE | D75: -1.4% | E75: -2.4% | F75: 1.6% | G75: 1.7% | H75: 3.5% | I75: 2.5% | J75: 1.2% | K75: 6.7% | M75: 6.71% | N75: 6.71%
C76: WARMIŃSKO-MAZURSKIE | D76: 0.1% | E76: -1.8% | F76: 3.4% | G76: -0.1% | H76: -3.8% | I76: -1.7% | J76: 1.2% | K76: -2.7% | M76: -11.82% | N76: -11.82%
D77: =COUNTIF(D61:D76,">0") -> 8 | E77: 2 | F77: 10 | G77: 8 | H77: 7 | I77: 3 | J77: 7
C79: Ppij/PPi | D79: rolnictwo,leśnictwo, łowiectwo i rybactwo (sekcja A) | E79: przemysł bez przetwórstwa przemsyłowego (sekcje B,D,E) | F79: przetwórstwo przemysłowe (sekcja C) | G79: budownictwo (sekcja F) | H79: handel; naprawa pojazd_w samochodowych; transport i gospodarka magazynowa; zakwaterowanie i gastronomia; informacja i komunikacja (sekcje G,H,I,J) | I79: działalność finansowa i ubezpieczeniowa; obsługa rynku nieruchomości (sekcje K,L) | J79: pozostałe usługi (sekcje M,N,O,P,Q,R,S,T)
C80: ŁÓDZKIE | D80: =E137/$D137 -> 0.186210308 | E80: =F137/$D137 -> 0.02982955132 | F80: 0.1967065907 | G80: 0.05275082973 | H80: 0.2329470087 | I80: 0.03620978304 | J80: =K137/$D137 -> 0.2653459285
C81: MAZOWIECKIE | D81: =E138/$D138 -> 0.1298454233 | E81: 0.01781072398 | F81: 0.1171330163 | G81: 0.05956248223 | H81: 0.2931150754 | I81: 0.0691703436 | J81: =K138/$D138 -> 0.3133629352
C82: MAŁOPOLSKIE | D82: 0.1876133949 | E82: 0.02606866902 | F82: 0.1474561345 | G82: 0.07744099323 | H82: 0.2493996286 | I82: 0.03352593552 | J82: =K139/$D139 -> 0.2784952443
C83: ŚLĄSKIE | D83: 0.05321862941 | E83: 0.09403733197 | F83: 0.1993772423 | G83: 0.07191159961 | H83: 0.2605407936 | I83: 0.04071423089 | J83: =K140/$D140 -> 0.2802001722
C84: LUBELSKIE | D84: 0.342518442 | E84: 0.0248251708 | F84: 0.1102745218 | G84: 0.05107394591 | H84: 0.1908052609 | I84: 0.02876543355 | J84: =K141/$D141 -> 0.2517372251
C85: PODKARPACKIE | D85: 0.2718593039 | E85: 0.02288501714 | F85: 0.181077601 | G85: 0.05782666706 | H85: 0.1963252975 | I85: 0.02230681639 | J85: =K142/$D142 -> 0.247719297
C86: PODLASKIE | D86: 0.2960907555 | E86: 0.0191316803 | F86: 0.1336978435 | G86: 0.05376897141 | H86: 0.2058994719 | I86: 0.02882506256 | J86: =K143/$D143 -> 0.2625862148
C87: ŚWIĘTOKRZYSKIE | D87: 0.3035775132 | E87: 0.02492594079 | F87: 0.1516629218 | G87: 0.06147718744 | H87: 0.1961294941 | I87: 0.02169656528 | J87: =K144/$D144 -> 0.2405303774
C88: LUBUSKIE | D88: 0.1025699425 | E88: 0.02716505318 | F88: 0.2275518386 | G88: 0.06045918893 | H88: 0.2582991933 | I88: 0.03387248954 | J88: =K145/$D145 -> 0.290082294
C89: WIELKOPOLSKIE | D89: 0.1477754174 | E89: 0.02248985533 | F89: 0.2197844351 | G89: 0.07091569903 | H89: 0.256259817 | I89: 0.0338480234 | J89: =K146/$D146 -> 0.2489267527
C90: ZACHODNIOPOMORSKIE | D90: 0.09321253036 | E90: 0.0284901333 | F90: 0.165093309 | G90: 0.07435033243 | H90: 0.2819287403 | I90: 0.04039731586 | J90: =K147/$D147 -> 0.3165276387
C91: DOLNOŚLĄSKIE | D91: 0.082367606 | E91: 0.04638572385 | F91: 0.1967867016 | G91: 0.06773118784 | H91: 0.2565686488 | I91: 0.04479243932 | J91: =K148/$D148 -> 0.3053676925
C92: OPOLSKIE | D92: 0.1442674061 | E92: 0.02919532663 | F92: 0.213592421 | G92: 0.07600726674 | H92: 0.2178929683 | I92: 0.02991212512 | J92: =K149/$D149 -> 0.2891324861
C93: KUJAWSKO-POMORSKIE | D93: 0.155565483 | E93: 0.02191899023 | F93: 0.206267721 | G93: 0.06653722378 | H93: 0.2366245047 | I93: 0.03897911966 | J93: =K150/$D150 -> 0.2741069576
C94: POMORSKIE | D94: 0.08493125925 | E94: 0.02078430575 | F94: 0.1866980257 | G94: 0.08024076619 | H94: 0.279083832 | I94: 0.05334357817 | J94: =K151/$D151 -> 0.2949182329
C95: WARMIŃSKO-MAZURSKIE | D95: 0.162278345 | E95: 0.023705722 | F95: 0.2027466451 | G95: 0.06481401987 | H95: 0.2181342607 | I95: 0.03349459044 | J95: =K152/$D152 -> 0.2948264169
C96: POLSKA | D96: 0.1554885929 | E96: 0.03333118843 | F96: 0.1729045555 | G96: 0.06578318604 | H96: 0.2499069619 | I96: 0.04154615832 | J96: =K153/$D153 -> 0.2810393569
C98: WDBij/PPij | D98: Ogółem | E98: rolnictwo,leśnictwo, łowiectwo i rybactwo (sekcja A) | F98: przemysł bez przetwórstwa przemsyłowego (sekcje B,D,E) | G98: przetwórstwo przemysłowe (sekcja C) | H98: budownictwo (sekcja F) | I98: handel; naprawa pojazd_w samochodowych; transport i gospodarka magazynowa; zakwaterowanie i gastronomia; informacja i komunikacja (sekcje G,H,I,J) | J98: działalność finansowa i ubezpieczeniowa; obsługa rynku nieruchomości (sekcje K,L) | K98: pozostałe usługi (sekcje M,N,O,P,Q,R,S,T)
C99: ŁÓDZKIE | D99: =D118/D137*1000000 -> 93,385.62 | E99: =E118/E137*1000000 -> 18,373.00 | F99: 286,339.33 | G99: 97,969.00 | H99: 117,583.00 | I99: 110,920.00 | J99: 223,339.00 | K99: 83,000.00
C100: MAZOWIECKIE | D100: =D119/D138*1000000 -> 134,768.51 | E100: 28,919.00 | F100: 340,456.81 | G100: 150,528.00 | H100: 160,238.00 | I100: 165,314.00 | J100: 231,146.00 | K100: 106,360.00
C101: MAŁOPOLSKIE | D101: 89,708.08 | E101: 7,665.00 | F101: 152,038.62 | G101: 110,742.00 | H101: 114,522.00 | I101: 108,690.00 | J101: 220,273.00 | K101: 88,390.00
C102: ŚLĄSKIE | D102: 109,698.30 | E102: 18,369.00 | F102: 155,362.30 | G102: 120,101.00 | H102: 119,979.00 | I102: 114,630.00 | J102: 197,928.00 | K102: 84,273.00
C103: LUBELSKIE | D103: 74,709.04 | E103: 12,868.00 | F103: 168,777.11 | G103: 102,493.00 | H103: 108,194.00 | I103: 112,913.00 | J103: 256,197.00 | K103: 80,915.00
C104: PODKARPACKIE | D104: 75,205.00 | E104: 5,224.00 | F104: 154,995.95 | G104: 97,546.00 | H104: 105,312.00 | I104: 109,235.00 | J104: 275,136.00 | K104: 76,302.00
C105: PODLASKIE | D105: 80,843.15 | E105: 21,286.00 | F105: 150,102.50 | G105: 101,302.00 | H105: 113,781.00 | I105: 113,654.00 | J105: 244,719.00 | K105: 82,075.00
C106: ŚWIĘTOKRZYSKIE | D106: 78,930.22 | E106: 10,720.00 | F106: 233,869.49 | G106: 97,570.00 | H106: 120,496.00 | I106: 112,913.00 | J106: 275,739.00 | K106: 81,124.00
C107: LUBUSKIE | D107: 97,426.30 | E107: 38,499.00 | F107: 253,962.71 | G107: 106,140.00 | H107: 112,375.00 | I107: 99,198.00 | J107: 217,688.00 | K107: 78,032.00
C108: WIELKOPOLSKIE | D108: 99,696.55 | E108: 32,192.00 | F108: 196,402.97 | G108: 107,055.00 | H108: 110,483.00 | I108: 117,168.00 | J108: 217,287.00 | K108: 87,488.00
C109: ZACHODNIOPOMORSKIE | D109: 103,665.68 | E109: 41,891.00 | F109: 178,895.88 | G109: 96,890.00 | H109: 137,541.00 | I109: 111,538.00 | J109: 211,403.00 | K109: 89,901.00
C110: DOLNOŚLĄSKIE | D110: 119,773.63 | E110: 23,969.00 | F110: 206,783.89 | G110: 173,091.00 | H110: 128,528.00 | I110: 111,496.00 | J110: 207,877.00 | K110: 90,129.00
C111: OPOLSKIE | D111: 98,318.22 | E111: 29,840.00 | F111: 217,579.08 | G111: 106,120.00 | H111: 101,277.00 | I111: 114,149.00 | J111: 257,563.00 | K111: 85,498.00
C112: KUJAWSKO-POMORSKIE | D112: 91,954.46 | E112: 27,409.00 | F112: 167,061.22 | G112: 103,724.00 | H112: 111,529.00 | I112: 110,221.00 | J112: 173,854.00 | K112: 81,557.00
C113: POMORSKIE | D113: 109,930.80 | E113: 32,884.00 | F113: 218,191.54 | G113: 131,073.00 | H113: 117,399.00 | I113: 117,374.00 | J113: 182,244.00 | K113: 88,950.00
C114: WARMIŃSKO-MAZURSKIE | D114: 90,841.15 | E114: 38,828.00 | F114: 144,341.52 | G114: 93,894.00 | H114: 111,347.00 | I114: 105,896.00 | J114: 222,755.00 | K114: 82,436.00
C115: POLSKA | D115: 103,022.34 | E115: 20,623.00 | F115: 196,043.82 | G115: 118,125.00 | H115: 122,949.00 | I115: 122,684.00 | J115: 219,453.00 | K115: 88,927.00
C117: WDBi | D117: Ogółem | E117: rolnictwo,leśnictwo, łowiectwo i rybactwo (sekcja A) | F117: przemysł bez przetwórstwa przemsyłowego (sekcje B,D,E) | G117: przetwórstwo przemysłowe (sekcja C) | H117: budownictwo (sekcja F) | I117: handel; naprawa pojazd_w samochodowych; transport i gospodarka magazynowa; zakwaterowanie i gastronomia; informacja i komunikacja (sekcje G,H,I,J) | J117: działalność finansowa i ubezpieczeniowa; obsługa rynku nieruchomości (sekcje K,L) | K117: pozostałe usługi (sekcje M,N,O,P,Q,R,S,T)
C118: ŁÓDZKIE | D118: 87565 | E118: 3208 | F118: 8009 | G118: 18070 | H118: 5816 | I118: 24228 | J118: 7583 | K118: 20651
C119: MAZOWIECKIE | D119: 313108 | E119: 8724 | F119: 14088 | G119: 40964 | H119: 22174 | I119: 112578 | J119: 37146 | K119: 77434
C120: MAŁOPOLSKIE | D120: 109729 | E120: 1759 | F120: 4848 | G120: 19974 | H120: 10848 | I120: 33157 | J120: 9033 | K120: 30110
C121: ŚLĄSKIE | D121: 181676 | E121: 1619 | F121: 24196 | G121: 39657 | H121: 14289 | I121: 49462 | J121: 13346 | K121: 39107
C122: LUBELSKIE | D122: 56648 | E122: 3342 | F122: 3177 | G122: 8570 | H122: 4190 | I122: 16336 | J122: 5588 | K122: 15445
C123: PODKARPACKIE | D123: 55337 | E123: 1045 | F123: 2610 | G123: 12997 | H123: 4481 | I123: 15780 | J123: 4516 | K123: 13908
C124: PODLASKIE | D124: 31952 | E124: 2491 | F124: 1135 | G124: 5353 | H124: 2418 | I124: 9249 | J124: 2788 | K124: 8518
C125: ŚWIĘTOKRZYSKIE | D125: 35556 | E125: 1466 | F125: 2626 | G125: 6666 | H125: 3337 | I125: 9976 | J125: 2695 | K125: 8790
C126: LUBUSKIE | D126: 31605 | E126: 1281 | F126: 2238 | G126: 7835 | H126: 2204 | I126: 8312 | J126: 2392 | K126: 7343
C127: WIELKOPOLSKIE | D127: 136598 | E127: 6518 | F127: 6052 | G127: 32238 | H127: 10735 | I127: 41139 | J127: 10077 | K127: 29839
C128: ZACHODNIOPOMORSKIE | D128: 53920 | E128: 2031 | F128: 2651 | G128: 8320 | H128: 5319 | I128: 16356 | J128: 4442 | K128: 14801
C129: DOLNOŚLĄSKIE | D129: 122548 | E129: 2020 | F129: 9814 | G129: 34851 | H129: 8907 | I129: 29269 | J129: 9527 | K129: 28160
C130: OPOLSKIE | D130: 30398 | E130: 1331 | F130: 1964 | G130: 7008 | H130: 2380 | I130: 7690 | J130: 2382 | K130: 7643
C131: KUJAWSKO-POMORSKIE | D131: 63382 | E131: 2939 | F131: 2524 | G131: 14747 | H131: 5115 | I131: 17977 | J131: 4671 | K131: 15409
C132: POMORSKIE | D132: 83170 | E132: 2113 | F132: 3431 | G132: 18514 | H132: 7127 | I132: 24783 | J132: 7355 | K132: 19847
C133: WARMIŃSKO-MAZURSKIE | D133: 38681 | E133: 2683 | F133: 1457 | G133: 8106 | H133: 3073 | I133: 9836 | J133: 3177 | K133: 10349
C134: POLSKA | D134: 1431872 | E134: 44568 | F134: 90819 | G134: 283871 | H134: 112412 | I134: 426127 | J134: 126720 | K134: 347355
C136: PPi | D136: Ogółem | E136: rolnictwo,leśnictwo, łowiectwo i rybactwo (sekcja A) | F136: przemysł bez przetwórstwa przemsyłowego (sekcje B,D,E) | G136: przetwórstwo przemysłowe (sekcja C) | H136: budownictwo (sekcja F) | I136: handel; naprawa pojazd_w samochodowych; transport i gospodarka magazynowa; zakwaterowanie i gastronomia; informacja i komunikacja (sekcje G,H,I,J) | J136: działalność finansowa i ubezpieczeniowa; obsługa rynku nieruchomości (sekcje K,L) | K136: pozostałe usługi (sekcje M,N,O,P,Q,R,S,T)
C137: ŁÓDZKIE | D137: 937671.1763 | E137: 174604.0385 | F137: 27970.31048 | G137: 184446.1003 | H137: 49462.93257 | I137: 218427.6956 | J137: 33952.86985 | K137: 248807.2289
C138: MAZOWIECKIE | D138: 2323302.389 | E138: 301670.1822 | F138: 41379.69757 | G138: 272135.4167 | H138: 138381.6573 | I138: 680994.9551 | J138: 160703.6245 | K138: 728036.856
C139: MAŁOPOLSKIE | D139: 1223178.498 | E139: 229484.6706 | F139: 31886.63542 | G139: 180365.1731 | H139: 94724.1578 | I139: 305060.2631 | J139: 41008.20346 | K139: 340649.3947
C140: ŚLĄSKIE | D140: 1656142.297 | E140: 88137.62317 | F140: 155739.203 | G140: 330197.0841 | H140: 119095.8418 | I140: 431492.6285 | J140: 67428.55988 | K140: 464051.3569
C141: LUBELSKIE | D141: 758248.2794 | E141: 259714.0193 | F141: 18823.64305 | G141: 83615.46642 | H141: 38726.73161 | I141: 144677.7608 | J141: 21811.34049 | K141: 190879.3178
C142: PODKARPACKIE | D142: 735815.4823 | E142: 200038.2848 | F142: 16839.14993 | G142: 133239.7023 | H142: 42549.75691 | I142: 144459.1935 | J142: 16413.70086 | K142: 182275.694
C143: PODLASKIE | D143: 395234.4767 | E143: 117025.2748 | F143: 7561.499652 | G143: 52841.9972 | H143: 21251.35128 | I143: 81378.57005 | J143: 11392.65852 | K143: 103783.1252
C144: ŚWIĘTOKRZYSKIE | D144: 450473.8507 | E144: 136753.7313 | F144: 11228.48453 | G144: 68320.18038 | H144: 27693.86536 | I144: 88351.20845 | J144: 9773.735308 | K144: 108352.6453
C145: LUBUSKIE | D145: 324399.0462 | E145: 33273.59152 | F145: 8812.317341 | G145: 73817.5994 | H145: 19612.90323 | I145: 83792.01194 | J145: 10988.2033 | K145: 94102.41952
C146: WIELKOPOLSKIE | D146: 1370137.656 | E146: 202472.664 | F146: 30814.19765 | G146: 301134.9306 | H146: 97164.26962 | I146: 351111.2249 | J146: 46376.45142 | K146: 341063.9173
C147: ZACHODNIOPOMORSKIE | D147: 520133.5863 | E147: 48482.9677 | F147: 14818.67521 | G147: 85870.57488 | H147: 38672.10505 | I147: 146640.6068 | J147: 21012.00078 | K147: 164636.6559
C148: DOLNOŚLĄSKIE | D148: 1023163.433 | E148: 84275.52255 | F148: 47460.17647 | G148: 201344.9573 | H148: 69300.07469 | I148: 262511.6596 | J148: 45829.986 | K148: 312441.0567
C149: OPOLSKIE | D149: 309179.7299 | E149: 44604.55764 | F149: 9026.6032 | G149: 66038.44704 | H149: 23499.9062 | I149: 67368.08908 | J149: 9248.222765 | K149: 89393.90395
C150: KUJAWSKO-POMORSKIE | D150: 689275.9945 | E150: 107227.553 | F150: 15108.23379 | G150: 142175.3885 | H150: 45862.5111 | I150: 163099.5908 | J150: 26867.37147 | K150: 188935.3458
C151: POMORSKIE | D151: 756566.8257 | E151: 64256.17321 | F151: 15724.71622 | G151: 141249.5327 | H151: 60707.50177 | I151: 211145.5689 | J151: 40357.98161 | K151: 223125.3513
C152: WARMIŃSKO-MAZURSKIE | D152: 425809.2406 | E152: 69099.61883 | F152: 10094.11548 | G152: 86331.39498 | H152: 27598.40858 | I152: 92883.58389 | J152: 14262.30612 | K152: 125539.8127
C153: POLSKA | D153: 13898654.86 | E153: 2161082.287 | F153: 463258.684 | G153: 2403140.741 | H153: 914297.7983 | I153: 3473370.611 | J153: 577435.7152 | K153: 3906069.023

Sheet 2007wyd (hidden)
B1: PODDEKOMPOZYCJA RÓŻNIC W WYDAJNOŚCI PRACY
B2: 2007
C4: Sekcje | D4: Rolnictwo - A | E4: Przemysł pozostały - B, D, E | F4: Przetwórstwo przemysłowe - C | G4: Budownictwo - F | H4: Usługi - G, H, I, J | I4: Usługi - K, L | J4: Usługi - M, N, O, P, Q, R
B5: ŁÓDZKIE | C5: Roznice w rozwoju infrastruktury i technologii | D5: =D41 -> 0.4% | E5: 0.6% | F5: -3.7% | G5: 0.1% | H5: -3.1% | I5: -0.4% | J5: -1.7%
C6: Specjalizacja sektorowa | D6: =D61 -> 0.7% | E6: -0.8% | F6: 3.0% | G6: -1.1% | H6: -2.6% | I6: -1.6% | J6: -1.7%
B7: MAZOWIECKIE | C7: Roznice w rozwoju infrastruktury i technologii | D7: =D42 -> 1.0% | E7: 2.0% | F7: 1.1% | G7: 0.5% | H7: 11.7% | I7: 1.3% | J7: 6.1%
C8: Specjalizacja sektorowa | D8: =D62 -> -0.5% | E8: -2.2% | F8: -5.2% | G8: 0.1% | H8: 4.8% | I8: 5.9% | J8: 2.2%
B9: MAŁOPOLSKIE | C9: Roznice w rozwoju infrastruktury i technologii | D9: =D43 -> -2.1% | E9: -0.3% | F9: 0.4% | G9: -0.3% | H9: -2.8% | I9: 1.1% | J9: -0.4%
C10: Specjalizacja sektorowa | D10: =D63 -> 0.9% | E10: -1.0% | F10: -2.8% | G10: 0.7% | H10: -1.1% | I10: -2.2% | J10: 0.1%
B11: ŚLĄSKIE | C11: Roznice w rozwoju infrastruktury i technologii | D11: =D44 -> -0.2% | E11: -2.6% | F11: 2.9% | G11: -0.6% | H11: -1.4% | I11: -1.3% | J11: -1.3%
C12: Specjalizacja sektorowa | D12: =D64 -> -2.2% | E12: 9.1% | F12: 1.9% | G12: 1.1% | H12: 2.1% | I12: -0.1% | J12: 0.3%
B13: LUBELSKIE | C13: Roznice w rozwoju infrastruktury i technologii | D13: =D45 -> -3.1% | E13: -0.5% | F13: -1.9% | G13: -0.2% | H13: -2.1% | I13: 1.4% | J13: -2.3%
C14: Specjalizacja sektorowa | D14: =D65 -> 3.9% | E14: -1.6% | F14: -7.3% | G14: -2.1% | H14: -7.4% | I14: -3.0% | J14: -2.6%
B15: PODKARPACKIE | C15: Roznice w rozwoju infrastruktury i technologii | D15: =D46 -> -3.7% | E15: -0.6% | F15: -4.3% | G15: -0.9% | H15: -2.4% | I15: 1.3% | J15: -2.7%
C16: Specjalizacja sektorowa | D16: =D66 -> 2.3% | E16: -1.7% | F16: 1.0% | G16: -1.6% | H16: -6.4% | I16: -4.2% | J16: -2.9%
B17: PODLASKIE | C17: Roznice w rozwoju infrastruktury i technologii | D17: =D47 -> -0.1% | E17: -0.2% | F17: -1.1% | G17: 0.4% | H17: -2.0% | I17: 0.4% | J17: -1.5%
C18: Specjalizacja sektorowa | D18: =D67 -> 3.1% | E18: -2.4% | F18: -5.0% | G18: -2.0% | H18: -5.8% | I18: -2.7% | J18: -1.9%
B19: ŚWIĘTOKRZYSKIE | C19: Roznice w rozwoju infrastruktury i technologii | D19: =D48 -> -2.5% | E19: -0.3% | F19: -0.0% | G19: 0.6% | H19: -2.6% | I19: 1.3% | J19: -1.7%
C20: Specjalizacja sektorowa | D20: =D68 -> 3.0% | E20: -1.3% | F20: -3.0% | G20: -1.1% | H20: -5.4% | I20: -4.5% | J20: -4.1%
B21: LUBUSKIE | C21: Roznice w rozwoju infrastruktury i technologii | D21: =D49 -> 1.7% | E21: 1.7% | F21: -1.5% | G21: 0.5% | H21: -4.5% | I21: -0.5% | J21: -2.4%
C22: Specjalizacja sektorowa | D22: =D69 -> -1.4% | E22: -1.1% | F22: 5.5% | G22: -0.6% | H22: 2.7% | I22: -0.8% | J22: 1.1%
B23: WIELKOPOLSKIE | C23: Roznice w rozwoju infrastruktury i technologii | D23: =D50 -> 1.6% | E23: -0.0% | F23: -2.1% | G23: -0.3% | H23: -1.3% | I23: -0.3% | J23: -0.8%
C24: Specjalizacja sektorowa | D24: =D70 -> -0.2% | E24: -1.7% | F24: 5.4% | G24: 0.3% | H24: 0.1% | I24: -1.5% | J24: -2.6%
B25: ZACHODNIOPOMORSKIE | C25: Roznice w rozwoju infrastruktury i technologii | D25: =D51 -> 1.6% | E25: -0.8% | F25: -2.8% | G25: 0.7% | H25: -3.7% | I25: -1.4% | J25: 0.6%
C26: Specjalizacja sektorowa | D26: =D71 -> -1.5% | E26: -0.4% | F26: -1.0% | G26: 1.1% | H26: 5.3% | I26: 0.7% | J26: 3.1%
B27: DOLNOŚLĄSKIE | C27: Roznice w rozwoju infrastruktury i technologii | D27: =D52 -> 0.5% | E27: 1.1% | F27: 8.6% | G27: 0.3% | H27: -2.7% | I27: -0.9% | J27: -0.0%
C28: Specjalizacja sektorowa | D28: =D72 -> -1.7% | E28: 1.8% | F28: 2.3% | G28: 0.6% | H28: 1.2% | I28: 1.1% | J28: 2.9%
B29: OPOLSKIE | C29: Roznice w rozwoju infrastruktury i technologii | D29: =D53 -> 0.8% | E29: 2.1% | F29: 0.7% | G29: -0.2% | H29: -2.3% | I29: 0.6% | J29: -1.6%
C30: Specjalizacja sektorowa | D30: =D73 -> -0.1% | E30: -0.7% | F30: 2.3% | G30: 0.7% | H30: -2.5% | I30: -1.7% | J30: 0.8%
B31: KUJAWSKO-POMORSKIE | C31: Roznice w rozwoju infrastruktury i technologii | D31: =D54 -> 0.9% | E31: -0.9% | F31: -2.0% | G31: -0.0% | H31: -2.0% | I31: -1.9% | J31: -2.0%
C32: Specjalizacja sektorowa | D32: =D74 -> 0.0% | E32: -1.7% | F32: 3.2% | G32: -0.1% | H32: -1.0% | I32: -0.3% | J32: -0.7%
B33: POMORSKIE | C33: Roznice w rozwoju infrastruktury i technologii | D33: =D55 -> 0.7% | E33: -0.2% | F33: 0.3% | G33: -0.2% | H33: -0.5% | I33: -1.3% | J33: 0.1%
C34: Specjalizacja sektorowa | D34: =D75 -> -1.6% | E34: -1.5% | F34: 3.1% | G34: 1.2% | H34: 3.3% | I34: 2.2% | J34: 1.4%
B35: WARMIŃSKO-MAZURSKIE | C35: Roznice w rozwoju infrastruktury i technologii | D35: =D56 -> 2.2% | E35: -1.2% | F35: -4.0% | G35: 0.1% | H35: -4.4% | I35: -0.6% | J35: -2.2%
C36: Specjalizacja sektorowa | D36: =D76 -> -0.1% | E36: -1.1% | F36: 2.9% | G36: -0.4% | H36: -2.4% | I36: -0.9% | J36: 1.3%
C40: Roznice wynikajace w rozwoju infrastruktury i technologii | D40: rolnictwo,leśnictwo, łowiectwo i rybactwo (sekcja A) | E40: przemysł bez przetwórstwa przemsyłowego (sekcje B,D,E) | F40: przetwórstwo przemysłowe (sekcja C) | G40: budownictwo (sekcja F) | H40: handel; naprawa pojazd_w samochodowych; transport i gospodarka magazynowa; zakwaterowanie i gastronomia; informacja i komunikacja (sekcje G,H,I,J) | I40: działalność finansowa i ubezpieczeniowa; obsługa rynku nieruchomości (sekcje K,L) | J40: pozostałe usługi (sekcje M,N,O,P,Q,R,S,T) | K40: SUMA (*)
C41: ŁÓDZKIE | D41: =D79*(E98-E$114)/$D$114 -> 0.4% | E41: 0.6% | F41: -3.7% | G41: 0.1% | H41: -3.1% | I41: -0.4% | J41: -1.7% | K41: =SUM(D41:J41) -> -7.9%
C42: MAZOWIECKIE | D42: 1.0% | E42: 2.0% | F42: 1.1% | G42: 0.5% | H42: 11.7% | I42: 1.3% | J42: 6.1% | K42: 23.8%
C43: MAŁOPOLSKIE | D43: -2.1% | E43: -0.3% | F43: 0.4% | G43: -0.3% | H43: -2.8% | I43: 1.1% | J43: -0.4% | K43: -4.4%
C44: ŚLĄSKIE | D44: -0.2% | E44: -2.6% | F44: 2.9% | G44: -0.6% | H44: -1.4% | I44: -1.3% | J44: -1.3% | K44: -4.3%
C45: LUBELSKIE | D45: -3.1% | E45: -0.5% | F45: -1.9% | G45: -0.2% | H45: -2.1% | I45: 1.4% | J45: -2.3% | K45: -8.7%
C46: PODKARPACKIE | D46: -3.7% | E46: -0.6% | F46: -4.3% | G46: -0.9% | H46: -2.4% | I46: 1.3% | J46: -2.7% | K46: -13.3%
C47: PODLASKIE | D47: -0.1% | E47: -0.2% | F47: -1.1% | G47: 0.4% | H47: -2.0% | I47: 0.4% | J47: -1.5% | K47: -4.2%
C48: ŚWIĘTOKRZYSKIE | D48: -2.5% | E48: -0.3% | F48: -0.0% | G48: 0.6% | H48: -2.6% | I48: 1.3% | J48: -1.7% | K48: -5.2%
C49: LUBUSKIE | D49: 1.7% | E49: 1.7% | F49: -1.5% | G49: 0.5% | H49: -4.5% | I49: -0.5% | J49: -2.4% | K49: -4.9%
C50: WIELKOPOLSKIE | D50: 1.6% | E50: -0.0% | F50: -2.1% | G50: -0.3% | H50: -1.3% | I50: -0.3% | J50: -0.8% | K50: -3.1%
C51: ZACHODNIOPOMORSKIE | D51: =D89*(E108-E$114)/$D$114 -> 1.6% | E51: -0.8% | F51: -2.8% | G51: 0.7% | H51: -3.7% | I51: -1.4% | J51: 0.6% | K51: -5.9%
C52: DOLNOŚLĄSKIE | D52: 0.5% | E52: 1.1% | F52: 8.6% | G52: 0.3% | H52: -2.7% | I52: -0.9% | J52: -0.0% | K52: 6.9%
C53: OPOLSKIE | D53: 0.8% | E53: 2.1% | F53: 0.7% | G53: -0.2% | H53: -2.3% | I53: 0.6% | J53: -1.6% | K53: -0.0%
C54: KUJAWSKO-POMORSKIE | D54: 0.9% | E54: -0.9% | F54: -2.0% | G54: -0.0% | H54: -2.0% | I54: -1.9% | J54: -2.0% | K54: -7.9%
C55: POMORSKIE | D55: 0.7% | E55: -0.2% | F55: 0.3% | G55: -0.2% | H55: -0.5% | I55: -1.3% | J55: 0.1% | K55: -1.1%
C56: WARMIŃSKO-MAZURSKIE | D56: 2.2% | E56: -1.2% | F56: -4.0% | G56: 0.1% | H56: -4.4% | I56: -0.6% | J56: -2.2% | K56: -10.2%
D57: =COUNTIF(D41:D56,">0") -> 10 | E57: 5 | F57: 6 | G57: 8 | H57: 1 | I57: 7 | J57: 3
C60: Specjalizacja sektorowa | D60: rolnictwo,leśnictwo, łowiectwo i rybactwo (sekcja A) | E60: przemysł bez przetwórstwa przemsyłowego (sekcje B,D,E) | F60: przetwórstwo przemysłowe (sekcja C) | G60: budownictwo (sekcja F) | H60: handel; naprawa pojazd_w samochodowych; transport i gospodarka magazynowa; zakwaterowanie i gastronomia; informacja i komunikacja (sekcje G,H,I,J) | I60: działalność finansowa i ubezpieczeniowa; obsługa rynku nieruchomości (sekcje K,L) | J60: pozostałe usługi (sekcje M,N,O,P,Q,R,S,T) | K60: SUMA (**) | M60: (WDBi/Pi-WDB/P)/(WDB/P) | N60: Weryfikacja
C61: ŁÓDZKIE | D61: =E$114*(D79-D$95)/$D$114 -> 0.7% | E61: -0.8% | F61: 3.0% | G61: -1.1% | H61: -2.6% | I61: -1.6% | J61: -1.7% | K61: =SUM(D61:J61) -> -4.2% | M61: =(D98-$D$114)/$D$114 -> -12.1% | N61: =K41+K61 -> -12.1%
C62: MAZOWIECKIE | D62: -0.5% | E62: -2.2% | F62: -5.2% | G62: 0.1% | H62: 4.8% | I62: 5.9% | J62: 2.2% | K62: 5.2% | M62: 28.9% | N62: 28.9%
C63: MAŁOPOLSKIE | D63: 0.9% | E63: -1.0% | F63: -2.8% | G63: 0.7% | H63: -1.1% | I63: -2.2% | J63: 0.1% | K63: -5.4% | M63: -9.8% | N63: -9.8%
C64: ŚLĄSKIE | D64: -2.2% | E64: 9.1% | F64: 1.9% | G64: 1.1% | H64: 2.1% | I64: -0.1% | J64: 0.3% | K64: 12.3% | M64: 8.0% | N64: 8.0%
C65: LUBELSKIE | D65: 3.9% | E65: -1.6% | F65: -7.3% | G65: -2.1% | H65: -7.4% | I65: -3.0% | J65: -2.6% | K65: -20.2% | M65: -28.8% | N65: -28.8%
C66: PODKARPACKIE | D66: 2.3% | E66: -1.7% | F66: 1.0% | G66: -1.6% | H66: -6.4% | I66: -4.2% | J66: -2.9% | K66: -13.5% | M66: -26.8% | N66: -26.8%
C67: PODLASKIE | D67: 3.1% | E67: -2.4% | F67: -5.0% | G67: -2.0% | H67: -5.8% | I67: -2.7% | J67: -1.9% | K67: -16.7% | M67: -20.9% | N67: -20.9%
C68: ŚWIĘTOKRZYSKIE | D68: 3.0% | E68: -1.3% | F68: -3.0% | G68: -1.1% | H68: -5.4% | I68: -4.5% | J68: -4.1% | K68: -16.5% | M68: -21.7% | N68: -21.7%
C69: LUBUSKIE | D69: -1.4% | E69: -1.1% | F69: 5.5% | G69: -0.6% | H69: 2.7% | I69: -0.8% | J69: 1.1% | K69: 5.4% | M69: 0.6% | N69: 0.6%
C70: WIELKOPOLSKIE | D70: -0.2% | E70: -1.7% | F70: 5.4% | G70: 0.3% | H70: 0.1% | I70: -1.5% | J70: -2.6% | K70: -0.1% | M70: -3.2% | N70: -3.2%
C71: ZACHODNIOPOMORSKIE | D71: =E$114*(D89-D$95)/$D$114 -> -1.5% | E71: -0.4% | F71: -1.0% | G71: 1.1% | H71: 5.3% | I71: 0.7% | J71: 3.1% | K71: 7.3% | M71: 1.5% | N71: 1.5%
C72: DOLNOŚLĄSKIE | D72: -1.7% | E72: 1.8% | F72: 2.3% | G72: 0.6% | H72: 1.2% | I72: 1.1% | J72: 2.9% | K72: 8.2% | M72: 15.0% | N72: 15.0%
C73: OPOLSKIE | D73: -0.1% | E73: -0.7% | F73: 2.3% | G73: 0.7% | H73: -2.5% | I73: -1.7% | J73: 0.8% | K73: -1.2% | M73: -1.2% | N73: -1.2%
C74: KUJAWSKO-POMORSKIE | D74: 0.0% | E74: -1.7% | F74: 3.2% | G74: -0.1% | H74: -1.0% | I74: -0.3% | J74: -0.7% | K74: -0.6% | M74: -8.5% | N74: -8.5%
C75: POMORSKIE | D75: -1.6% | E75: -1.5% | F75: 3.1% | G75: 1.2% | H75: 3.3% | I75: 2.2% | J75: 1.4% | K75: 8.2% | M75: 7.1% | N75: 7.1%
C76: WARMIŃSKO-MAZURSKIE | D76: -0.1% | E76: -1.1% | F76: 2.9% | G76: -0.4% | H76: -2.4% | I76: -0.9% | J76: 1.3% | K76: -0.7% | M76: -10.9% | N76: -10.9%
D77: =COUNTIF(D61:D76,">0") -> 7 | E77: 2 | F77: 10 | G77: 8 | H77: 7 | I77: 4 | J77: 9
C78: Ppij/PPi | D78: rolnictwo,leśnictwo, łowiectwo i rybactwo (sekcja A) | E78: przemysł bez przetwórstwa przemsyłowego (sekcje B,D,E) | F78: przetwórstwo przemysłowe (sekcja C) | G78: budownictwo (sekcja F) | H78: handel; naprawa pojazd_w samochodowych; transport i gospodarka magazynowa; zakwaterowanie i gastronomia; informacja i komunikacja (sekcje G,H,I,J) | I78: działalność finansowa i ubezpieczeniowa; obsługa rynku nieruchomości (sekcje K,L) | J78: pozostałe usługi (sekcje M,N,O,P,Q,R,S,T)
C79: ŁÓDZKIE | D79: =E136/$D136 -> 0.2033944519 | E79: =F136/$D136 -> 0.02868355948 | F79: 0.2168653498 | G79: 0.04912477454 | H79: 0.2277876946 | I79: 0.03215346205 | J79: 0.2419907076
C80: MAZOWIECKIE | D80: =E137/$D137 -> 0.1468572311 | E80: 0.01941841638 | F80: 0.1407281205 | G80: 0.05952328437 | H80: 0.2888393773 | I80: 0.05987526728 | J80: 0.2847583031
C81: MAŁOPOLSKIE | D81: =E138/$D138 -> 0.2137316014 | E81: 0.02767122018 | F81: 0.1632375459 | G81: 0.06406828112 | H81: 0.2398563746 | I81: 0.0299862322 | J81: 0.2614487446
C82: ŚLĄSKIE | D82: =E139/$D139 -> 0.05982180183 | E82: 0.09684898273 | F82: 0.2072327283 | G82: 0.06749620087 | H82: 0.2665955605 | I82: 0.03770889665 | J82: 0.2642958291
C83: LUBELSKIE | D83: =E140/$D140 -> 0.367573969 | E83: 0.02315253643 | F83: 0.1213364687 | G83: 0.0413058823 | H83: 0.1875682388 | I83: 0.02679558149 | J83: 0.2322673232
C84: PODKARPACKIE | D84: =E141/$D141 -> 0.2856983957 | E84: 0.02246139737 | F84: 0.1985803993 | G84: 0.04562077247 | H84: 0.195609846 | I84: 0.02254182342 | J84: 0.2294873657
C85: PODLASKIE | D85: =E142/$D142 -> 0.3286703111 | E85: 0.01764718163 | F85: 0.1428483351 | G85: 0.0423984931 | H85: 0.200649722 | I85: 0.02791794557 | J85: 0.2398680116
C86: ŚWIĘTOKRZYSKIE | D86: =E143/$D143 -> 0.3225109351 | E86: 0.02527212 | F86: 0.1611427121 | G86: 0.04940838676 | H86: 0.2039375007 | I86: 0.02127710465 | J86: 0.2164512407
C87: LUBUSKIE | D87: =E144/$D144 -> 0.09938720747 | E87: 0.02684093892 | F87: 0.2405859159 | G87: 0.05337362231 | H87: 0.2719930942 | I87: 0.03505314468 | J87: 0.2727660766
C88: WIELKOPOLSKIE | D88: =E145/$D145 -> 0.1610602579 | E88: 0.0230387424 | F88: 0.2398314384 | G88: 0.06100210469 | H88: 0.2502161822 | I88: 0.0324372078 | J88: 0.2324140666
C89: ZACHODNIOPOMORSKIE | D89: =E146/$D146 -> 0.09205295884 | E89: 0.03156629533 | F89: 0.1797621088 | G89: 0.0678457373 | H89: 0.293597892 | I89: 0.04074520016 | J89: 0.2944298075
C90: DOLNOŚLĄSKIE | D90: =E147/$D147 -> 0.08658537122 | E90: 0.04670016563 | F90: 0.2104267082 | G90: 0.06331582953 | H90: 0.2593491525 | I90: 0.04203186009 | J90: 0.2915909127
C91: OPOLSKIE | D91: =E148/$D148 -> 0.1662834728 | E91: 0.02970884818 | F91: 0.2104424442 | G91: 0.06401177811 | H91: 0.2283266965 | I91: 0.03171442381 | J91: 0.2695123364
C92: KUJAWSKO-POMORSKIE | D92: =E149/$D149 -> 0.1701726802 | E92: 0.02283852027 | F92: 0.2193602756 | G92: 0.05768457699 | H92: 0.2404248074 | I92: 0.03688096717 | J92: 0.2526381724
C93: POMORSKIE | D93: =E150/$D150 -> 0.09022420551 | E93: 0.02416209077 | F93: 0.218079003 | G93: 0.06863641217 | H93: 0.2765778655 | I93: 0.04631291954 | J93: 0.2760075035
C94: WARMIŃSKO-MAZURSKIE | D94: =E151/$D151 -> 0.163102257 | E94: 0.02699883776 | F94: 0.2163453597 | G94: 0.05489909494 | H94: 0.2287214861 | I94: 0.03481356626 | J94: 0.2751193983
C95: POLSKA | D95: =E152/$D152 -> 0.1700852176 | E95: 0.03440672801 | F95: 0.1892864715 | G95: 0.05847184408 | H95: 0.2491511545 | I95: 0.03805138857 | J95: 0.2605471958
C97: WDBij/PPij | D97: Ogółem | E97: rolnictwo,leśnictwo, łowiectwo i rybactwo (sekcja A) | F97: przemysł bez przetwórstwa przemsyłowego (sekcje B,D,E) | G97: przetwórstwo przemysłowe (sekcja C) | H97: budownictwo (sekcja F) | I97: handel; naprawa pojazd_w samochodowych; transport i gospodarka magazynowa; zakwaterowanie i gastronomia; informacja i komunikacja (sekcje G,H,I,J) | J97: działalność finansowa i ubezpieczeniowa; obsługa rynku nieruchomości (sekcje K,L) | K97: pozostałe usługi (sekcje M,N,O,P,Q,R,S,T)
C98: ŁÓDZKIE | D98: =D117/D136*1000000 -> 66817.23582 | E98: =E117/E136*1000000 -> 16449 | F98: 125141.4226 | G98: 68590 | H98: 94975 | I98: 80672 | J98: 195840 | K98: 64749
C99: MAZOWIECKIE | D99: =D118/D137*1000000 -> 97989.00609 | E99: 20316 | F99: 189382.3583 | G99: 87794 | H99: 99688 | I99: 121802 | J99: 222272 | K99: 86211
C100: MAŁOPOLSKIE | D100: 68536.47273 | E100: 7596 | F100: 101596.8715 | G100: 83659 | H100: 89325 | I100: 82370 | J100: 233259 | K100: 68736
C101: ŚLĄSKIE | D101: 82051.63551 | E101: 12917 | F101: 90468.33251 | G101: 92393 | H101: 86453 | I101: 87046 | J101: 180408 | K101: 66312
C102: LUBELSKIE | D102: 54082.27493 | E102: 8720 | F102: 92973.85635 | G102: 69621 | H102: 89927 | I102: 82699 | J102: 244772 | K102: 62393
C103: PODKARPACKIE | D103: 55639.72521 | E103: 5266 | F103: 90479.9129 | G103: 65228 | H103: 78194 | I103: 81679 | J103: 250252 | K103: 60850
C104: PODLASKIE | D104: 60112.15401 | E104: 14760 | F104: 99783.00373 | G104: 75673 | H104: 99300 | I104: 83707 | J104: 215487 | K104: 65321
C105: ŚWIĘTOKRZYSKIE | D105: 59543.39354 | E105: 9163 | F105: 101997.093 | G105: 81668 | H105: 102290 | I105: 81475 | J105: 251015 | K105: 63939
C106: LUBUSKIE | D106: 76438.59985 | E106: 27700 | F106: 159666.7574 | G106: 77130 | H106: 100178 | I106: 78552 | J106: 195278 | K106: 63373
C107: WIELKOPOLSKIE | D107: 73580.60588 | E107: 22792 | F107: 110498.798 | G107: 75071 | H107: 89066 | I107: 87147 | J107: 199126 | K107: 67387
C108: ZACHODNIOPOMORSKIE | D108: 77124.47452 | E108: 28657 | F108: 90632.7834 | G108: 69705 | H108: 100296 | I108: 81624 | J108: 179527 | K108: 71362
C109: DOLNOŚLĄSKIE | D109: 87439.28215 | E109: 19147 | F109: 128445.4064 | G109: 112693 | H109: 96407 | I109: 83326 | J109: 189818 | K109: 69880
C110: OPOLSKIE | D110: 75086.06999 | E110: 18890 | F110: 164656.8495 | G110: 84121 | H110: 90045 | I110: 83331 | J110: 219509 | K110: 65297
C111: KUJAWSKO-POMORSKIE | D111: 69521.76053 | E111: 18927 | F111: 81726.82176 | G111: 74664 | H111: 92446 | I111: 84789 | J111: 167388 | K111: 63983
C112: POMORSKIE | D112: 81376.19796 | E112: 20917 | F112: 104142.1856 | G112: 82587 | H112: 90570 | I112: 89800 | J112: 184219 | K112: 70206
C113: WARMIŃSKO-MAZURSKIE | D113: 67734.90233 | E113: 25181 | F113: 76891.29366 | G113: 67770 | H113: 93525 | I113: 76494 | J113: 192733 | K113: 63791
C114: POLSKA | D114: 76006.50893 | E114: 15065 | F114: 110521.8706 | G114: 81714 | H114: 92758 | I114: 91112 | J114: 205704 | K114: 69939
C116: WDBi | D116: Ogółem | E116: rolnictwo,leśnictwo, łowiectwo i rybactwo (sekcja A) | F116: przemysł bez przetwórstwa przemsyłowego (sekcje B,D,E) | G116: przetwórstwo przemysłowe (sekcja C) | H116: budownictwo (sekcja F) | I116: handel; naprawa pojazd_w samochodowych; transport i gospodarka magazynowa; zakwaterowanie i gastronomia; informacja i komunikacja (sekcje G,H,I,J) | J116: działalność finansowa i ubezpieczeniowa; obsługa rynku nieruchomości (sekcje K,L) | K116: pozostałe usługi (sekcje M,N,O,P,Q,R,S,T)
C117: ŁÓDZKIE | D117: 64388 | E117: 3224 | F117: 3459 | G117: 14334 | H117: 4496 | I117: 17708 | J117: 6068 | K117: 15099
C118: MAZOWIECKIE | D118: 217454 | E118: 6621 | F118: 8161 | G118: 27418 | H118: 13168 | I118: 78073 | J118: 29534 | K118: 54479
C119: MAŁOPOLSKIE | D119: 79280 | E119: 1878 | F119: 3252 | G119: 15797 | H119: 6620 | I119: 22854 | J119: 8091 | K119: 20788
C120: ŚLĄSKIE | D120: 133794 | E120: 1260 | F120: 14287 | G120: 31221 | H120: 9515 | I120: 37840 | J120: 11093 | K120: 28578
C121: LUBELSKIE | D121: 41204 | E121: 2442 | F121: 1640 | G121: 6436 | H121: 2830 | I121: 11818 | J121: 4997 | K121: 11041
C122: PODKARPACKIE | D122: 40163 | E122: 1086 | F122: 1467 | G122: 9350 | H122: 2575 | I122: 11533 | J122: 4072 | K122: 10080
C123: PODLASKIE | D123: 24101 | E123: 1945 | F123: 706 | G123: 4334 | H123: 1688 | I123: 6734 | J123: 2412 | K123: 6282
C124: ŚWIĘTOKRZYSKIE | D124: 27604 | E124: 1370 | F124: 1195 | G124: 6101 | H124: 2343 | I124: 7703 | J124: 2476 | K124: 6416
C125: LUBUSKIE | D125: 24489 | E125: 882 | F125: 1373 | G125: 5945 | H125: 1713 | I125: 6845 | J125: 2193 | K125: 5538
C126: WIELKOPOLSKIE | D126: 97115 | E126: 4845 | F126: 3360 | G126: 23763 | H126: 7171 | I126: 28780 | J126: 8525 | K126: 20671
C127: ZACHODNIOPOMORSKIE | D127: 40814 | E127: 1396 | F127: 1514 | G127: 6631 | H127: 3601 | I127: 12682 | J127: 3871 | K127: 11119
C128: DOLNOŚLĄSKIE | D128: 85232 | E128: 1616 | F128: 5847 | G128: 23115 | H128: 5950 | I128: 21065 | J128: 7777 | K128: 19862
C129: OPOLSKIE | D129: 23761 | E129: 994 | F129: 1548 | G129: 5602 | H129: 1824 | I129: 6021 | J129: 2203 | K129: 5569
C130: KUJAWSKO-POMORSKIE | D130: 48458 | E130: 2245 | F130: 1301 | G130: 11416 | H130: 3717 | I130: 14209 | J130: 4303 | K130: 11267
C131: POMORSKIE | D131: 59117 | E131: 1371 | F131: 1828 | G131: 13084 | H131: 4516 | I131: 18043 | J131: 6198 | K131: 14077
C132: WARMIŃSKO-MAZURSKIE | D132: 28680 | E132: 1739 | F132: 879 | G132: 6208 | H132: 2174 | I132: 7408 | J132: 2841 | K132: 7431
C133: POLSKA | D133: 1035654 | E133: 34914 | F133: 51815 | G133: 210756 | H133: 73903 | I133: 309316 | J133: 106654 | K133: 248296
C135: PPi | D135: Ogółem | E135: rolnictwo,leśnictwo, łowiectwo i rybactwo (sekcja A) | F135: przemysł bez przetwórstwa przemsyłowego (sekcje B,D,E) | G135: przetwórstwo przemysłowe (sekcja C) | H135: budownictwo (sekcja F) | I135: handel; naprawa pojazd_w samochodowych; transport i gospodarka magazynowa; zakwaterowanie i gastronomia; informacja i komunikacja (sekcje G,H,I,J) | J135: działalność finansowa i ubezpieczeniowa; obsługa rynku nieruchomości (sekcje K,L) | K135: pozostałe usługi (sekcje M,N,O,P,Q,R,S,T)
C136: ŁÓDZKIE | D136: 963643.5751 | E136: 195999.7568 | F136: 27640.7278 | G136: 208980.901 | H136: 47338.77336 | I136: 219506.1484 | J136: 30984.47712 | K136: 233192.7906
C137: MAZOWIECKIE | D137: 2219167.32 | E137: 325900.7679 | F137: 43092.71504 | G137: 312299.246 | H137: 132092.1274 | I137: 640982.9067 | J137: 132873.2364 | K137: 631926.3203
C138: MAŁOPOLSKIE | D138: 1156756.349 | E138: 247235.387 | F138: 32008.85964 | G138: 188826.0677 | H138: 74111.39099 | I138: 277455.3842 | J138: 34686.7645 | K138: 302432.4953
C139: ŚLĄSKIE | D139: 1630607.351 | E139: 97545.86978 | F139: 157922.6631 | G139: 337915.21 | H139: 110059.8013 | I139: 434712.6807 | J139: 61488.40406 | K139: 430962.7217
C140: LUBELSKIE | D140: 761876.235 | E140: 280045.8716 | F140: 17639.36728 | G140: 92443.37197 | H140: 31469.97009 | I140: 142903.7836 | J140: 20414.91674 | K140: 176958.9537
C141: PODKARPACKIE | D141: 721840.373 | E141: 206228.6365 | F141: 16213.54346 | G141: 143343.3495 | H141: 32930.91542 | I141: 141199.0842 | J141: 16271.59823 | K141: 165653.2457
C142: PODLASKIE | D142: 400933.8943 | E142: 131775.0678 | F142: 7075.353253 | G142: 57272.73929 | H142: 16998.99295 | I142: 80447.27442 | J142: 11193.25064 | K142: 96171.21599
C143: ŚWIĘTOKRZYSKIE | D143: 463594.6721 | E143: 149514.3512 | F143: 11716.02018 | G143: 74704.90278 | H143: 22905.46485 | I143: 94544.33875 | J143: 9863.952353 | K143: 100345.6419
C144: LUBUSKIE | D144: 320374.7851 | E144: 31841.15523 | F144: 8599.160038 | G144: 77077.66109 | H144: 17099.56278 | I144: 87139.7291 | J144: 11230.14369 | K144: 87387.37317
C145: WIELKOPOLSKIE | D145: 1319845.071 | E145: 212574.5876 | F145: 30407.57059 | G145: 316540.3418 | H145: 80513.3272 | I145: 330246.5948 | J145: 42812.08883 | K145: 306750.5602
C146: ZACHODNIOPOMORSKIE | D146: 529196.4743 | E146: 48714.10127 | F146: 16704.77219 | G146: 95129.47421 | H146: 35903.72497 | I146: 155370.9693 | J146: 21562.21627 | K146: 155811.2161
C147: DOLNOŚLĄSKIE | D147: 974756.4013 | E147: 84399.64485 | F147: 45521.28539 | G147: 205114.7809 | H147: 61717.51014 | I147: 252802.2466 | J147: 40970.82468 | K147: 284230.1088
C148: OPOLSKIE | D148: 316450.1752 | E148: 52620.43409 | F148: 9401.370212 | G148: 66594.54833 | H148: 20256.5384 | I148: 72254.02311 | J148: 10036.03497 | K148: 85287.22606
C149: KUJAWSKO-POMORSKIE | D149: 697019.1726 | E149: 118613.6208 | F149: 15918.8865 | G149: 152898.3178 | H149: 40207.25613 | I149: 167580.7003 | J149: 25706.74122 | K149: 176093.6499
C150: POMORSKIE | D150: 726465.4959 | E150: 65544.77219 | F150: 17552.92525 | G150: 158426.8711 | H150: 49861.9852 | I150: 200924.2762 | J150: 33644.73806 | K150: 200509.9279
C151: WARMIŃSKO-MAZURSKIE | D151: 423415.3887 | E151: 69060.00556 | F151: 11431.72339 | G151: 91603.95455 | H151: 23245.12163 | I151: 96844.19693 | J151: 14740.59969 | K151: 116489.787
C152: POLSKA | D152: 13625859.34 | E152: 2317557.252 | F152: 468821.2363 | G152: 2579190.836 | H152: 796729.1231 | I152: 3394898.586 | J152: 518482.8686 | K152: 3550179.442

Sheet 2002wyd
B1: PODDEKOMPOZYCJA RÓŻNIC W WYDAJNOŚCI PRACY
B2: 2002
C4: Sekcje | D4: Rolnictwo - A | E4: Przemysł pozostały - B, D, E | F4: Przetwórstwo przemysłowe - C | G4: Budownictwo - F | H4: Usługi - G, H, I, J | I4: Usługi - K, L | J4: Usługi - M, N, O, P, Q, R
B5: ŁÓDZKIE | C5: Roznice w rozwoju infrastruktury i technologii | D5: =D41 -> -0.2% | E5: =E41 -> -0.0% | F5: -3.2% | G5: -0.1% | H5: -2.2% | I5: 0.0% | J5: -0.8%
C6: Specjalizacja sektorowa | D6: =D60 -> 0.6% | E6: =E60 -> -0.5% | F6: 3.1% | G6: -1.1% | H6: -3.2% | I6: -1.9% | J6: -2.4%
B7: MAZOWIECKIE | C7: Roznice w rozwoju infrastruktury i technologii | D7: =D42 -> 0.6% | E7: =E42 -> 2.1% | F7: 2.2% | G7: -0.3% | H7: 11.5% | I7: -1.5% | J7: 4.6%
C8: Specjalizacja sektorowa | D8: =D61 -> -0.4% | E8: =E61 -> -2.6% | F8: -3.9% | G8: 0.4% | H8: 4.4% | I8: 6.6% | J8: 2.4%
B9: MAŁOPOLSKIE | C9: Roznice w rozwoju infrastruktury i technologii | D9: =D43 -> -2.3% | E9: =E43 -> -0.4% | F9: -1.0% | G9: 0.2% | H9: -2.6% | I9: 1.2% | J9: 0.3%
C10: Specjalizacja sektorowa | D10: =D62 -> 0.8% | E10: =E62 -> -1.1% | F10: -1.8% | G10: 0.6% | H10: -1.8% | I10: -2.7% | J10: -0.3%
B11: ŚLĄSKIE | C11: Roznice w rozwoju infrastruktury i technologii | D11: =D44 -> -0.1% | E11: =E44 -> -1.5% | F11: 1.2% | G11: -0.6% | H11: -1.3% | I11: 0.1% | J11: -2.2%
C12: Specjalizacja sektorowa | D12: =D63 -> -2.0% | E12: =E63 -> 10.6% | F12: 0.9% | G12: 1.3% | H12: 2.5% | I12: -0.6% | J12: 0.3%
B13: LUBELSKIE | C13: Roznice w rozwoju infrastruktury i technologii | D13: =D45 -> -3.2% | E13: =E45 -> -0.6% | F13: -1.4% | G13: 0.1% | H13: -1.4% | I13: 1.2% | J13: -1.4%
C14: Specjalizacja sektorowa | D14: =D64 -> 3.4% | E14: =E64 -> -2.2% | F14: -5.8% | G14: -2.0% | H14: -7.6% | I14: -2.5% | J14: -3.7%
B15: PODKARPACKIE | C15: Roznice w rozwoju infrastruktury i technologii | D15: =D46 -> -3.7% | E15: =E46 -> -0.4% | F15: -1.8% | G15: -0.6% | H15: -2.4% | I15: 1.7% | J15: -1.9%
C16: Specjalizacja sektorowa | D16: =D65 -> 2.0% | E16: =E65 -> -2.5% | F16: 1.0% | G16: -1.7% | H16: -6.7% | I16: -3.8% | J16: -3.3%
B17: PODLASKIE | C17: Roznice w rozwoju infrastruktury i technologii | D17: =D47 -> -1.4% | E17: =E47 -> -0.3% | F17: -0.2% | G17: 0.7% | H17: -2.4% | I17: 0.5% | J17: -1.0%
C18: Specjalizacja sektorowa | D18: =D66 -> 2.6% | E18: =E66 -> -3.0% | F18: -4.4% | G18: -1.9% | H18: -5.4% | I18: -2.1% | J18: -2.2%
B19: ŚWIĘTOKRZYSKIE | C19: Roznice w rozwoju infrastruktury i technologii | D19: =D48 -> -2.3% | E19: =E48 -> -0.2% | F19: -1.2% | G19: 1.6% | H19: -2.2% | I19: 1.8% | J19: -2.2%
C20: Specjalizacja sektorowa | D20: =D67 -> 2.6% | E20: =E67 -> -1.8% | F20: -2.8% | G20: -1.2% | H20: -6.2% | I20: -4.4% | J20: -3.8%
B21: LUBUSKIE | C21: Roznice w rozwoju infrastruktury i technologii | D21: =D49 -> 2.0% | E21: =E49 -> 1.4% | F21: -2.4% | G21: 1.1% | H21: -4.2% | I21: -0.3% | J21: -1.2%
C22: Specjalizacja sektorowa | D22: =D68 -> -1.2% | E22: =E68 -> -2.1% | F22: 4.2% | G22: -0.9% | H22: 3.4% | I22: 0.1% | J22: 2.2%
B23: WIELKOPOLSKIE | C23: Roznice w rozwoju infrastruktury i technologii | D23: =D50 -> 2.0% | E23: =E50 -> -0.2% | F23: -0.3% | G23: -0.1% | H23: -1.9% | I23: -0.1% | J23: -0.3%
C24: Specjalizacja sektorowa | D24: =D69 -> -0.1% | E24: =E69 -> -1.9% | F24: 4.3% | G24: -0.1% | H24: -0.0% | I24: -1.4% | J24: -2.4%
B25: ZACHODNIOPOMORSKIE | C25: Roznice w rozwoju infrastruktury i technologii | D25: =D51 -> 2.3% | E25: =E51 -> 0.0% | F25: -1.9% | G25: 0.6% | H25: -2.7% | I25: -1.5% | J25: 1.5%
C26: Specjalizacja sektorowa | D26: =D70 -> -1.4% | E26: =E70 -> -0.9% | F26: -0.4% | G26: 1.2% | H26: 6.6% | I26: 0.9% | J26: 2.9%
B27: DOLNOŚLĄSKIE | C27: Roznice w rozwoju infrastruktury i technologii | D27: =D52 -> 1.1% | E27: =E52 -> -0.4% | F27: 2.7% | G27: 0.5% | H27: -2.1% | I27: -0.5% | J27: -0.0%
C28: Specjalizacja sektorowa | D28: =D71 -> -1.5% | E28: =E71 -> 2.5% | F28: 0.9% | G28: 0.6% | H28: 1.7% | I28: 0.8% | J28: 3.6%
B29: OPOLSKIE | C29: Roznice w rozwoju infrastruktury i technologii | D29: =D53 -> 1.1% | E29: =E53 -> 1.2% | F29: -0.6% | G29: -0.4% | H29: -2.7% | I29: 1.6% | J29: -2.6%
C30: Specjalizacja sektorowa | D30: =D72 -> -0.1% | E30: =E72 -> -1.0% | F30: 2.2% | G30: 0.6% | H30: -3.0% | I30: -2.1% | J30: 1.5%
B31: KUJAWSKO-POMORSKIE | C31: Roznice w rozwoju infrastruktury i technologii | D31: =D54 -> 1.6% | E31: =E54 -> -0.8% | F31: -0.0% | G31: -0.1% | H31: -2.8% | I31: -0.8% | J31: -0.9%
C32: Specjalizacja sektorowa | D32: =D73 -> 0.0% | E32: =E73 -> -2.1% | F32: 3.1% | G32: -0.1% | H32: -0.6% | I32: -0.8% | J32: -1.0%
B33: POMORSKIE | C33: Roznice w rozwoju infrastruktury i technologii | D33: =D55 -> 0.5% | E33: =E55 -> -0.0% | F33: 1.5% | G33: 0.1% | H33: -1.7% | I33: -0.4% | J33: 0.3%
C34: Specjalizacja sektorowa | D34: =D74 -> -1.4% | E34: =E74 -> -1.8% | F34: 2.7% | G34: 1.0% | H34: 4.2% | I34: 1.5% | J34: 2.0%
B35: WARMIŃSKO-MAZURSKIE | C35: Roznice w rozwoju infrastruktury i technologii | D35: =D56 -> 2.7% | E35: =E56 -> -0.8% | F35: -2.2% | G35: 0.2% | H35: -4.3% | I35: 0.5% | J35: -2.3%
C36: Specjalizacja sektorowa | D36: =D75 -> -0.1% | E36: =E75 -> -1.8% | F36: 1.7% | G36: -0.7% | H36: -1.5% | I36: -0.7% | J36: 1.7%
C40: Roznice wynikajace w rozwoju infrastruktury i technologii | D40: rolnictwo,leśnictwo, łowiectwo i rybactwo (sekcja A) | E40: przemysł bez przetwórstwa przemsyłowego (sekcje B,D,E) | F40: przetwórstwo przemysłowe (sekcja C) | G40: budownictwo (sekcja F) | H40: handel; naprawa pojazd_w samochodowych; transport i gospodarka magazynowa; zakwaterowanie i gastronomia; informacja i komunikacja (sekcje G,H,I,J) | I40: działalność finansowa i ubezpieczeniowa; obsługa rynku nieruchomości (sekcje K,L) | J40: pozostałe usługi (sekcje M,N,O,P,Q,R,S,T) | K40: SUMA (*)
C41: ŁÓDZKIE | D41: =D79*(E98-E$114)/$D$114 -> -0.2% | E41: -0.0% | F41: -3.2% | G41: -0.1% | H41: -2.2% | I41: 0.0% | J41: -0.8% | K41: =SUM(D41:J41) -> -6.5%
C42: MAZOWIECKIE | D42: 0.6% | E42: 2.1% | F42: 2.2% | G42: -0.3% | H42: 11.5% | I42: -1.5% | J42: 4.6% | K42: 19.2%
C43: MAŁOPOLSKIE | D43: -2.3% | E43: -0.4% | F43: -1.0% | G43: 0.2% | H43: -2.6% | I43: 1.2% | J43: 0.3% | K43: -4.6%
C44: ŚLĄSKIE | D44: -0.1% | E44: -1.5% | F44: 1.2% | G44: -0.6% | H44: -1.3% | I44: 0.1% | J44: -2.2% | K44: -4.4%
C45: LUBELSKIE | D45: -3.2% | E45: -0.6% | F45: -1.4% | G45: 0.1% | H45: -1.4% | I45: 1.2% | J45: -1.4% | K45: -6.6%
C46: PODKARPACKIE | D46: -3.7% | E46: -0.4% | F46: -1.8% | G46: -0.6% | H46: -2.4% | I46: 1.7% | J46: -1.9% | K46: -9.0%
C47: PODLASKIE | D47: -1.4% | E47: -0.3% | F47: -0.2% | G47: 0.7% | H47: -2.4% | I47: 0.5% | J47: -1.0% | K47: -4.1%
C48: ŚWIĘTOKRZYSKIE | D48: -2.3% | E48: -0.2% | F48: -1.2% | G48: 1.6% | H48: -2.2% | I48: 1.8% | J48: -2.2% | K48: -4.7%
C49: LUBUSKIE | D49: 2.0% | E49: 1.4% | F49: -2.4% | G49: 1.1% | H49: -4.2% | I49: -0.3% | J49: -1.2% | K49: -3.7%
C50: WIELKOPOLSKIE | D50: 2.0% | E50: -0.2% | F50: -0.3% | G50: -0.1% | H50: -1.9% | I50: -0.1% | J50: -0.3% | K50: -0.8%
C51: ZACHODNIOPOMORSKIE | D51: =D89*(E108-E$114)/$D$114 -> 2.3% | E51: 0.0% | F51: -1.9% | G51: 0.6% | H51: -2.7% | I51: -1.5% | J51: 1.5% | K51: -1.6%
C52: DOLNOŚLĄSKIE | D52: 1.1% | E52: -0.4% | F52: 2.7% | G52: 0.5% | H52: -2.1% | I52: -0.5% | J52: -0.0% | K52: 1.3%
C53: OPOLSKIE | D53: 1.1% | E53: 1.2% | F53: -0.6% | G53: -0.4% | H53: -2.7% | I53: 1.6% | J53: -2.6% | K53: -2.4%
C54: KUJAWSKO-POMORSKIE | D54: 1.6% | E54: -0.8% | F54: -0.0% | G54: -0.1% | H54: -2.8% | I54: -0.8% | J54: -0.9% | K54: -3.8%
C55: POMORSKIE | D55: 0.5% | E55: -0.0% | F55: 1.5% | G55: 0.1% | H55: -1.7% | I55: -0.4% | J55: 0.3% | K55: 0.3%
C56: WARMIŃSKO-MAZURSKIE | D56: 2.7% | E56: -0.8% | F56: -2.2% | G56: 0.2% | H56: -4.3% | I56: 0.5% | J56: -2.3% | K56: -6.1%
D57: =COUNTIF(D41:D56,">0") -> 9 | E57: 4 | F57: 4 | G57: 9 | H57: 1 | I57: 9 | J57: 4
C59: Specjalizacja sektorowa | D59: rolnictwo,leśnictwo, łowiectwo i rybactwo (sekcja A) | E59: przemysł bez przetwórstwa przemsyłowego (sekcje B,D,E) | F59: przetwórstwo przemysłowe (sekcja C) | G59: budownictwo (sekcja F) | H59: handel; naprawa pojazd_w samochodowych; transport i gospodarka magazynowa; zakwaterowanie i gastronomia; informacja i komunikacja (sekcje G,H,I,J) | I59: działalność finansowa i ubezpieczeniowa; obsługa rynku nieruchomości (sekcje K,L) | J59: pozostałe usługi (sekcje M,N,O,P,Q,R,S,T) | K59: SUMA (**) | M59: (WDBi/Pi-WDB/P)/(WDB/P) | N59: Weryfikacja
C60: ŁÓDZKIE | D60: =E$114*(D79-D$95)/$D$114 -> 0.6% | E60: -0.5% | F60: 3.1% | G60: -1.1% | H60: -3.2% | I60: -1.9% | J60: -2.4% | K60: =SUM(D60:J60) -> -5.4% | M60: =(D98-$D$114)/$D$114 -> -11.9% | N60: =K41+K60 -> -11.9%
C61: MAZOWIECKIE | D61: -0.4% | E61: -2.6% | F61: -3.9% | G61: 0.4% | H61: 4.4% | I61: 6.6% | J61: 2.4% | K61: 7.0% | M61: 26.2% | N61: 26.2%
C62: MAŁOPOLSKIE | D62: 0.8% | E62: -1.1% | F62: -1.8% | G62: 0.6% | H62: -1.8% | I62: -2.7% | J62: -0.3% | K62: -6.2% | M62: -10.8% | N62: -10.8%
C63: ŚLĄSKIE | D63: -2.0% | E63: 10.6% | F63: 0.9% | G63: 1.3% | H63: 2.5% | I63: -0.6% | J63: 0.3% | K63: 13.2% | M63: 8.8% | N63: 8.8%
C64: LUBELSKIE | D64: 3.4% | E64: -2.2% | F64: -5.8% | G64: -2.0% | H64: -7.6% | I64: -2.5% | J64: -3.7% | K64: -20.4% | M64: -27.0% | N64: -27.0%
C65: PODKARPACKIE | D65: 2.0% | E65: -2.5% | F65: 1.0% | G65: -1.7% | H65: -6.7% | I65: -3.8% | J65: -3.3% | K65: -15.1% | M65: -24.1% | N65: -24.1%
C66: PODLASKIE | D66: 2.6% | E66: -3.0% | F66: -4.4% | G66: -1.9% | H66: -5.4% | I66: -2.1% | J66: -2.2% | K66: -16.3% | M66: -20.5% | N66: -20.5%
C67: ŚWIĘTOKRZYSKIE | D67: 2.6% | E67: -1.8% | F67: -2.8% | G67: -1.2% | H67: -6.2% | I67: -4.4% | J67: -3.8% | K67: -17.6% | M67: -22.3% | N67: -22.3%
C68: LUBUSKIE | D68: -1.2% | E68: -2.1% | F68: 4.2% | G68: -0.9% | H68: 3.4% | I68: 0.1% | J68: 2.2% | K68: 5.7% | M68: 2.0% | N68: 2.0%
C69: WIELKOPOLSKIE | D69: -0.1% | E69: -1.9% | F69: 4.3% | G69: -0.1% | H69: -0.0% | I69: -1.4% | J69: -2.4% | K69: -1.5% | M69: -2.4% | N69: -2.4%
C70: ZACHODNIOPOMORSKIE | D70: =E$114*(D89-D$95)/$D$114 -> -1.4% | E70: -0.9% | F70: -0.4% | G70: 1.2% | H70: 6.6% | I70: 0.9% | J70: 2.9% | K70: 8.8% | M70: 7.2% | N70: 7.2%
C71: DOLNOŚLĄSKIE | D71: -1.5% | E71: 2.5% | F71: 0.9% | G71: 0.6% | H71: 1.7% | I71: 0.8% | J71: 3.6% | K71: 8.8% | M71: 10.0% | N71: 10.0%
C72: OPOLSKIE | D72: -0.1% | E72: -1.0% | F72: 2.2% | G72: 0.6% | H72: -3.0% | I72: -2.1% | J72: 1.5% | K72: -2.0% | M72: -4.4% | N72: -4.4%
C73: KUJAWSKO-POMORSKIE | D73: 0.0% | E73: -2.1% | F73: 3.1% | G73: -0.1% | H73: -0.6% | I73: -0.8% | J73: -1.0% | K73: -1.5% | M73: -5.4% | N73: -5.4%
C74: POMORSKIE | D74: -1.4% | E74: -1.8% | F74: 2.7% | G74: 1.0% | H74: 4.2% | I74: 1.5% | J74: 2.0% | K74: 8.2% | M74: 8.5% | N74: 8.5%
C75: WARMIŃSKO-MAZURSKIE | D75: -0.1% | E75: -1.8% | F75: 1.7% | G75: -0.7% | H75: -1.5% | I75: -0.7% | J75: 1.7% | K75: -1.3% | M75: -7.5% | N75: -7.5%
D76: =COUNTIF(D60:D75,">0") -> 7 | E76: 2 | F76: 10 | G76: 7 | H76: 6 | I76: 5 | J76: 8
C78: Ppij/PPi | D78: rolnictwo,leśnictwo, łowiectwo i rybactwo (sekcja A) | E78: przemysł bez przetwórstwa przemsyłowego (sekcje B,D,E) | F78: przetwórstwo przemysłowe (sekcja C) | G78: budownictwo (sekcja F) | H78: handel; naprawa pojazd_w samochodowych; transport i gospodarka magazynowa; zakwaterowanie i gastronomia; informacja i komunikacja (sekcje G,H,I,J) | I78: działalność finansowa i ubezpieczeniowa; obsługa rynku nieruchomości (sekcje K,L) | J78: pozostałe usługi (sekcje M,N,O,P,Q,R,S,T)
C79: ŁÓDZKIE | D79: =E136/$D136 -> 0.2125109803 | E79: =F136/$D136 -> 0.03452567545 | F79: 0.220042308 | G79: 0.0499696161 | H79: 0.2206457347 | I79: 0.02509111662 | J79: 0.2372145688
C80: MAZOWIECKIE | D80: =E137/$D137 -> 0.155020451 | E80: 0.0200703054 | F80: 0.1453130342 | G80: 0.06276999422 | H80: 0.2792884566 | I80: 0.04977145257 | J80: 0.2877663061
C81: MAŁOPOLSKIE | D81: 0.2236153356 | E81: 0.03045554582 | F81: 0.1683436719 | G81: 0.06406795591 | H81: 0.2312834441 | I81: 0.02273586389 | J81: 0.2594981827
C82: ŚLĄSKIE | D82: 0.06063587597 | E82: 0.1118148459 | F82: 0.1971748037 | G82: 0.07054229844 | H82: 0.2650209414 | I82: 0.02887884231 | J82: 0.2659323923
C83: LUBELSKIE | D83: 0.3769406799 | E83: 0.02286527962 | F83: 0.124314973 | G83: 0.04243388584 | H83: 0.1860408944 | I83: 0.02333979967 | J83: 0.2240644875
C84: PODKARPACKIE | D84: 0.2966283721 | E84: 0.02036871288 | F84: 0.198005144 | G84: 0.04483294606 | H84: 0.1927695772 | I84: 0.01940075808 | J84: 0.2279944897
C85: PODLASKIE | D85: 0.3326857692 | E85: 0.01708840812 | F85: 0.1398754239 | G85: 0.04329606539 | H85: 0.2030633493 | I85: 0.02455196167 | J85: 0.2394390225
C86: ŚWIĘTOKRZYSKIE | D86: 0.3309738962 | E86: 0.0255022584 | F86: 0.1569153079 | G86: 0.04936194299 | H86: 0.1968258917 | I86: 0.01762369238 | J86: 0.2227970103
C87: LUBUSKIE | D87: 0.1049479441 | E87: 0.02345513376 | F87: 0.2323800909 | G87: 0.05151037939 | H87: 0.2717158039 | I87: 0.0310117202 | J87: 0.2849789277
C88: WIELKOPOLSKIE | D88: 0.1743538892 | E88: 0.02489577621 | F88: 0.2336916145 | G88: 0.05819362959 | H88: 0.2450698214 | I88: 0.02654370239 | J88: 0.2372515666
C89: ZACHODNIOPOMORSKIE | D89: 0.09476024295 | E89: 0.03145699704 | F89: 0.1825582516 | G89: 0.0690120156 | H89: 0.2969091113 | I89: 0.03328343784 | J89: 0.2920199437
C90: DOLNOŚLĄSKIE | D90: 0.09124538004 | E90: 0.05555539131 | F90: 0.1968426381 | G90: 0.06473798511 | H90: 0.2584107289 | I90: 0.03294608432 | J90: 0.3002617923
C91: OPOLSKIE | D91: 0.1701134195 | E91: 0.0306078602 | F91: 0.2104619599 | G91: 0.06469200774 | H91: 0.2217133055 | I91: 0.02454495633 | J91: 0.2778664908
C92: KUJAWSKO-POMORSKIE | D92: 0.1775260511 | E92: 0.02296987452 | F92: 0.2202673939 | G92: 0.05819391762 | H92: 0.2407835271 | I92: 0.02835819551 | J92: 0.2519010403
C93: POMORSKIE | D93: 0.09485782706 | E93: 0.02507288668 | F93: 0.2160501657 | G93: 0.06799446437 | H93: 0.2779354539 | I93: 0.03487692099 | J93: 0.2832122814
C94: WARMIŃSKO-MAZURSKIE | D94: 0.1728792333 | E94: 0.02517465907 | F94: 0.2057808046 | G94: 0.05359684927 | H94: 0.233773174 | I94: 0.02844204684 | J94: 0.2803532329
C95: POLSKA | D95: 0.1774532155 | E95: 0.03790928722 | F95: 0.1871858589 | G95: 0.05927599772 | H95: 0.2452918991 | I95: 0.03057927681 | J95: 0.2623044647
C97: WDBij/PPij | D97: Ogółem | E97: rolnictwo,leśnictwo, łowiectwo i rybactwo (sekcja A) | F97: przemysł bez przetwórstwa przemsyłowego (sekcje B,D,E) | G97: przetwórstwo przemysłowe (sekcja C) | H97: budownictwo (sekcja F) | I97: handel; naprawa pojazd_w samochodowych; transport i gospodarka magazynowa; zakwaterowanie i gastronomia; informacja i komunikacja (sekcje G,H,I,J) | J97: działalność finansowa i ubezpieczeniowa; obsługa rynku nieruchomości (sekcje K,L) | K97: pozostałe usługi (sekcje M,N,O,P,Q,R,S,T)
C98: ŁÓDZKIE | D98: =D117/D136*1000000 -> 48385.81294 | E98: =E117/E136*1000000 -> 8730 | F98: 78302.48269 | G98: 43095 | H98: 63525 | I98: 65067 | J98: 188489 | K98: 50941
C99: MAZOWIECKIE | D99: =D118/D137*1000000 -> 69300.03731 | E99: 11404 | F99: 135656.8984 | G99: 59262 | H99: 62481 | I99: 93052 | J99: 172168 | K99: 61573
C100: MAŁOPOLSKIE | D100: 48967.7798 | E100: 3664 | F100: 71289.80072 | G100: 47856 | H100: 66551 | I100: 64263 | J100: 217948 | K100: 53330
C101: ŚLĄSKIE | D101: 59721.73014 | E101: 8685 | F101: 71378.862 | G101: 54348 | H101: 59925 | I101: 67779 | J101: 190346 | K101: 48173
C102: LUBELSKIE | D102: 40085.17873 | E102: 4659 | F102: 64279.83398 | G102: 44847 | H102: 65931 | I102: 66390 | J102: 217222 | K102: 49384
C103: PODKARPACKIE | D103: 41699.73088 | E103: 2475 | F103: 67458.43448 | G103: 46145 | H103: 57027 | I103: 63788 | J103: 237062 | K103: 48257
C104: PODLASKIE | D104: 43667.90638 | E104: 6973 | F104: 67431.36309 | G104: 50172 | H104: 73629 | I104: 64120 | J104: 199930 | K104: 50372
C105: ŚWIĘTOKRZYSKIE | D105: 42643.90461 | E105: 5458 | F105: 74581.62661 | G105: 46828 | H105: 82285 | I105: 64302 | J105: 245222 | K105: 47342
C106: LUBUSKIE | D106: 56026.57788 | E106: 19528 | F106: 110695.8747 | G106: 45404 | H106: 76427 | I106: 61968 | J106: 182361 | K106: 50530
C107: WIELKOPOLSKIE | D107: 53603.09609 | E107: 15713 | F107: 75218.47484 | G107: 50259 | H107: 63569 | I107: 66334 | J107: 185843 | K107: 52084
C108: ZACHODNIOPOMORSKIE | D108: 58860.58203 | E108: 22491 | F108: 78971.26721 | G108: 45444 | H108: 69970 | I108: 65498 | J108: 164133 | K108: 55511
C109: DOLNOŚLĄSKIE | D109: 60426.67871 | E109: 16027 | F109: 74682.76362 | G109: 58609 | H109: 69089 | I109: 65958 | J109: 180145 | K109: 52709
C110: OPOLSKIE | D110: 52507.60473 | E110: 12775 | F110: 99550.45168 | G110: 49561 | H110: 61311 | I110: 63690 | J110: 224856 | K110: 47686
C111: KUJAWSKO-POMORSKIE | D111: 51956.59169 | E111: 14091 | F111: 59461.52276 | G111: 50990 | H111: 63991 | I111: 64066 | J111: 172629 | K111: 50863
C112: POMORSKIE | D112: 59572.14529 | E112: 12415 | F112: 78282.43166 | G112: 54798 | H112: 65773 | I112: 67167 | J112: 181712 | K112: 53369
C113: WARMIŃSKO-MAZURSKIE | D113: 50809.46805 | E113: 17764 | F113: 60643.57438 | G113: 45176 | H113: 67280 | I113: 60481 | J113: 197673 | K113: 48326
C114: POLSKA | D114: 54908.89827 | E114: 9288 | F114: 78530.6318 | G114: 51033 | H114: 64882 | I114: 70490 | J114: 188328 | K114: 52746
C116: WDBi | D116: Ogółem | E116: rolnictwo,leśnictwo, łowiectwo i rybactwo (sekcja A) | F116: przemysł bez przetwórstwa przemsyłowego (sekcje B,D,E) | G116: przetwórstwo przemysłowe (sekcja C) | H116: budownictwo (sekcja F) | I116: handel; naprawa pojazd_w samochodowych; transport i gospodarka magazynowa; zakwaterowanie i gastronomia; informacja i komunikacja (sekcje G,H,I,J) | J116: działalność finansowa i ubezpieczeniowa; obsługa rynku nieruchomości (sekcje K,L) | K116: pozostałe usługi (sekcje M,N,O,P,Q,R,S,T)
C117: ŁÓDZKIE | D117: 44494 | E117: 1706 | F117: 2486 | G117: 8720 | H117: 2919 | I117: 13202 | J117: 4349 | K117: 11112
C118: MAZOWIECKIE | D118: 145158 | E118: 3703 | F118: 5703 | G118: 18038 | H118: 8215 | I118: 54436 | J118: 17949 | K118: 37114
C119: MAŁOPOLSKIE | D119: 53610 | E119: 897 | F119: 2377 | G119: 8820 | H119: 4668 | I119: 16272 | J119: 5425 | K119: 15151
C120: ŚLĄSKIE | D120: 96281 | E120: 849 | F120: 12867 | G120: 17276 | H120: 6815 | I120: 28959 | J120: 8862 | K120: 20653
C121: LUBELSKIE | D121: 29673 | E121: 1300 | F121: 1088 | G121: 4127 | H121: 2071 | I121: 9143 | J121: 3753 | K121: 8191
C122: PODKARPACKIE | D122: 29195 | E122: 514 | F122: 962 | G122: 6397 | H122: 1790 | I122: 8609 | J122: 3220 | K122: 7703
C123: PODLASKIE | D123: 17205 | E123: 914 | F123: 454 | G123: 2765 | H123: 1256 | I123: 5130 | J123: 1934 | K123: 4752
C124: ŚWIĘTOKRZYSKIE | D124: 19192 | E124: 813 | F124: 856 | G124: 3307 | H124: 1828 | I124: 5696 | J124: 1945 | K124: 4747
C125: LUBUSKIE | D125: 16594 | E125: 607 | F125: 769 | G125: 3125 | H125: 1166 | I125: 4987 | J125: 1675 | K125: 4265
C126: WIELKOPOLSKIE | D126: 65350 | E126: 3340 | F126: 2283 | G126: 14319 | H126: 4510 | I126: 19819 | J126: 6014 | K126: 15065
C127: ZACHODNIOPOMORSKIE | D127: 30352 | E127: 1099 | F127: 1281 | G127: 4278 | H127: 2490 | I127: 10028 | J127: 2817 | K127: 8359
C128: DOLNOŚLĄSKIE | D128: 55824 | E128: 1351 | F128: 3833 | G128: 10658 | H128: 4132 | I128: 15746 | J128: 5483 | K128: 14621
C129: OPOLSKIE | D129: 16164 | E129: 669 | F129: 938 | G129: 3211 | H129: 1221 | I129: 4347 | J129: 1699 | K129: 4079
C130: KUJAWSKO-POMORSKIE | D130: 34769 | E130: 1674 | F130: 914 | G130: 7516 | H130: 2492 | I130: 10323 | J130: 3276 | K130: 8574
C131: POMORSKIE | D131: 40974 | E131: 810 | F131: 1350 | G131: 8143 | H131: 3076 | I131: 12840 | J131: 4359 | K131: 10396
C132: WARMIŃSKO-MAZURSKIE | D132: 20135 | E132: 1217 | F132: 605 | G132: 3684 | H132: 1429 | I132: 5603 | J132: 2228 | K132: 5369
C133: POLSKA | D133: 714968 | E133: 21461 | F133: 38764 | G133: 124385 | H133: 50078 | I133: 225141 | J133: 74987 | K133: 180152
C135: PPi | D135: Ogółem | E135: rolnictwo,leśnictwo, łowiectwo i rybactwo (sekcja A) | F135: przemysł bez przetwórstwa przemsyłowego (sekcje B,D,E) | G135: przetwórstwo przemysłowe (sekcja C) | H135: budownictwo (sekcja F) | I135: handel; naprawa pojazd_w samochodowych; transport i gospodarka magazynowa; zakwaterowanie i gastronomia; informacja i komunikacja (sekcje G,H,I,J) | J135: działalność finansowa i ubezpieczeniowa; obsługa rynku nieruchomości (sekcje K,L) | K135: pozostałe usługi (sekcje M,N,O,P,Q,R,S,T)
C136: ŁÓDZKIE | D136: 919567.0652 | E136: 195418.0985 | F136: 31748.67405 | G136: 202343.6594 | H136: 45950.41322 | I136: 202898.5507 | J136: 23072.96447 | K136: 218134.7049
C137: MAZOWIECKIE | D137: 2094630.907 | E137: 324710.6278 | F137: 42039.882 | G137: 304377.1726 | H137: 131479.9699 | I137: 585006.2331 | J137: 104252.8228 | K137: 602764.1986
C138: MAŁOPOLSKIE | D138: 1094801.525 | E138: 244814.4105 | F138: 33342.77801 | G138: 184302.9087 | H138: 70141.69584 | I138: 253209.4673 | J138: 24891.25847 | K138: 284099.0062
C139: ŚLĄSKIE | D139: 1612160.26 | E139: 97754.74957 | F139: 180263.4511 | G139: 317877.3828 | H139: 113725.4902 | I139: 427256.2298 | J139: 46557.32193 | K139: 428725.6347
C140: LUBELSKIE | D140: 740248.6641 | E140: 279029.8347 | F140: 16925.99269 | G140: 92023.99269 | H140: 31411.62731 | I140: 137716.5236 | J140: 17277.25553 | K140: 165863.4376
C141: PODKARPACKIE | D141: 700124.4225 | E141: 207676.7677 | F141: 14260.63334 | G141: 138628.2371 | H141: 31388.64047 | I141: 134962.6889 | J141: 13582.94455 | K141: 159624.5104
C142: PODLASKIE | D142: 393996.4479 | E142: 131077.0113 | F142: 6732.772099 | G142: 55110.42015 | H142: 17058.49597 | I142: 80006.2383 | J142: 9673.385685 | K142: 94338.12435
C143: ŚWIĘTOKRZYSKIE | D143: 450052.5967 | E143: 148955.6614 | F143: 11477.35761 | G143: 70620.1418 | H143: 22215.47062 | I143: 88582.00367 | J143: 7931.58852 | K143: 100270.373
C144: LUBUSKIE | D144: 296180.8597 | E144: 31083.57231 | F144: 6946.961682 | G144: 68826.53511 | H144: 15256.38845 | I144: 80477.0204 | J144: 9185.07795 | K144: 84405.30378
C145: WIELKOPOLSKIE | D145: 1219145.997 | E145: 212562.8461 | F145: 30351.58589 | G145: 284904.1963 | H145: 70946.53054 | I145: 298775.8917 | J145: 32360.6485 | K145: 289244.2977
C146: ZACHODNIOPOMORSKIE | D146: 515659.1891 | E146: 48863.99004 | F146: 16221.08959 | G146: 94137.83998 | H146: 35586.68001 | I146: 153103.9116 | J146: 17162.91057 | K146: 150582.7674
C147: DOLNOŚLĄSKIE | D147: 923830.3542 | E147: 84295.25176 | F147: 51323.75684 | G147: 181849.204 | H147: 59806.91572 | I147: 238727.6752 | J147: 30436.59274 | K147: 277390.9579
C148: OPOLSKIE | D148: 307841.1229 | E148: 52367.90607 | F148: 9422.358053 | G148: 64788.84607 | H148: 19914.8603 | I148: 68252.47292 | J148: 7555.946917 | K148: 85538.73254
C149: KUJAWSKO-POMORSKIE | D149: 669193.2413 | E149: 118799.2336 | F149: 15371.28478 | G149: 147401.4513 | H149: 38942.97636 | I149: 161130.709 | J149: 18977.11277 | K149: 168570.4736
C150: POMORSKIE | D150: 687804.6745 | E150: 65243.65687 | F150: 17245.24866 | G150: 148600.3139 | H150: 46766.91043 | I150: 191165.3044 | J150: 23988.50929 | K150: 194794.731
C151: WARMIŃSKO-MAZURSKIE | D151: 396284.4086 | E151: 68509.34474 | F151: 9976.324881 | G151: 81547.72446 | H151: 21239.59572 | I151: 92640.66401 | J151: 11271.13971 | K151: 111099.6151
C152: POLSKA | D152: 13020986.08 | E152: 2310615.848 | F152: 493616.3012 | G152: 2437344.463 | H152: 771831.9411 | I152: 3193942.403 | J152: 398172.3376 | K152: 3415462.784

Sheet 2012prac (hidden)
B1: Poddekompozycja różnic w udziale PRACUJĄCYCH wśród aktywnych zawodowo
B2: 2012
C4: Sekcje | D4: wyższe | E4: policealne oraz średnie zawodowe | F4: średnie ogólnokształcące | G4: zasadnicze zawodowe | H4: gimnazjalne, podstawowe i niższe
B5: ŁÓDZKIE | C5: Różnice w efektywnosci rynku pracy | D5: =D41 -> -0.2% | E5: =E41 -> 0.1% | F5: =F41 -> 0.1% | G5: =G41 -> -0.5% | H5: =H41 -> -0.1%
C6: Profil wyksztalcenia | D6: =D59 -> -2.7% | E6: =E59 -> 0.8% | F6: =F59 -> 1.0% | G6: =G59 -> -0.9% | H6: =H59 -> 1.6%
B7: MAZOWIECKIE | C7: Roznice w efektywnosci rynku pracy | D7: =D42 -> 0.7% | E7: =E42 -> 0.5% | F7: =F42 -> 0.2% | G7: =G42 -> 0.3% | H7: =H42 -> 0.0%
C8: Profil wyksztalcenia | D8: =D60 -> 9.0% | E8: =E60 -> -2.0% | F8: =F60 -> 1.1% | G8: =G60 -> -6.4% | H8: =H60 -> -1.1%
B9: MAŁOPOLSKIE | C9: Roznice w efektywnosci rynku pracy | D9: =D43 -> -0.3% | E9: =E43 -> -0.5% | F9: =F43 -> -0.2% | G9: =G43 -> 0.2% | H9: =H43 -> 0.3%
C10: Profil wyksztalcenia | D10: =D61 -> 0.7% | E10: =E61 -> -0.6% | F10: =F61 -> -0.9% | G10: =G61 -> 1.8% | H10: =H61 -> -0.9%
B11: ŚLĄSKIE | C11: Roznice w efektywnosci rynku pracy | D11: =D44 -> 0.1% | E11: =E44 -> 0.4% | F11: =F44 -> 0.0% | G11: =G44 -> 0.0% | H11: =H44 -> -0.3%
C12: Profil wyksztalcenia | D12: =D62 -> 0.1% | E12: =E62 -> 3.0% | F12: =F62 -> -0.6% | G12: =G62 -> 0.4% | H12: =H62 -> -2.6%
B13: LUBELSKIE | C13: Roznice w efektywnosci rynku pracy | D13: =D45 -> -0.6% | E13: =E45 -> -0.3% | F13: =F45 -> -0.3% | G13: =G45 -> 0.3% | H13: =H45 -> 0.5%
C14: Profil wyksztalcenia | D14: =D63 -> -1.6% | E14: =E63 -> 1.6% | F14: =F63 -> -1.1% | G14: =G63 -> -1.0% | H14: =H63 -> 1.9%
B15: PODKARPACKIE | C15: Roznice w efektywnosci rynku pracy | D15: =D46 -> -0.9% | E15: =E46 -> -1.4% | F15: =F46 -> -0.6% | G15: =G46 -> -0.8% | H15: =H46 -> 0.5%
C16: Profil wyksztalcenia | D16: =D64 -> -3.8% | E16: =E64 -> 0.7% | F16: =F64 -> -1.3% | G16: =G64 -> 2.6% | H16: =H64 -> 1.5%
B17: PODLASKIE | C17: Roznice w efektywnosci rynku pracy | D17: =D47 -> 0.2% | E17: =E47 -> 0.2% | F17: =F47 -> -0.2% | G17: =G47 -> 0.3% | H17: =H47 -> 0.9%
C18: Profil wyksztalcenia | D18: =D65 -> -0.9% | E18: =E65 -> 1.0% | F18: =F65 -> -0.7% | G18: =G65 -> -2.2% | H18: =H65 -> 2.5%
B19: ŚWIĘTOKRZYSKIE | C19: Roznice w efektywnosci rynku pracy | D19: =D48 -> -1.2% | E19: =E48 -> -1.4% | F19: =F48 -> -0.4% | G19: =G48 -> -0.8% | H19: =H48 -> 0.6%
C20: Profil wyksztalcenia | D20: =D66 -> -2.2% | E20: =E66 -> 0.6% | F20: =F66 -> -1.8% | G20: =G66 -> 1.5% | H20: =H66 -> 1.7%
B21: LUBUSKIE | C21: Roznice w efektywnosci rynku pracy | D21: =D49 -> 0.4% | E21: =E49 -> 0.1% | F21: =F49 -> 0.4% | G21: =G49 -> 0.5% | H21: =H49 -> 0.0%
C22: Profil wyksztalcenia | D22: =D67 -> -5.5% | E22: =E67 -> 1.6% | F22: =F67 -> 1.4% | G22: =G67 -> 2.5% | H22: =H67 -> -0.4%
B23: WIELKOPOLSKIE | C23: Roznice w efektywnosci rynku pracy | D23: =D50 -> 0.1% | E23: =E50 -> 0.5% | F23: =F50 -> 0.2% | G23: =G50 -> 0.8% | H23: =H50 -> 0.0%
C24: Profil wyksztalcenia | D24: =D68 -> -2.5% | E24: =E68 -> 0.1% | F24: =F68 -> -0.8% | G24: =G68 -> 4.3% | H24: =H68 -> -1.3%
B25: ZACHODNIOPOMORSKIE | C25: Roznice w efektywnosci rynku pracy | D25: =D51 -> 0.1% | E25: =E51 -> 0.1% | F25: =F51 -> 0.1% | G25: =G51 -> -0.4% | H25: =H51 -> -0.5%
C26: Profil wyksztalcenia | D26: =D69 -> -1.3% | E26: =E69 -> -2.0% | F26: =F69 -> 0.7% | G26: =G69 -> 1.1% | H26: =H69 -> 1.2%
B27: DOLNOŚLĄSKIE | C27: Roznice w efektywnosci rynku pracy | D27: =D52 -> 0.1% | E27: =E52 -> -0.1% | F27: =F52 -> 0.0% | G27: =G52 -> -0.8% | H27: =H52 -> -0.6%
C28: Profil wyksztalcenia | D28: =D70 -> -0.2% | E28: =E70 -> 0.3% | F28: =F70 -> 0.4% | G28: =G70 -> -0.5% | H28: =H70 -> -0.1%
B29: OPOLSKIE | C29: Roznice w efektywnosci rynku pracy | D29: =D53 -> 0.0% | E29: =E53 -> 0.2% | F29: =F53 -> 0.2% | G29: =G53 -> 0.6% | H29: =H53 -> -0.1%
C30: Profil wyksztalcenia | D30: =D71 -> -5.4% | E30: =E71 -> -0.3% | F30: =F71 -> -0.5% | G30: =G71 -> 6.2% | H30: =H71 -> -0.4%
B31: KUJAWSKO-POMORSKIE | C31: Roznice w efektywnosci rynku pracy | D31: =D54 -> -0.2% | E31: =E54 -> -0.3% | F31: =F54 -> -0.2% | G31: =G54 -> -0.5% | H31: =H54 -> -0.4%
C32: Profil wyksztalcenia | D32: =D72 -> -5.0% | E32: =E72 -> -1.7% | F32: =F72 -> 0.4% | G32: =G72 -> 4.9% | H32: =H72 -> 0.9%
B33: POMORSKIE | C33: Roznice w efektywnosci rynku pracy | D33: =D55 -> 0.2% | E33: =E55 -> -0.2% | F33: =F55 -> 0.3% | G33: =G55 -> 0.2% | H33: =H55 -> 0.0%
C34: Profil wyksztalcenia | D34: =D73 -> 2.2% | E34: =E73 -> -3.3% | F34: =F73 -> 1.4% | G34: =G73 -> -0.8% | H34: =H73 -> 0.5%
B35: WARMIŃSKO-MAZURSKIE | C35: Roznice w efektywnosci rynku pracy | D35: =D56 -> -0.1% | E35: =E56 -> -0.0% | F35: =F56 -> -0.0% | G35: =G56 -> -0.2% | H35: =H56 -> -0.3%
C36: Profil wyksztalcenia | D36: =D74 -> -4.9% | E36: =E74 -> 0.1% | F36: =F74 -> 0.8% | G36: =G74 -> 0.0% | H36: =H74 -> 3.4%
C40: Różnice w efektywności rynku pracy | D40: wyższe | E40: policealne oraz średnie zawodowe | F40: średnie ogólnokształcące | G40: zasadnicze zawodowe | H40: gimnazjalne, podstawowe i niższe | I40: SUMA (**)
C41: ŁÓDZKIE | D41: =D78*(E97-E$113)/$D$113 -> -0.23% | E41: 0.06% | F41: 0.10% | G41: -0.52% | H41: -0.14% | I41: =SUM(D41:H41) -> -0.73%
C42: MAZOWIECKIE | D42: 0.70% | E42: 0.48% | F42: 0.19% | G42: 0.34% | H42: 0.01% | I42: 1.72%
C43: MAŁOPOLSKIE | D43: -0.28% | E43: -0.48% | F43: -0.17% | G43: 0.23% | H43: 0.27% | I43: -0.44%
C44: ŚLĄSKIE | D44: 0.12% | E44: 0.44% | F44: 0.01% | G44: 0.02% | H44: -0.29% | I44: 0.30%
C45: LUBELSKIE | D45: -0.55% | E45: -0.26% | F45: -0.34% | G45: 0.28% | H45: 0.53% | I45: -0.34%
C46: PODKARPACKIE | D46: -0.87% | E46: -1.39% | F46: -0.59% | G46: -0.76% | H46: 0.45% | I46: -3.16%
C47: PODLASKIE | D47: 0.16% | E47: 0.18% | F47: -0.23% | G47: 0.29% | H47: 0.93% | I47: 1.33%
C48: ŚWIĘTOKRZYSKIE | D48: -1.19% | E48: -1.35% | F48: -0.36% | G48: -0.76% | H48: 0.55% | I48: -3.11%
C49: LUBUSKIE | D49: 0.42% | E49: 0.14% | F49: 0.42% | G49: 0.51% | H49: 0.04% | I49: 1.54%
C50: WIELKOPOLSKIE | D50: 0.12% | E50: 0.52% | F50: 0.20% | G50: 0.77% | H50: 0.01% | I50: 1.62%
C51: ZACHODNIOPOMORSKIE | D51: =D88*(E107-E$113)/$D$113 -> 0.09% | E51: 0.06% | F51: 0.14% | G51: -0.42% | H51: -0.53% | I51: -0.66%
C52: DOLNOŚLĄSKIE | D52: 0.11% | E52: -0.06% | F52: 0.05% | G52: -0.77% | H52: -0.55% | I52: -1.22%
C53: OPOLSKIE | D53: 0.04% | E53: 0.19% | F53: 0.23% | G53: 0.60% | H53: -0.11% | I53: 0.95%
C54: KUJAWSKO-POMORSKIE | D54: -0.16% | E54: -0.29% | F54: -0.24% | G54: -0.50% | H54: -0.37% | I54: -1.55%
C55: POMORSKIE | D55: 0.25% | E55: -0.17% | F55: 0.26% | G55: 0.17% | H55: 0.00% | I55: 0.50%
C56: WARMIŃSKO-MAZURSKIE | D56: -0.10% | E56: -0.01% | F56: -0.01% | G56: -0.24% | H56: -0.29% | I56: -0.64%
C58: Profil wyksztalcenia | D58: wyższe | E58: policealne oraz średnie zawodowe | F58: średnie ogólnokształcące | G58: zasadnicze zawodowe | H58: gimnazjalne, podstawowe i niższe | I58: SUMA (**) | K58: (Pzi/AZi-PZ/AZ)/(PZ/AZ) | L58: Weryfikacja | N58: (Pzi/AZi-PZ/AZ)/(PZ/AZ) | O58: Weryfikacja
C59: ŁÓDZKIE | D59: =E$113*(D78-D$94)/$D$113 -> -2.72% | E59: 0.76% | F59: 0.98% | G59: -0.90% | H59: 1.56% | I59: =SUM(D59:H59) -> -0.33% | K59: =(D97-D$113)/D$113 -> -1.06% | L59: =I41+I59 -> -1.06% | N59: =('2012prac'!#REF!-'2012prac'!#REF!)/'2012prac'!#REF! ->  | O59: =#REF!+I59 -> 
C60: MAZOWIECKIE | D60: 9.02% | E60: -2.00% | F60: 1.08% | G60: -6.42% | H60: -1.08% | I60: 0.61% | K60: 2.32% | L60: 2.32% | N60: =('2012prac'!#REF!-'2012prac'!#REF!)/'2012prac'!#REF! ->  | O60: =#REF!+I60 -> 
C61: MAŁOPOLSKIE | D61: 0.66% | E61: -0.58% | F61: -0.85% | G61: 1.83% | H61: -0.92% | I61: 0.13% | K61: -0.30% | L61: -0.30% | N61: =('2012prac'!#REF!-'2012prac'!#REF!)/'2012prac'!#REF! ->  | O61: =#REF!+I61 -> 
C62: ŚLĄSKIE | D62: 0.12% | E62: 3.05% | F62: -0.61% | G62: 0.37% | H62: -2.57% | I62: 0.36% | K62: 0.66% | L62: 0.66% | N62: =('2012prac'!#REF!-'2012prac'!#REF!)/'2012prac'!#REF! ->  | O62: =#REF!+I62 -> 
C63: LUBELSKIE | D63: -1.62% | E63: 1.65% | F63: -1.15% | G63: -1.02% | H63: 1.94% | I63: -0.20% | K63: -0.54% | L63: -0.54% | N63: =('2012prac'!#REF!-'2012prac'!#REF!)/'2012prac'!#REF! ->  | O63: =#REF!+I63 -> 
C64: PODKARPACKIE | D64: -3.84% | E64: 0.71% | F64: -1.34% | G64: 2.61% | H64: 1.52% | I64: -0.34% | K64: -3.49% | L64: -3.49% | N64: =('2012prac'!#REF!-'2012prac'!#REF!)/'2012prac'!#REF! ->  | O64: =#REF!+I64 -> 
C65: PODLASKIE | D65: -0.89% | E65: 0.96% | F65: -0.69% | G65: -2.17% | H65: 2.55% | I65: -0.24% | K65: 1.09% | L65: 1.09% | N65: =('2012prac'!#REF!-'2012prac'!#REF!)/'2012prac'!#REF! ->  | O65: =#REF!+I65 -> 
C66: ŚWIĘTOKRZYSKIE | D66: -2.24% | E66: 0.62% | F66: -1.81% | G66: 1.52% | H66: 1.67% | I66: -0.23% | K66: -3.35% | L66: -3.35% | N66: =('2012prac'!#REF!-'2012prac'!#REF!)/'2012prac'!#REF! ->  | O66: =#REF!+I66 -> 
C67: LUBUSKIE | D67: -5.51% | E67: 1.64% | F67: 1.45% | G67: 2.52% | H67: -0.42% | I67: -0.32% | K67: 1.22% | L67: 1.22% | N67: =('2012prac'!#REF!-'2012prac'!#REF!)/'2012prac'!#REF! ->  | O67: =#REF!+I67 -> 
C68: WIELKOPOLSKIE | D68: -2.46% | E68: 0.13% | F68: -0.75% | G68: 4.31% | H68: -1.26% | I68: -0.02% | K68: 1.59% | L68: 1.59% | N68: =('2012prac'!#REF!-'2012prac'!#REF!)/'2012prac'!#REF! ->  | O68: =#REF!+I68 -> 
C69: ZACHODNIOPOMORSKIE | D69: =E$113*(D88-D$94)/$D$113 -> -1.29% | E69: -2.03% | F69: 0.75% | G69: 1.06% | H69: 1.23% | I69: -0.28% | K69: -0.94% | L69: -0.94% | N69: =('2012prac'!#REF!-'2012prac'!#REF!)/'2012prac'!#REF! ->  | O69: =#REF!+I69 -> 
C70: DOLNOŚLĄSKIE | D70: -0.16% | E70: 0.34% | F70: 0.41% | G70: -0.55% | H70: -0.05% | I70: -0.01% | K70: -1.23% | L70: -1.23% | N70: =('2012prac'!#REF!-'2012prac'!#REF!)/'2012prac'!#REF! ->  | O70: =#REF!+I70 -> 
C71: OPOLSKIE | D71: -5.37% | E71: -0.30% | F71: -0.50% | G71: 6.20% | H71: -0.35% | I71: -0.32% | K71: 0.63% | L71: 0.63% | N71: =('2012prac'!#REF!-'2012prac'!#REF!)/'2012prac'!#REF! ->  | O71: =#REF!+I71 -> 
C72: KUJAWSKO-POMORSKIE | D72: -5.03% | E72: -1.66% | F72: 0.40% | G72: 4.88% | H72: 0.92% | I72: -0.48% | K72: -2.03% | L72: -2.03% | N72: =('2012prac'!#REF!-'2012prac'!#REF!)/'2012prac'!#REF! ->  | O72: =#REF!+I72 -> 
C73: POMORSKIE | D73: 2.22% | E73: -3.33% | F73: 1.40% | G73: -0.83% | H73: 0.49% | I73: -0.04% | K73: 0.46% | L73: 0.46% | N73: =('2012prac'!#REF!-'2012prac'!#REF!)/'2012prac'!#REF! ->  | O73: =#REF!+I73 -> 
C74: WARMIŃSKO-MAZURSKIE | D74: -4.85% | E74: 0.05% | F74: 0.76% | G74: 0.01% | H74: 3.38% | I74: -0.65% | K74: -1.29% | L74: -1.29% | N74: =('2012prac'!#REF!-'2012prac'!#REF!)/'2012prac'!#REF! ->  | O74: =#REF!+I74 -> 
C77: Azij/AZi | D77: wyższe | E77: policealne oraz średnie zawodowe | F77: średnie ogólnokształcące | G77: zasadnicze zawodowe | H77: gimnazjalne, podstawowe i niższe
C78: ŁÓDZKIE | D78: =E116/$D116 -> 0.2557792692 | E78: 0.2811334825 | F78: 0.1006711409 | G78: 0.2684563758 | H78: 0.09395973154
C79: MAZOWIECKIE | D79: 0.3676304919 | E79: 0.2538490424 | F79: 0.1017649268 | G79: 0.2121667293 | H79: 0.06458880961
C80: MAŁOPOLSKIE | D80: 0.2879834254 | E80: 0.2679558011 | F80: 0.08149171271 | G80: 0.2962707182 | H80: 0.06629834254
C81: ŚLĄSKIE | D81: 0.282866635 | E81: 0.3037494067 | F81: 0.0840056953 | G81: 0.2814428097 | H81: 0.04793545325
C82: LUBELSKIE | D82: 0.2662889518 | E82: 0.2898961284 | F82: 0.07837582625 | G82: 0.2672332389 | H82: 0.09820585458
C83: PODKARPACKIE | D83: 0.2451612903 | E83: 0.2806451613 | F83: 0.07634408602 | G83: 0.3043010753 | H83: 0.0935483871
C84: PODLASKIE | D84: 0.2732673267 | E84: 0.2831683168 | F84: 0.08316831683 | G84: 0.2554455446 | H84: 0.104950495
C85: ŚWIĘTOKRZYSKIE | D85: 0.2604166667 | E85: 0.2797619048 | F85: 0.07142857143 | G85: 0.2931547619 | H85: 0.09523809524
C86: LUBUSKIE | D86: 0.2292134831 | E86: 0.2898876404 | F86: 0.1056179775 | G86: 0.3033707865 | H86: 0.07191011236
C87: WIELKOPOLSKIE | D87: 0.258322237 | E87: 0.2749667111 | F87: 0.08255659121 | G87: 0.3215712383 | H87: 0.06258322237
C88: ZACHODNIOPOMORSKIE | D88: =E126/$D126 -> 0.2694136292 | E88: 0.2535657686 | F88: 0.09825673534 | G88: 0.2884310618 | H88: 0.09033280507
C89: DOLNOŚLĄSKIE | D89: 0.2802287582 | E89: 0.2769607843 | F89: 0.09477124183 | G89: 0.2720588235 | H89: 0.07598039216
C90: OPOLSKIE | D90: 0.2305764411 | E90: 0.2706766917 | F90: 0.08521303258 | G90: 0.3408521303 | H90: 0.07268170426
C91: KUJAWSKO-POMORSKIE | D91: 0.2338530067 | E91: 0.2572383073 | F91: 0.09465478842 | G91: 0.3273942094 | H91: 0.0868596882
C92: POMORSKIE | D92: 0.3028391167 | E92: 0.2407991588 | F92: 0.1051524711 | G92: 0.269190326 | H92: 0.08201892744
C93: WARMIŃSKO-MAZURSKIE | D93: 0.2355008787 | E93: 0.2741652021 | F93: 0.09841827768 | G93: 0.2776801406 | H93: 0.1142355009
C94: POLSKA | D94: 0.2817185698 | E94: 0.273644752 | F94: 0.09042675894 | G94: 0.2776239908 | H94: 0.07658592849
C96: Pzij/AZij | D96: Ogółem | E96: wyższe | F96: policealne oraz średnie zawodowe | G96: średnie ogólnokształcące | H96: zasadnicze zawodowe | I96: gimnazjalne, podstawowe i niższe
C97: ŁÓDZKIE | D97: =D135/D116 -> 0.889634601 | E97: 0.9358600583 | F97: 0.9124668435 | G97: 0.8666666667 | H97: 0.8638888889 | I97: 0.7936507937
C98: MAZOWIECKIE | D98: 0.9200150207 | E98: 0.9611848825 | F98: 0.9275147929 | G98: 0.8745387454 | H98: 0.8955752212 | I98: 0.8081395349
C99: MAŁOPOLSKIE | D99: 0.8964088398 | E99: 0.9352517986 | F99: 0.8943298969 | G99: 0.8389830508 | H99: 0.8881118881 | I99: 0.84375
C100: ŚLĄSKIE | D100: 0.9050783104 | E100: 0.9479865772 | F100: 0.9234375 | G100: 0.8587570621 | H100: 0.8819561551 | I100: 0.7524752475
C101: LUBELSKIE | D101: 0.8942398489 | E101: 0.9255319149 | F101: 0.9022801303 | G101: 0.8192771084 | H101: 0.890459364 | I101: 0.8557692308
C102: PODKARPACKIE | D102: 0.8677419355 | E102: 0.9122807018 | F102: 0.8659003831 | G102: 0.7887323944 | H102: 0.8586572438 | I102: 0.8505747126
C103: PODLASKIE | D103: 0.9089108911 | E103: 0.9492753623 | F103: 0.9160839161 | G103: 0.8333333333 | H103: 0.8914728682 | I103: 0.8867924528
C104: ŚWIĘTOKRZYSKIE | D104: 0.869047619 | E104: 0.9028571429 | F104: 0.8670212766 | G104: 0.8125 | H104: 0.8578680203 | I104: 0.859375
C105: LUBUSKIE | D105: 0.9101123596 | E105: 0.9607843137 | F105: 0.9147286822 | G105: 0.8936170213 | H105: 0.8962962963 | I105: 0.8125
C106: WIELKOPOLSKIE | D106: 0.913448735 | E106: 0.9484536082 | F106: 0.9273607748 | G106: 0.8790322581 | H106: 0.9026915114 | I106: 0.8085106383
C107: ZACHODNIOPOMORSKIE | D107: =D145/D126 -> 0.8906497623 | E107: 0.9470588235 | F107: 0.9125 | G107: 0.8709677419 | H107: 0.8681318681 | I107: 0.7543859649
C108: DOLNOŚLĄSKIE | D108: 0.8880718954 | E108: 0.9475218659 | F108: 0.9085545723 | G108: 0.8620689655 | H108: 0.8558558559 | I108: 0.7419354839
C109: OPOLSKIE | D109: 0.9047619048 | E109: 0.9456521739 | F109: 0.9166666667 | G109: 0.8823529412 | H109: 0.8970588235 | I109: 0.7931034483
C110: KUJAWSKO-POMORSKIE | D110: 0.8808463252 | E110: 0.9380952381 | F110: 0.9004329004 | G110: 0.8352941176 | H110: 0.8673469388 | I110: 0.7692307692
C111: POMORSKIE | D111: 0.9032597266 | E111: 0.9513888889 | F111: 0.903930131 | G111: 0.88 | H111: 0.88671875 | I111: 0.8076923077
C112: WARMIŃSKO-MAZURSKIE | D112: 0.8875219684 | E112: 0.9402985075 | F112: 0.9102564103 | G112: 0.8571428571 | H112: 0.8734177215 | I112: 0.7846153846
C113: POLSKA | D113: 0.8991349481 | E113: 0.9441146366 | F113: 0.9104320337 | G113: 0.8577806122 | H113: 0.881179892 | I113: 0.8072289157
C115: AZij | D115: Ogółem | E115: wyższe | F115: policealne oraz średnie zawodowe | G115: średnie ogólnokształcące | H115: zasadnicze zawodowe | I115: gimnazjalne, podstawowe i niższe
C116: ŁÓDZKIE | D116: 1341 | E116: 343 | F116: 377 | G116: 135 | H116: 360 | I116: 126
C117: MAZOWIECKIE | D117: 2663 | E117: 979 | F117: 676 | G117: 271 | H117: 565 | I117: 172
C118: MAŁOPOLSKIE | D118: 1448 | E118: 417 | F118: 388 | G118: 118 | H118: 429 | I118: 96
C119: ŚLĄSKIE | D119: 2107 | E119: 596 | F119: 640 | G119: 177 | H119: 593 | I119: 101
C120: LUBELSKIE | D120: 1059 | E120: 282 | F120: 307 | G120: 83 | H120: 283 | I120: 104
C121: PODKARPACKIE | D121: 930 | E121: 228 | F121: 261 | G121: 71 | H121: 283 | I121: 87
C122: PODLASKIE | D122: 505 | E122: 138 | F122: 143 | G122: 42 | H122: 129 | I122: 53
C123: ŚWIĘTOKRZYSKIE | D123: 672 | E123: 175 | F123: 188 | G123: 48 | H123: 197 | I123: 64
C124: LUBUSKIE | D124: 445 | E124: 102 | F124: 129 | G124: 47 | H124: 135 | I124: 32
C125: WIELKOPOLSKIE | D125: 1502 | E125: 388 | F125: 413 | G125: 124 | H125: 483 | I125: 94
C126: ZACHODNIOPOMORSKIE | D126: 631 | E126: 170 | F126: 160 | G126: 62 | H126: 182 | I126: 57
C127: DOLNOŚLĄSKIE | D127: 1224 | E127: 343 | F127: 339 | G127: 116 | H127: 333 | I127: 93
C128: OPOLSKIE | D128: 399 | E128: 92 | F128: 108 | G128: 34 | H128: 136 | I128: 29
C129: KUJAWSKO-POMORSKIE | D129: 898 | E129: 210 | F129: 231 | G129: 85 | H129: 294 | I129: 78
C130: POMORSKIE | D130: 951 | E130: 288 | F130: 229 | G130: 100 | H130: 256 | I130: 78
C131: WARMIŃSKO-MAZURSKIE | D131: 569 | E131: 134 | F131: 156 | G131: 56 | H131: 158 | I131: 65
C132: POLSKA | D132: 17340 | E132: 4885 | F132: 4745 | G132: 1568 | H132: 4814 | I132: 1328
C134: Pzij | D134: Ogółem | E134: wyższe | F134: policealne oraz średnie zawodowe | G134: średnie ogólnokształcące | H134: zasadnicze zawodowe | I134: gimnazjalne, podstawowe i niższe
C135: ŁÓDZKIE | D135: 1193 | E135: 321 | F135: 344 | G135: 117 | H135: 311 | I135: 100
C136: MAZOWIECKIE | D136: 2450 | E136: 941 | F136: 627 | G136: 237 | H136: 506 | I136: 139
C137: MAŁOPOLSKIE | D137: 1298 | E137: 390 | F137: 347 | G137: 99 | H137: 381 | I137: 81
C138: ŚLĄSKIE | D138: 1907 | E138: 565 | F138: 591 | G138: 152 | H138: 523 | I138: 76
C139: LUBELSKIE | D139: 947 | E139: 261 | F139: 277 | G139: 68 | H139: 252 | I139: 89
C140: PODKARPACKIE | D140: 807 | E140: 208 | F140: 226 | G140: 56 | H140: 243 | I140: 74
C141: PODLASKIE | D141: 459 | E141: 131 | F141: 131 | G141: 35 | H141: 115 | I141: 47
C142: ŚWIĘTOKRZYSKIE | D142: 584 | E142: 158 | F142: 163 | G142: 39 | H142: 169 | I142: 55
C143: LUBUSKIE | D143: 405 | E143: 98 | F143: 118 | G143: 42 | H143: 121 | I143: 26
C144: WIELKOPOLSKIE | D144: 1372 | E144: 368 | F144: 383 | G144: 109 | H144: 436 | I144: 76
C145: ZACHODNIOPOMORSKIE | D145: 562 | E145: 161 | F145: 146 | G145: 54 | H145: 158 | I145: 43
C146: DOLNOŚLĄSKIE | D146: 1087 | E146: 325 | F146: 308 | G146: 100 | H146: 285 | I146: 69
C147: OPOLSKIE | D147: 361 | E147: 87 | F147: 99 | G147: 30 | H147: 122 | I147: 23
C148: KUJAWSKO-POMORSKIE | D148: 791 | E148: 197 | F148: 208 | G148: 71 | H148: 255 | I148: 60
C149: POMORSKIE | D149: 859 | E149: 274 | F149: 207 | G149: 88 | H149: 227 | I149: 63
C150: WARMIŃSKO-MAZURSKIE | D150: 505 | E150: 126 | F150: 142 | G150: 48 | H150: 138 | I150: 51
C151: POLSKA | D151: 15591 | E151: 4612 | F151: 4320 | G151: 1345 | H151: 4242 | I151: 1072

Sheet 2007prac (hidden)
B1: Poddekompozycja różnic w udziale PRACUJĄCYCH wśród aktywnych zawodowo
B2: 2007
C4: Sekcje | D4: wyższe | E4: policealne oraz średnie zawodowe | F4: średnie ogólnokształcące | G4: zasadnicze zawodowe | H4: gimnazjalne, podstawowe i niższe
B5: ŁÓDZKIE | C5: Roznice w efektywnosci rynku pracy | D5: =D41 -> 0.0% | E5: =E41 -> -0.2% | F5: =F41 -> 0.3% | G5: =G41 -> 0.3% | H5: =H41 -> 0.0%
C6: Profil wyksztalcenia | D6: =D59 -> -0.4% | E6: =E59 -> -0.9% | F6: =F59 -> 0.7% | G6: =G59 -> -1.1% | H6: =H59 -> 1.6%
B7: MAZOWIECKIE | C7: Roznice w efektywnosci rynku pracy | D7: =D42 -> 0.0% | E7: =E42 -> 0.1% | F7: =F42 -> 0.1% | G7: =G42 -> -0.2% | H7: =H42 -> -0.1%
C8: Profil wyksztalcenia | D8: =D60 -> 8.7% | E8: =E60 -> -0.3% | F8: =F60 -> 1.1% | G8: =G60 -> -7.5% | H8: =H60 -> -1.4%
B9: MAŁOPOLSKIE | C9: Roznice w efektywnosci rynku pracy | D9: =D43 -> -0.1% | E9: =E43 -> 0.2% | F9: =F43 -> -0.2% | G9: =G43 -> 0.7% | H9: =H43 -> 0.4%
C10: Profil wyksztalcenia | D10: =D61 -> 0.7% | E10: =E61 -> -1.1% | F10: =F61 -> 0.2% | G10: =G61 -> 1.5% | H10: =H61 -> -1.3%
B11: ŚLĄSKIE | C11: Roznice w efektywnosci rynku pracy | D11: =D44 -> 0.1% | E11: =E44 -> 0.6% | F11: =F44 -> 0.3% | G11: =G44 -> 0.9% | H11: =H44 -> -0.5%
C12: Profil wyksztalcenia | D12: =D62 -> -0.5% | E12: =E62 -> 4.0% | F12: =F62 -> -1.2% | G12: =G62 -> 1.9% | H12: =H62 -> -3.9%
B13: LUBELSKIE | C13: Roznice w efektywnosci rynku pracy | D13: =D45 -> -0.2% | E13: =E45 -> 0.3% | F13: =F45 -> -0.4% | G13: =G45 -> -0.0% | H13: =H45 -> 0.9%
C14: Profil wyksztalcenia | D14: =D63 -> -1.9% | E14: =E63 -> -0.7% | F14: =F63 -> -1.0% | G14: =G63 -> -1.3% | H14: =H63 -> 4.5%
B15: PODKARPACKIE | C15: Roznice w efektywnosci rynku pracy | D15: =D46 -> -0.2% | E15: =E46 -> -0.4% | F15: =F46 -> -0.1% | G15: =G46 -> -0.0% | H15: =H46 -> 1.2%
C16: Profil wyksztalcenia | D16: =D64 -> -3.6% | E16: =E64 -> 0.9% | F16: =F64 -> -1.6% | G16: =G64 -> 1.0% | H16: =H64 -> 3.0%
B17: PODLASKIE | C17: Roznice w efektywnosci rynku pracy | D17: =D47 -> 0.2% | E17: =E47 -> -0.1% | F17: =F47 -> 0.1% | G17: =G47 -> -0.2% | H17: =H47 -> 0.9%
C18: Profil wyksztalcenia | D18: =D65 -> -0.1% | E18: =E65 -> 0.7% | F18: =F65 -> -0.1% | G18: =G65 -> -5.8% | H18: =H65 -> 5.1%
B19: ŚWIĘTOKRZYSKIE | C19: Roznice w efektywnosci rynku pracy | D19: =D48 -> -0.9% | E19: =E48 -> -0.4% | F19: =F48 -> -0.4% | G19: =G48 -> -0.9% | H19: =H48 -> 0.7%
C20: Profil wyksztalcenia | D20: =D66 -> -3.0% | E20: =E66 -> -3.0% | F20: =F66 -> -1.5% | G20: =G66 -> 1.9% | H20: =H66 -> 5.1%
B21: LUBUSKIE | C21: Roznice w efektywnosci rynku pracy | D21: =D49 -> 0.5% | E21: =E49 -> -0.9% | F21: =F49 -> 0.4% | G21: =G49 -> 0.6% | H21: =H49 -> -0.4%
C22: Profil wyksztalcenia | D22: =D67 -> -3.8% | E22: =E67 -> 0.3% | F22: =F67 -> -0.7% | G22: =G67 -> 4.5% | H22: =H67 -> -0.6%
B23: WIELKOPOLSKIE | C23: Roznice w efektywnosci rynku pracy | D23: =D50 -> 0.2% | E23: =E50 -> 0.1% | F23: =F50 -> 0.3% | G23: =G50 -> 0.8% | H23: =H50 -> 0.3%
C24: Profil wyksztalcenia | D24: =D68 -> -3.4% | E24: =E68 -> -1.7% | F24: =F68 -> 0.6% | G24: =G68 -> 5.6% | H24: =H68 -> -1.3%
B25: ZACHODNIOPOMORSKIE | C25: Roznice w efektywnosci rynku pracy | D25: =D51 -> -0.0% | E25: =E51 -> -0.1% | F25: =F51 -> -0.6% | G25: =G51 -> -0.7% | H25: =H51 -> -1.1%
C26: Profil wyksztalcenia | D26: =D69 -> 2.7% | E26: =E69 -> -2.9% | F26: =F69 -> 1.7% | G26: =G69 -> -1.7% | H26: =H69 -> 0.3%
B27: DOLNOŚLĄSKIE | C27: Roznice w efektywnosci rynku pracy | D27: =D52 -> -0.1% | E27: =E52 -> -1.0% | F27: =F52 -> 0.0% | G27: =G52 -> -1.7% | H27: =H52 -> -0.8%
C28: Profil wyksztalcenia | D28: =D70 -> 0.5% | E28: =E70 -> 2.5% | F28: =F70 -> 0.1% | G28: =G70 -> -0.7% | H28: =H70 -> -2.2%
B29: OPOLSKIE | C29: Roznice w efektywnosci rynku pracy | D29: =D53 -> 0.1% | E29: =E53 -> -0.1% | F29: =F53 -> -0.0% | G29: =G53 -> 0.7% | H29: =H53 -> -0.3%
C30: Profil wyksztalcenia | D30: =D71 -> -3.9% | E30: =E71 -> -0.5% | F30: =F71 -> -0.6% | G30: =G71 -> 5.1% | H30: =H71 -> -0.5%
B31: KUJAWSKO-POMORSKIE | C31: Roznice w efektywnosci rynku pracy | D31: =D54 -> 0.1% | E31: =E54 -> 0.2% | F31: =F54 -> -0.1% | G31: =G54 -> -1.4% | H31: =H54 -> -0.2%
C32: Profil wyksztalcenia | D32: =D72 -> -7.1% | E32: =E72 -> -1.0% | F32: =F72 -> 0.2% | G32: =G72 -> 5.6% | H32: =H72 -> 1.7%
B33: POMORSKIE | C33: Roznice w efektywnosci rynku pracy | D33: =D55 -> 0.2% | E33: =E55 -> 0.1% | F33: =F55 -> -0.4% | G33: =G55 -> 0.3% | H33: =H55 -> -0.0%
C34: Profil wyksztalcenia | D34: =D73 -> -0.1% | E34: =E73 -> -0.2% | F34: =F73 -> 1.0% | G34: =G73 -> 0.5% | H34: =H73 -> -1.2%
B35: WARMIŃSKO-MAZURSKIE | C35: Roznice w efektywnosci rynku pracy | D35: =D56 -> 0.2% | E35: =E56 -> 0.6% | F35: =F56 -> -0.0% | G35: =G56 -> 0.1% | H35: =H56 -> -1.0%
C36: Profil wyksztalcenia | D36: =D74 -> -3.7% | E36: =E74 -> -1.0% | F36: =F74 -> -0.9% | G36: =G74 -> 1.9% | H36: =H74 -> 3.3%
C40: Różnice w efektywności rynku pracy | D40: wyższe | E40: policealne oraz średnie zawodowe | F40: średnie ogólnokształcące | G40: zasadnicze zawodowe | H40: gimnazjalne, podstawowe i niższe | I40: SUMA (**)
C41: ŁÓDZKIE | D41: =D78*(E97-E$113)/$D$113 -> 0.03% | E41: -0.20% | F41: 0.31% | G41: 0.26% | H41: 0.02% | I41: =SUM(D41:H41) -> 0.42%
C42: MAZOWIECKIE | D42: 0.03% | E42: 0.13% | F42: 0.07% | G42: -0.20% | H42: -0.13% | I42: -0.10%
C43: MAŁOPOLSKIE | D43: -0.13% | E43: 0.23% | F43: -0.21% | G43: 0.74% | H43: 0.41% | I43: 1.03%
C44: ŚLĄSKIE | D44: 0.10% | E44: 0.60% | F44: 0.32% | G44: 0.90% | H44: -0.52% | I44: 1.40%
C45: LUBELSKIE | D45: -0.23% | E45: 0.28% | F45: -0.40% | G45: -0.01% | H45: 0.93% | I45: 0.58%
C46: PODKARPACKIE | D46: -0.17% | E46: -0.37% | F46: -0.14% | G46: -0.00% | H46: 1.21% | I46: 0.54%
C47: PODLASKIE | D47: 0.21% | E47: -0.11% | F47: 0.05% | G47: -0.19% | H47: 0.92% | I47: 0.88%
C48: ŚWIĘTOKRZYSKIE | D48: -0.89% | E48: -0.43% | F48: -0.38% | G48: -0.92% | H48: 0.68% | I48: -1.94%
C49: LUBUSKIE | D49: 0.46% | E49: -0.91% | F49: 0.40% | G49: 0.57% | H49: -0.42% | I49: 0.10%
C50: WIELKOPOLSKIE | D50: 0.16% | E50: 0.08% | F50: 0.26% | G50: 0.82% | H50: 0.34% | I50: 1.66%
C51: ZACHODNIOPOMORSKIE | D51: =D88*(E107-E$113)/$D$113 -> -0.03% | E51: -0.09% | F51: -0.57% | G51: -0.67% | H51: -1.09% | I51: -2.44%
C52: DOLNOŚLĄSKIE | D52: -0.15% | E52: -0.96% | F52: 0.01% | G52: -1.72% | H52: -0.77% | I52: -3.59%
C53: OPOLSKIE | D53: 0.09% | E53: -0.08% | F53: -0.00% | G53: 0.70% | H53: -0.25% | I53: 0.45%
C54: KUJAWSKO-POMORSKIE | D54: 0.10% | E54: 0.23% | F54: -0.12% | G54: -1.35% | H54: -0.19% | I54: -1.33%
C55: POMORSKIE | D55: 0.18% | E55: 0.07% | F55: -0.38% | G55: 0.28% | H55: -0.04% | I55: 0.10%
C56: WARMIŃSKO-MAZURSKIE | D56: 0.18% | E56: 0.59% | F56: -0.05% | G56: 0.07% | H56: -0.96% | I56: -0.18%
C58: Profil wyksztalcenia | D58: wyższe | E58: policealne oraz średnie zawodowe | F58: średnie ogólnokształcące | G58: zasadnicze zawodowe | H58: gimnazjalne, podstawowe i niższe | I58: SUMA (**) | K58: (Pzi/AZi-PZ/AZ)/(PZ/AZ) | L58: Weryfikacja | N58: (Pzi/AZi-PZ/AZ)/(PZ/AZ) | O58: Weryfikacja
C59: ŁÓDZKIE | D59: =E$113*(D78-D$94)/$D$113 -> -0.37% | E59: -0.88% | F59: 0.69% | G59: -1.12% | H59: 1.55% | I59: =SUM(D59:H59) -> -0.14% | K59: =(D97-D$113)/D$113 -> 0.28% | L59: =I41+I59 -> 0.28% | N59: =('2007prac'!#REF!-'2007prac'!#REF!)/'2007prac'!#REF! ->  | O59: =#REF!+I59 -> 
C60: MAZOWIECKIE | D60: 8.73% | E60: -0.34% | F60: 1.12% | G60: -7.47% | H60: -1.38% | I60: 0.66% | K60: 0.57% | L60: 0.57% | N60: =('2007prac'!#REF!-'2007prac'!#REF!)/'2007prac'!#REF! ->  | O60: =#REF!+I60 -> 
C61: MAŁOPOLSKIE | D61: 0.72% | E61: -1.12% | F61: 0.24% | G61: 1.50% | H61: -1.27% | I61: 0.07% | K61: 1.11% | L61: 1.11% | N61: =('2007prac'!#REF!-'2007prac'!#REF!)/'2007prac'!#REF! ->  | O61: =#REF!+I61 -> 
C62: ŚLĄSKIE | D62: -0.53% | E62: 4.01% | F62: -1.19% | G62: 1.92% | H62: -3.91% | I62: 0.30% | K62: 1.70% | L62: 1.70% | N62: =('2007prac'!#REF!-'2007prac'!#REF!)/'2007prac'!#REF! ->  | O62: =#REF!+I62 -> 
C63: LUBELSKIE | D63: -1.88% | E63: -0.67% | F63: -0.98% | G63: -1.35% | H63: 4.51% | I63: -0.37% | K63: 0.21% | L63: 0.21% | N63: =('2007prac'!#REF!-'2007prac'!#REF!)/'2007prac'!#REF! ->  | O63: =#REF!+I63 -> 
C64: PODKARPACKIE | D64: -3.61% | E64: 0.87% | F64: -1.60% | G64: 0.97% | H64: 3.01% | I64: -0.36% | K64: 0.18% | L64: 0.18% | N64: =('2007prac'!#REF!-'2007prac'!#REF!)/'2007prac'!#REF! ->  | O64: =#REF!+I64 -> 
C65: PODLASKIE | D65: -0.10% | E65: 0.67% | F65: -0.14% | G65: -5.76% | H65: 5.10% | I65: -0.23% | K65: 0.65% | L65: 0.65% | N65: =('2007prac'!#REF!-'2007prac'!#REF!)/'2007prac'!#REF! ->  | O65: =#REF!+I65 -> 
C66: ŚWIĘTOKRZYSKIE | D66: -3.00% | E66: -3.04% | F66: -1.52% | G66: 1.90% | H66: 5.12% | I66: -0.55% | K66: -2.49% | L66: -2.49% | N66: =('2007prac'!#REF!-'2007prac'!#REF!)/'2007prac'!#REF! ->  | O66: =#REF!+I66 -> 
C67: LUBUSKIE | D67: -3.76% | E67: 0.35% | F67: -0.69% | G67: 4.51% | H67: -0.62% | I67: -0.22% | K67: -0.12% | L67: -0.12% | N67: =('2007prac'!#REF!-'2007prac'!#REF!)/'2007prac'!#REF! ->  | O67: =#REF!+I67 -> 
C68: WIELKOPOLSKIE | D68: -3.41% | E68: -1.69% | F68: 0.57% | G68: 5.63% | H68: -1.34% | I68: -0.24% | K68: 1.42% | L68: 1.42% | N68: =('2007prac'!#REF!-'2007prac'!#REF!)/'2007prac'!#REF! ->  | O68: =#REF!+I68 -> 
C69: ZACHODNIOPOMORSKIE | D69: =E$113*(D88-D$94)/$D$113 -> 2.75% | E69: -2.93% | F69: 1.66% | G69: -1.66% | H69: 0.25% | I69: 0.07% | K69: -2.37% | L69: -2.37% | N69: =('2007prac'!#REF!-'2007prac'!#REF!)/'2007prac'!#REF! ->  | O69: =#REF!+I69 -> 
C70: DOLNOŚLĄSKIE | D70: 0.48% | E70: 2.53% | F70: 0.09% | G70: -0.68% | H70: -2.20% | I70: 0.22% | K70: -3.36% | L70: -3.36% | N70: =('2007prac'!#REF!-'2007prac'!#REF!)/'2007prac'!#REF! ->  | O70: =#REF!+I70 -> 
C71: OPOLSKIE | D71: -3.87% | E71: -0.46% | F71: -0.60% | G71: 5.14% | H71: -0.46% | I71: -0.26% | K71: 0.19% | L71: 0.19% | N71: =('2007prac'!#REF!-'2007prac'!#REF!)/'2007prac'!#REF! ->  | O71: =#REF!+I71 -> 
C72: KUJAWSKO-POMORSKIE | D72: -7.07% | E72: -1.02% | F72: 0.16% | G72: 5.64% | H72: 1.67% | I72: -0.62% | K72: -1.95% | L72: -1.95% | N72: =('2007prac'!#REF!-'2007prac'!#REF!)/'2007prac'!#REF! ->  | O72: =#REF!+I72 -> 
C73: POMORSKIE | D73: -0.10% | E73: -0.20% | F73: 1.00% | G73: 0.54% | H73: -1.20% | I73: 0.03% | K73: 0.14% | L73: 0.14% | N73: =('2007prac'!#REF!-'2007prac'!#REF!)/'2007prac'!#REF! ->  | O73: =#REF!+I73 -> 
C74: WARMIŃSKO-MAZURSKIE | D74: -3.73% | E74: -1.01% | F74: -0.87% | G74: 1.90% | H74: 3.26% | I74: -0.45% | K74: -0.62% | L74: -0.62% | N74: =('2007prac'!#REF!-'2007prac'!#REF!)/'2007prac'!#REF! ->  | O74: =#REF!+I74 -> 
C77: Azij/AZi | D77: wyższe | E77: policealne oraz średnie zawodowe | F77: średnie ogólnokształcące | G77: zasadnicze zawodowe | H77: gimnazjalne, podstawowe i niższe
C78: ŁÓDZKIE | D78: =E116/$D116 -> 0.2118334551 | E78: 0.2812271731 | F78: 0.09276844412 | G78: 0.2958363769 | H78: 0.1183345508
C79: MAZOWIECKIE | D79: 0.2981341802 | E79: 0.2866216753 | F79: 0.09726081778 | G79: 0.2310440651 | H79: 0.08693926161
C80: MAŁOPOLSKIE | D80: 0.2222222222 | E80: 0.2788530466 | F80: 0.08817204301 | G80: 0.3225806452 | H80: 0.08817204301
C81: ŚLĄSKIE | D81: 0.2103071317 | E81: 0.3295158771 | F81: 0.07339927121 | G81: 0.3269130661 | H81: 0.05986465383
C82: LUBELSKIE | D82: 0.1975768872 | E82: 0.2833178006 | F82: 0.07548928239 | G82: 0.2935694315 | H82: 0.1500465983
C83: PODKARPACKIE | D83: 0.1811196487 | E83: 0.2985729967 | F83: 0.06915477497 | G83: 0.317233809 | H83: 0.1339187706
C84: PODLASKIE | D84: 0.2144288577 | E84: 0.2965931864 | F84: 0.08416833667 | G84: 0.248496994 | H84: 0.1563126253
C85: ŚWIĘTOKRZYSKIE | D85: 0.1869300912 | E85: 0.2598784195 | F85: 0.06990881459 | G85: 0.3267477204 | H85: 0.1565349544
C86: LUBUSKIE | D86: 0.1797520661 | E86: 0.2933884298 | F86: 0.07851239669 | G86: 0.3533057851 | H86: 0.09504132231
C87: WIELKOPOLSKIE | D87: 0.1830887491 | E87: 0.2732354997 | F87: 0.09154437456 | G87: 0.3647798742 | H87: 0.08735150245
C88: ZACHODNIOPOMORSKIE | D88: =E126/$D126 -> 0.2414355628 | E88: 0.2610114192 | F88: 0.1027732463 | G88: 0.2903752039 | H88: 0.1044045677
C89: DOLNOŚLĄSKIE | D89: 0.2199233716 | E89: 0.3149425287 | F89: 0.08659003831 | G89: 0.3003831418 | H89: 0.07816091954
C90: OPOLSKIE | D90: 0.1786600496 | E90: 0.2853598015 | F90: 0.0794044665 | G90: 0.3598014888 | H90: 0.09677419355
C91: KUJAWSKO-POMORSKIE | D91: 0.1483253589 | E91: 0.2799043062 | F91: 0.08732057416 | G91: 0.3648325359 | H91: 0.1196172249
C92: POMORSKIE | D92: 0.2144549763 | E92: 0.2879146919 | F92: 0.09597156398 | G92: 0.3127962085 | H92: 0.08886255924
C93: WARMIŃSKO-MAZURSKIE | D93: 0.18 | E93: 0.28 | F93: 0.07666666667 | G93: 0.3266666667 | H93: 0.1366666667
C94: POLSKA | D94: 0.2153745774 | E94: 0.2899341598 | F94: 0.08565158076 | G94: 0.307313601 | H94: 0.101726081
C96: Pzij/AZij | D96: Ogółem | E96: wyższe | F96: policealne oraz średnie zawodowe | G96: średnie ogólnokształcące | H96: zasadnicze zawodowe | I96: gimnazjalne, podstawowe i niższe
C97: ŁÓDZKIE | D97: =D135/D116 -> 0.9065010957 | E97: 0.9551724138 | F97: 0.9090909091 | G97: 0.905511811 | H97: 0.8938271605 | I97: 0.8456790123
C98: MAZOWIECKIE | D98: 0.9090909091 | E98: 0.9547270306 | F98: 0.91966759 | G98: 0.8816326531 | H98: 0.8780068729 | I98: 0.8310502283
C99: MAŁOPOLSKIE | D99: 0.9139784946 | E99: 0.9483870968 | F99: 0.9228791774 | G99: 0.8536585366 | H99: 0.9066666667 | I99: 0.8861788618
C100: ŚLĄSKIE | D100: 0.9193128579 | E100: 0.9579207921 | F100: 0.9320695103 | G100: 0.914893617 | H100: 0.9108280255 | I100: 0.7652173913
C101: LUBELSKIE | D101: 0.9058713886 | E101: 0.9433962264 | F101: 0.9243421053 | G101: 0.8271604938 | H101: 0.8857142857 | I101: 0.900621118
C102: PODKARPACKIE | D102: 0.9055982437 | E102: 0.9454545455 | F102: 0.9044117647 | G102: 0.8571428571 | H102: 0.8858131488 | I102: 0.9262295082
C103: PODLASKIE | D103: 0.9098196393 | E103: 0.9626168224 | F103: 0.9121621622 | G103: 0.880952381 | H103: 0.8790322581 | I103: 0.8974358974
C104: ŚWIĘTOKRZYSKIE | D104: 0.8814589666 | E104: 0.9105691057 | F104: 0.9005847953 | G104: 0.8260869565 | H104: 0.8604651163 | I104: 0.8834951456
C105: LUBUSKIE | D105: 0.902892562 | E105: 0.9770114943 | F105: 0.8873239437 | G105: 0.9210526316 | H105: 0.9005847953 | I105: 0.8043478261
C106: WIELKOPOLSKIE | D106: 0.9168413697 | E106: 0.9618320611 | F106: 0.9181585678 | G106: 0.9007633588 | H106: 0.9061302682 | I106: 0.88
C107: ZACHODNIOPOMORSKIE | D107: =D145/D126 -> 0.8825448613 | E107: 0.9527027027 | F107: 0.9125 | G107: 0.8253968254 | H107: 0.8651685393 | I107: 0.75
C108: DOLNOŚLĄSKIE | D108: 0.8735632184 | E108: 0.9477351916 | F108: 0.8880778589 | G108: 0.8761061947 | H108: 0.8341836735 | I108: 0.7549019608
C109: OPOLSKIE | D109: 0.905707196 | E109: 0.9583333333 | F109: 0.9130434783 | G109: 0.875 | H109: 0.9034482759 | I109: 0.8205128205
C110: KUJAWSKO-POMORSKIE | D110: 0.8863636364 | E110: 0.9596774194 | F110: 0.9230769231 | G110: 0.8630136986 | H110: 0.8524590164 | I110: 0.83
C111: POMORSKIE | D111: 0.9052132701 | E111: 0.9613259669 | F111: 0.9176954733 | G111: 0.8395061728 | H111: 0.8939393939 | I111: 0.84
C112: WARMIŃSKO-MAZURSKIE | D112: 0.8983333333 | E112: 0.962962963 | F112: 0.9345238095 | G112: 0.8695652174 | H112: 0.887755102 | I112: 0.7804878049
C113: POLSKA | D113: 0.9039682069 | E113: 0.9537317543 | F113: 0.915507365 | G113: 0.8753462604 | H113: 0.8859293573 | I113: 0.8443148688
C115: AZij | D115: Ogółem | E115: wyższe | F115: policealne oraz średnie zawodowe | G115: średnie ogólnokształcące | H115: zasadnicze zawodowe | I115: gimnazjalne, podstawowe i niższe
C116: ŁÓDZKIE | D116: 1369 | E116: 290 | F116: 385 | G116: 127 | H116: 405 | I116: 162
C117: MAZOWIECKIE | D117: 2519 | E117: 751 | F117: 722 | G117: 245 | H117: 582 | I117: 219
C118: MAŁOPOLSKIE | D118: 1395 | E118: 310 | F118: 389 | G118: 123 | H118: 450 | I118: 123
C119: ŚLĄSKIE | D119: 1921 | E119: 404 | F119: 633 | G119: 141 | H119: 628 | I119: 115
C120: LUBELSKIE | D120: 1073 | E120: 212 | F120: 304 | G120: 81 | H120: 315 | I120: 161
C121: PODKARPACKIE | D121: 911 | E121: 165 | F121: 272 | G121: 63 | H121: 289 | I121: 122
C122: PODLASKIE | D122: 499 | E122: 107 | F122: 148 | G122: 42 | H122: 124 | I122: 78
C123: ŚWIĘTOKRZYSKIE | D123: 658 | E123: 123 | F123: 171 | G123: 46 | H123: 215 | I123: 103
C124: LUBUSKIE | D124: 484 | E124: 87 | F124: 142 | G124: 38 | H124: 171 | I124: 46
C125: WIELKOPOLSKIE | D125: 1431 | E125: 262 | F125: 391 | G125: 131 | H125: 522 | I125: 125
C126: ZACHODNIOPOMORSKIE | D126: 613 | E126: 148 | F126: 160 | G126: 63 | H126: 178 | I126: 64
C127: DOLNOŚLĄSKIE | D127: 1305 | E127: 287 | F127: 411 | G127: 113 | H127: 392 | I127: 102
C128: OPOLSKIE | D128: 403 | E128: 72 | F128: 115 | G128: 32 | H128: 145 | I128: 39
C129: KUJAWSKO-POMORSKIE | D129: 836 | E129: 124 | F129: 234 | G129: 73 | H129: 305 | I129: 100
C130: POMORSKIE | D130: 844 | E130: 181 | F130: 243 | G130: 81 | H130: 264 | I130: 75
C131: WARMIŃSKO-MAZURSKIE | D131: 600 | E131: 108 | F131: 168 | G131: 46 | H131: 196 | I131: 82
C132: POLSKA | D132: 16859 | E132: 3631 | F132: 4888 | G132: 1444 | H132: 5181 | I132: 1715
C134: Pzij | D134: Ogółem | E134: wyższe | F134: policealne oraz średnie zawodowe | G134: średnie ogólnokształcące | H134: zasadnicze zawodowe | I134: gimnazjalne, podstawowe i niższe
C135: ŁÓDZKIE | D135: 1241 | E135: 277 | F135: 350 | G135: 115 | H135: 362 | I135: 137
C136: MAZOWIECKIE | D136: 2290 | E136: 717 | F136: 664 | G136: 216 | H136: 511 | I136: 182
C137: MAŁOPOLSKIE | D137: 1275 | E137: 294 | F137: 359 | G137: 105 | H137: 408 | I137: 109
C138: ŚLĄSKIE | D138: 1766 | E138: 387 | F138: 590 | G138: 129 | H138: 572 | I138: 88
C139: LUBELSKIE | D139: 972 | E139: 200 | F139: 281 | G139: 67 | H139: 279 | I139: 145
C140: PODKARPACKIE | D140: 825 | E140: 156 | F140: 246 | G140: 54 | H140: 256 | I140: 113
C141: PODLASKIE | D141: 454 | E141: 103 | F141: 135 | G141: 37 | H141: 109 | I141: 70
C142: ŚWIĘTOKRZYSKIE | D142: 580 | E142: 112 | F142: 154 | G142: 38 | H142: 185 | I142: 91
C143: LUBUSKIE | D143: 437 | E143: 85 | F143: 126 | G143: 35 | H143: 154 | I143: 37
C144: WIELKOPOLSKIE | D144: 1312 | E144: 252 | F144: 359 | G144: 118 | H144: 473 | I144: 110
C145: ZACHODNIOPOMORSKIE | D145: 541 | E145: 141 | F145: 146 | G145: 52 | H145: 154 | I145: 48
C146: DOLNOŚLĄSKIE | D146: 1140 | E146: 272 | F146: 365 | G146: 99 | H146: 327 | I146: 77
C147: OPOLSKIE | D147: 365 | E147: 69 | F147: 105 | G147: 28 | H147: 131 | I147: 32
C148: KUJAWSKO-POMORSKIE | D148: 741 | E148: 119 | F148: 216 | G148: 63 | H148: 260 | I148: 83
C149: POMORSKIE | D149: 764 | E149: 174 | F149: 223 | G149: 68 | H149: 236 | I149: 63
C150: WARMIŃSKO-MAZURSKIE | D150: 539 | E150: 104 | F150: 157 | G150: 40 | H150: 174 | I150: 64
C151: POLSKA | D151: 15240 | E151: 3463 | F151: 4475 | G151: 1264 | H151: 4590 | I151: 1448

Sheet 2002prac (hidden)
B1: Poddekompozycja różnic w udziale PRACUJĄCYCH wśród aktywnych zawodowo
B2: 2002
C4: Sekcje | D4: wyższe | E4: policealne oraz średnie zawodowe | F4: średnie ogólnokształcące | G4: zasadnicze zawodowe | H4: gimnazjalne, podstawowe i niższe
B5: ŁÓDZKIE | C5: Roznice w efektywnosci rynku pracy | D5: =D41 -> -0.7% | E5: =E41 -> -0.0% | F5: =F41 -> -0.1% | G5: =G41 -> 0.4% | H5: =H41 -> -0.1%
C6: Profil wyksztalcenia | D6: =D59 -> 0.7% | E6: =E59 -> -0.5% | F6: =F59 -> 1.1% | G6: =G59 -> -4.3% | H6: =H59 -> 3.1%
B7: MAZOWIECKIE | C7: Roznice w efektywnosci rynku pracy | D7: =D42 -> 0.2% | E7: =E42 -> 0.8% | F7: =F42 -> 0.5% | G7: =G42 -> 0.4% | H7: =H42 -> 0.7%
C8: Profil wyksztalcenia | D8: =D60 -> 4.2% | E8: =E60 -> 1.1% | F8: =F60 -> 1.8% | G8: =G60 -> -6.4% | H8: =H60 -> 0.1%
B9: MAŁOPOLSKIE | C9: Roznice w efektywnosci rynku pracy | D9: =D43 -> 0.1% | E9: =E43 -> 0.7% | F9: =F43 -> -0.1% | G9: =G43 -> 2.2% | H9: =H43 -> 1.8%
C10: Profil wyksztalcenia | D10: =D61 -> 1.2% | E10: =E61 -> -1.8% | F10: =F61 -> -0.5% | G10: =G61 -> 2.2% | H10: =H61 -> -0.9%
B11: ŚLĄSKIE | C11: Roznice w efektywnosci rynku pracy | D11: =D44 -> 0.3% | E11: =E44 -> 0.4% | F11: =F44 -> 0.2% | G11: =G44 -> -0.2% | H11: =H44 -> -1.2%
C12: Profil wyksztalcenia | D12: =D62 -> -1.0% | E12: =E62 -> 2.1% | F12: =F62 -> 1.0% | G12: =G62 -> 3.6% | H12: =H62 -> -5.5%
B13: LUBELSKIE | C13: Roznice w efektywnosci rynku pracy | D13: =D45 -> -0.3% | E13: =E45 -> -0.4% | F13: =F45 -> -0.1% | G13: =G45 -> 1.7% | H13: =H45 -> 3.4%
C14: Profil wyksztalcenia | D14: =D63 -> 0.9% | E14: =E63 -> -1.6% | F14: =F63 -> -0.4% | G14: =G63 -> -4.2% | H14: =H63 -> 5.2%
B15: PODKARPACKIE | C15: Roznice w efektywnosci rynku pracy | D15: =D46 -> -0.3% | E15: =E46 -> -0.8% | F15: =F46 -> 0.1% | G15: =G46 -> 1.0% | H15: =H46 -> 2.6%
C16: Profil wyksztalcenia | D16: =D64 -> -2.5% | E16: =E64 -> 1.0% | F16: =F64 -> -1.4% | G16: =G64 -> -0.6% | H16: =H64 -> 3.0%
B17: PODLASKIE | C17: Roznice w efektywnosci rynku pracy | D17: =D47 -> 0.1% | E17: =E47 -> -0.4% | F17: =F47 -> -0.3% | G17: =G47 -> 1.2% | H17: =H47 -> 3.1%
C18: Profil wyksztalcenia | D18: =D65 -> 0.3% | E18: =E65 -> -0.6% | F18: =F65 -> -0.8% | G18: =G65 -> -5.8% | H18: =H65 -> 6.8%
B19: ŚWIĘTOKRZYSKIE | C19: Roznice w efektywnosci rynku pracy | D19: =D48 -> -0.8% | E19: =E48 -> -0.1% | F19: =F48 -> -0.4% | G19: =G48 -> -0.1% | H19: =H48 -> 2.7%
C20: Profil wyksztalcenia | D20: =D66 -> 0.2% | E20: =E66 -> 0.8% | F20: =F66 -> -1.5% | G20: =G66 -> -0.2% | H20: =H66 -> 0.8%
B21: LUBUSKIE | C21: Roznice w efektywnosci rynku pracy | D21: =D49 -> 0.3% | E21: =E49 -> -2.1% | F21: =F49 -> 0.1% | G21: =G49 -> -3.7% | H21: =H49 -> -2.0%
C22: Profil wyksztalcenia | D22: =D67 -> -2.0% | E22: =E67 -> -0.9% | F22: =F67 -> 0.4% | G22: =G67 -> 5.0% | H22: =H67 -> -2.9%
B23: WIELKOPOLSKIE | C23: Roznice w efektywnosci rynku pracy | D23: =D50 -> 0.0% | E23: =E50 -> 0.4% | F23: =F50 -> 0.2% | G23: =G50 -> 1.6% | H23: =H50 -> 0.5%
C24: Profil wyksztalcenia | D24: =D68 -> -2.5% | E24: =E68 -> -1.0% | F24: =F68 -> -0.9% | G24: =G68 -> 5.2% | H24: =H68 -> -1.3%
B25: ZACHODNIOPOMORSKIE | C25: Roznice w efektywnosci rynku pracy | D25: =D51 -> -0.0% | E25: =E51 -> -1.1% | F25: =F51 -> -0.3% | G25: =G51 -> -2.6% | H25: =H51 -> -3.5%
C26: Profil wyksztalcenia | D26: =D69 -> -1.4% | E26: =E69 -> 0.0% | F26: =F69 -> 0.9% | G26: =G69 -> 0.7% | H26: =H69 -> -0.5%
B27: DOLNOŚLĄSKIE | C27: Roznice w efektywnosci rynku pracy | D27: =D52 -> 0.0% | E27: =E52 -> -1.2% | F27: =F52 -> -0.5% | G27: =G52 -> -3.0% | H27: =H52 -> -3.1%
C28: Profil wyksztalcenia | D28: =D70 -> -0.3% | E28: =E70 -> 1.9% | F28: =F70 -> -0.6% | G28: =G70 -> 0.9% | H28: =H70 -> -1.7%
B29: OPOLSKIE | C29: Roznice w efektywnosci rynku pracy | D29: =D53 -> -0.3% | E29: =E53 -> 0.4% | F29: =F53 -> -0.1% | G29: =G53 -> 0.6% | H29: =H53 -> -0.1%
C30: Profil wyksztalcenia | D30: =D71 -> -1.3% | E30: =E71 -> -2.3% | F30: =F71 -> -1.2% | G30: =G71 -> 5.4% | H30: =H71 -> -1.1%
B31: KUJAWSKO-POMORSKIE | C31: Roznice w efektywnosci rynku pracy | D31: =D54 -> 0.3% | E31: =E54 -> 0.6% | F31: =F54 -> -0.0% | G31: =G54 -> -0.9% | H31: =H54 -> -1.2%
C32: Profil wyksztalcenia | D32: =D72 -> -2.6% | E32: =E72 -> -0.6% | F32: =F72 -> -1.4% | G32: =G72 -> 4.5% | H32: =H72 -> -0.4%
B33: POMORSKIE | C33: Roznice w efektywnosci rynku pracy | D33: =D55 -> 0.4% | E33: =E55 -> 0.5% | F33: =F55 -> 0.1% | G33: =G55 -> -0.7% | H33: =H55 -> -2.3%
C34: Profil wyksztalcenia | D34: =D73 -> 0.7% | E34: =E73 -> -2.6% | F34: =F73 -> 0.6% | G34: =G73 -> 1.7% | H34: =H73 -> -0.5%
B35: WARMIŃSKO-MAZURSKIE | C35: Roznice w efektywnosci rynku pracy | D35: =D56 -> 0.5% | E35: =E56 -> -1.1% | F35: =F56 -> -0.9% | G35: =G56 -> -3.0% | H35: =H56 -> -2.8%
C36: Profil wyksztalcenia | D36: =D74 -> -2.0% | E36: =E74 -> 1.5% | F36: =F74 -> -1.6% | G36: =G74 -> -2.2% | H36: =H74 -> 3.9%
C40: Różnice w efektywności rynku pracy | D40: wyższe | E40: policealne oraz średnie zawodowe | F40: średnie ogólnokształcące | G40: zasadnicze zawodowe | H40: gimnazjalne, podstawowe i niższe | I40: SUMA (**)
C41: ŁÓDZKIE | D41: =D78*(E97-E$113)/$D$113 -> -0.70% | E41: -0.02% | F41: -0.14% | G41: 0.37% | H41: -0.07% | I41: =SUM(D41:H41) -> -0.56%
C42: MAZOWIECKIE | D42: 0.21% | E42: 0.83% | F42: 0.49% | G42: 0.42% | H42: 0.73% | I42: 2.68%
C43: MAŁOPOLSKIE | D43: 0.09% | E43: 0.69% | F43: -0.09% | G43: 2.21% | H43: 1.78% | I43: 4.68%
C44: ŚLĄSKIE | D44: 0.35% | E44: 0.42% | F44: 0.24% | G44: -0.16% | H44: -1.15% | I44: -0.31%
C45: LUBELSKIE | D45: -0.34% | E45: -0.44% | F45: -0.07% | G45: 1.74% | H45: 3.41% | I45: 4.29%
C46: PODKARPACKIE | D46: -0.28% | E46: -0.79% | F46: 0.10% | G46: 0.99% | H46: 2.57% | I46: 2.60%
C47: PODLASKIE | D47: 0.14% | E47: -0.44% | F47: -0.26% | G47: 1.23% | H47: 3.06% | I47: 3.73%
C48: ŚWIĘTOKRZYSKIE | D48: -0.79% | E48: -0.10% | F48: -0.44% | G48: -0.11% | H48: 2.66% | I48: 1.22%
C49: LUBUSKIE | D49: 0.34% | E49: -2.06% | F49: 0.09% | G49: -3.67% | H49: -2.05% | I49: -7.36%
C50: WIELKOPOLSKIE | D50: 0.02% | E50: 0.37% | F50: 0.22% | G50: 1.58% | H50: 0.55% | I50: 2.74%
C51: ZACHODNIOPOMORSKIE | D51: =D88*(E107-E$113)/$D$113 -> -0.00% | E51: -1.14% | F51: -0.27% | G51: -2.56% | H51: -3.51% | I51: -7.47%
C52: DOLNOŚLĄSKIE | D52: 0.04% | E52: -1.20% | F52: -0.53% | G52: -2.96% | H52: -3.07% | I52: -7.71%
C53: OPOLSKIE | D53: -0.29% | E53: 0.44% | F53: -0.14% | G53: 0.57% | H53: -0.12% | I53: 0.47%
C54: KUJAWSKO-POMORSKIE | D54: 0.32% | E54: 0.60% | F54: -0.01% | G54: -0.92% | H54: -1.16% | I54: -1.17%
C55: POMORSKIE | D55: 0.36% | E55: 0.53% | F55: 0.13% | G55: -0.66% | H55: -2.27% | I55: -1.90%
C56: WARMIŃSKO-MAZURSKIE | D56: 0.49% | E56: -1.08% | F56: -0.92% | G56: -2.97% | H56: -2.79% | I56: -7.27%
C58: Profil wyksztalcenia | D58: wyższe | E58: policealne oraz średnie zawodowe | F58: średnie ogólnokształcące | G58: zasadnicze zawodowe | H58: gimnazjalne, podstawowe i niższe | I58: SUMA (**) | K58: (Pzi/AZi-PZ/AZ)/(PZ/AZ) | L58: Weryfikacja | N58: (Pzi/AZi-PZ/AZ)/(PZ/AZ) | O58: Weryfikacja
C59: ŁÓDZKIE | D59: =E$113*(D78-D$94)/$D$113 -> 0.66% | E59: -0.53% | F59: 1.11% | G59: -4.32% | H59: 3.12% | I59: =SUM(D59:H59) -> 0.04% | K59: =(D97-D$113)/D$113 -> -0.53% | L59: =I41+I59 -> -0.53% | N59: =('2002prac'!#REF!-'2002prac'!#REF!)/'2002prac'!#REF! ->  | O59: =#REF!+I59 -> 
C60: MAZOWIECKIE | D60: 4.23% | E60: 1.14% | F60: 1.85% | G60: -6.40% | H60: 0.09% | I60: 0.91% | K60: 3.59% | L60: 3.59% | N60: =('2002prac'!#REF!-'2002prac'!#REF!)/'2002prac'!#REF! ->  | O60: =#REF!+I60 -> 
C61: MAŁOPOLSKIE | D61: 1.18% | E61: -1.82% | F61: -0.54% | G61: 2.18% | H61: -0.94% | I61: 0.06% | K61: 4.74% | L61: 4.74% | N61: =('2002prac'!#REF!-'2002prac'!#REF!)/'2002prac'!#REF! ->  | O61: =#REF!+I61 -> 
C62: ŚLĄSKIE | D62: -0.98% | E62: 2.08% | F62: 0.96% | G62: 3.59% | H62: -5.55% | I62: 0.11% | K62: -0.20% | L62: -0.20% | N62: =('2002prac'!#REF!-'2002prac'!#REF!)/'2002prac'!#REF! ->  | O62: =#REF!+I62 -> 
C63: LUBELSKIE | D63: 0.91% | E63: -1.57% | F63: -0.36% | G63: -4.23% | H63: 5.19% | I63: -0.06% | K63: 4.23% | L63: 4.23% | N63: =('2002prac'!#REF!-'2002prac'!#REF!)/'2002prac'!#REF! ->  | O63: =#REF!+I63 -> 
C64: PODKARPACKIE | D64: -2.49% | E64: 1.03% | F64: -1.39% | G64: -0.57% | H64: 2.98% | I64: -0.44% | K64: 2.16% | L64: 2.16% | N64: =('2002prac'!#REF!-'2002prac'!#REF!)/'2002prac'!#REF! ->  | O64: =#REF!+I64 -> 
C65: PODLASKIE | D65: 0.35% | E65: -0.63% | F65: -0.77% | G65: -5.84% | H65: 6.78% | I65: -0.11% | K65: 3.62% | L65: 3.62% | N65: =('2002prac'!#REF!-'2002prac'!#REF!)/'2002prac'!#REF! ->  | O65: =#REF!+I65 -> 
C66: ŚWIĘTOKRZYSKIE | D66: 0.16% | E66: 0.75% | F66: -1.48% | G66: -0.18% | H66: 0.80% | I66: 0.06% | K66: 1.28% | L66: 1.28% | N66: =('2002prac'!#REF!-'2002prac'!#REF!)/'2002prac'!#REF! ->  | O66: =#REF!+I66 -> 
C67: LUBUSKIE | D67: -1.99% | E67: -0.94% | F67: 0.44% | G67: 5.02% | H67: -2.92% | I67: -0.40% | K67: -7.75% | L67: -7.75% | N67: =('2002prac'!#REF!-'2002prac'!#REF!)/'2002prac'!#REF! ->  | O67: =#REF!+I67 -> 
C68: WIELKOPOLSKIE | D68: -2.49% | E68: -1.00% | F68: -0.92% | G68: 5.22% | H68: -1.35% | I68: -0.54% | K68: 2.20% | L68: 2.20% | N68: =('2002prac'!#REF!-'2002prac'!#REF!)/'2002prac'!#REF! ->  | O68: =#REF!+I68 -> 
C69: ZACHODNIOPOMORSKIE | D69: =E$113*(D88-D$94)/$D$113 -> -1.36% | E69: 0.04% | F69: 0.91% | G69: 0.73% | H69: -0.54% | I69: -0.23% | K69: -7.70% | L69: -7.70% | N69: =('2002prac'!#REF!-'2002prac'!#REF!)/'2002prac'!#REF! ->  | O69: =#REF!+I69 -> 
C70: DOLNOŚLĄSKIE | D70: -0.32% | E70: 1.86% | F70: -0.65% | G70: 0.94% | H70: -1.71% | I70: 0.13% | K70: -7.59% | L70: -7.59% | N70: =('2002prac'!#REF!-'2002prac'!#REF!)/'2002prac'!#REF! ->  | O70: =#REF!+I70 -> 
C71: OPOLSKIE | D71: -1.25% | E71: -2.27% | F71: -1.23% | G71: 5.45% | H71: -1.12% | I71: -0.43% | K71: 0.03% | L71: 0.03% | N71: =('2002prac'!#REF!-'2002prac'!#REF!)/'2002prac'!#REF! ->  | O71: =#REF!+I71 -> 
C72: KUJAWSKO-POMORSKIE | D72: -2.62% | E72: -0.60% | F72: -1.44% | G72: 4.47% | H72: -0.36% | I72: -0.55% | K72: -1.72% | L72: -1.72% | N72: =('2002prac'!#REF!-'2002prac'!#REF!)/'2002prac'!#REF! ->  | O72: =#REF!+I72 -> 
C73: POMORSKIE | D73: 0.71% | E73: -2.62% | F73: 0.63% | G73: 1.70% | H73: -0.50% | I73: -0.09% | K73: -1.99% | L73: -1.99% | N73: =('2002prac'!#REF!-'2002prac'!#REF!)/'2002prac'!#REF! ->  | O73: =#REF!+I73 -> 
C74: WARMIŃSKO-MAZURSKIE | D74: -1.98% | E74: 1.47% | F74: -1.57% | G74: -2.17% | H74: 3.93% | I74: -0.32% | K74: -7.59% | L74: -7.59% | N74: =('2002prac'!#REF!-'2002prac'!#REF!)/'2002prac'!#REF! ->  | O74: =#REF!+I74 -> 
C77: Azij/AZi | D77: wyższe | E77: policealne oraz średnie zawodowe | F77: średnie ogólnokształcące | G77: zasadnicze zawodowe | H77: gimnazjalne, podstawowe i niższe
C78: ŁÓDZKIE | D78: =E116/$D116 -> 0.145280236 | E78: 0.2861356932 | F78: 0.08997050147 | G78: 0.2994100295 | H78: 0.1792035398
C79: MAZOWIECKIE | D79: 0.176168024 | E79: 0.3021860266 | F79: 0.09772824689 | G79: 0.2773253322 | H79: 0.1465923703
C80: MAŁOPOLSKIE | D80: 0.1497617427 | E80: 0.273655548 | F80: 0.07283866576 | G80: 0.36827774 | H80: 0.1354663036
C81: ŚLĄSKIE | D81: 0.1311816762 | E81: 0.3112961999 | F81: 0.08849557522 | G81: 0.3831337845 | H81: 0.08589276419
C82: LUBELSKIE | D82: 0.1474820144 | E82: 0.2760791367 | F82: 0.07464028777 | G82: 0.3003597122 | H82: 0.2014388489
C83: PODKARPACKIE | D83: 0.1180931744 | E83: 0.301191766 | F83: 0.0639219935 | G83: 0.3391115926 | H83: 0.1776814735
C84: PODLASKIE | D84: 0.1425925926 | E84: 0.2851851852 | F84: 0.07037037037 | G84: 0.2833333333 | H84: 0.2185185185
C85: ŚWIĘTOKRZYSKIE | D85: 0.1409618574 | E85: 0.2985074627 | F85: 0.06301824212 | G85: 0.3432835821 | H85: 0.1542288557
C86: LUBUSKIE | D86: 0.122406639 | E86: 0.2821576763 | F86: 0.08298755187 | G86: 0.398340249 | H86: 0.1141078838
C87: WIELKOPOLSKIE | D87: 0.1181051265 | E87: 0.2816353018 | F87: 0.06878650227 | G87: 0.4003893576 | H87: 0.1310837119
C88: ZACHODNIOPOMORSKIE | D88: =E126/$D126 -> 0.1278295606 | E88: 0.2916111851 | F88: 0.0878828229 | G88: 0.3528628495 | H88: 0.1398135819
C89: DOLNOŚLĄSKIE | D89: 0.1368760064 | E89: 0.309178744 | F89: 0.07165861514 | G89: 0.3550724638 | H89: 0.1272141707
C90: OPOLSKIE | D90: 0.1288056206 | E90: 0.2693208431 | F90: 0.06557377049 | G90: 0.4028103044 | H90: 0.1334894614
C91: KUJAWSKO-POMORSKIE | D91: 0.1169474727 | E91: 0.2854311199 | F91: 0.06342913776 | G91: 0.3924677899 | H91: 0.1417244797
C92: POMORSKIE | D92: 0.1456953642 | E92: 0.266004415 | F92: 0.08498896247 | G92: 0.3631346578 | H92: 0.1401766004
C93: WARMIŃSKO-MAZURSKIE | D93: 0.1224832215 | E93: 0.3053691275 | F93: 0.06208053691 | G93: 0.322147651 | H93: 0.1879194631
C94: POLSKA | D94: 0.1396037878 | E94: 0.2912333701 | F94: 0.07842909429 | G94: 0.3451461105 | H94: 0.1455876373
C96: Pzij/AZij | D96: Ogółem | E96: wyższe | F96: policealne oraz średnie zawodowe | G96: średnie ogólnokształcące | H96: zasadnicze zawodowe | I96: gimnazjalne, podstawowe i niższe
C97: ŁÓDZKIE | D97: =D135/D116 -> 0.796460177 | E97: 0.8883248731 | F97: 0.8298969072 | G97: 0.7540983607 | H97: 0.7660098522 | I97: 0.7407407407
C98: MAZOWIECKIE | D98: 0.8294042006 | E98: 0.9367396594 | F98: 0.8524822695 | G98: 0.8070175439 | H98: 0.7681607419 | I98: 0.783625731
C99: MAŁOPOLSKIE | D99: 0.838665759 | E99: 0.9318181818 | F99: 0.8507462687 | G99: 0.7570093458 | H99: 0.8040665434 | I99: 0.8492462312
C100: ŚLĄSKIE | D100: 0.799062988 | E100: 0.9484126984 | F100: 0.8411371237 | G100: 0.7882352941 | H100: 0.7527173913 | I100: 0.6363636364
C101: LUBELSKIE | D101: 0.8345323741 | E101: 0.9085365854 | F101: 0.8175895765 | G101: 0.7590361446 | H101: 0.8023952096 | I101: 0.8794642857
C102: PODKARPACKIE | D102: 0.8179848321 | E102: 0.9082568807 | F102: 0.809352518 | G102: 0.7796610169 | H102: 0.7795527157 | I102: 0.8597560976
C103: PODLASKIE | D103: 0.8296296296 | E103: 0.9350649351 | F103: 0.8181818182 | G103: 0.7368421053 | H103: 0.7908496732 | I103: 0.8559322034
C104: ŚWIĘTOKRZYSKIE | D104: 0.8109452736 | E104: 0.8823529412 | F104: 0.8277777778 | G104: 0.7105263158 | H104: 0.7536231884 | I104: 0.8817204301
C105: LUBUSKIE | D105: 0.7385892116 | E105: 0.9491525424 | F105: 0.7720588235 | G105: 0.775 | H105: 0.6822916667 | I105: 0.6
C106: WIELKOPOLSKIE | D106: 0.8182998053 | E106: 0.9285714286 | F106: 0.8410138249 | G106: 0.7924528302 | H106: 0.7876823339 | I106: 0.7772277228
C107: ZACHODNIOPOMORSKIE | D107: =D145/D126 -> 0.7390146471 | E107: 0.9270833333 | F107: 0.799086758 | G107: 0.7424242424 | H107: 0.6981132075 | I107: 0.5428571429
C108: DOLNOŚLĄSKIE | D108: 0.7399355878 | E108: 0.9294117647 | F108: 0.7994791667 | G108: 0.7078651685 | H108: 0.6893424036 | I108: 0.5506329114
C109: OPOLSKIE | D109: 0.8009367681 | E109: 0.9090909091 | F109: 0.8434782609 | G109: 0.75 | H109: 0.7674418605 | I109: 0.7368421053
C110: KUJAWSKO-POMORSKIE | D110: 0.7869177403 | E110: 0.9491525424 | F110: 0.8472222222 | G110: 0.765625 | H110: 0.7373737374 | I110: 0.6783216783
C111: POMORSKIE | D111: 0.7847682119 | E111: 0.946969697 | F111: 0.846473029 | G111: 0.7792207792 | H111: 0.7416413374 | I111: 0.6141732283
C112: WARMIŃSKO-MAZURSKIE | D112: 0.7399328859 | E112: 0.9589041096 | F112: 0.8021978022 | G112: 0.6486486486 | H112: 0.6822916667 | I112: 0.625
C113: POLSKA | D113: 0.8006739093 | E113: 0.9271743654 | F113: 0.8304408538 | G113: 0.7666666667 | H113: 0.7561016664 | I113: 0.7438148444
C115: AZij | D115: Ogółem | E115: wyższe | F115: policealne oraz średnie zawodowe | G115: średnie ogólnokształcące | H115: zasadnicze zawodowe | I115: gimnazjalne, podstawowe i niższe
C116: ŁÓDZKIE | D116: 1356 | E116: 197 | F116: 388 | G116: 122 | H116: 406 | I116: 243
C117: MAZOWIECKIE | D117: 2333 | E117: 411 | F117: 705 | G117: 228 | H117: 647 | I117: 342
C118: MAŁOPOLSKIE | D118: 1469 | E118: 220 | F118: 402 | G118: 107 | H118: 541 | I118: 199
C119: ŚLĄSKIE | D119: 1921 | E119: 252 | F119: 598 | G119: 170 | H119: 736 | I119: 165
C120: LUBELSKIE | D120: 1112 | E120: 164 | F120: 307 | G120: 83 | H120: 334 | I120: 224
C121: PODKARPACKIE | D121: 923 | E121: 109 | F121: 278 | G121: 59 | H121: 313 | I121: 164
C122: PODLASKIE | D122: 540 | E122: 77 | F122: 154 | G122: 38 | H122: 153 | I122: 118
C123: ŚWIĘTOKRZYSKIE | D123: 603 | E123: 85 | F123: 180 | G123: 38 | H123: 207 | I123: 93
C124: LUBUSKIE | D124: 482 | E124: 59 | F124: 136 | G124: 40 | H124: 192 | I124: 55
C125: WIELKOPOLSKIE | D125: 1541 | E125: 182 | F125: 434 | G125: 106 | H125: 617 | I125: 202
C126: ZACHODNIOPOMORSKIE | D126: 751 | E126: 96 | F126: 219 | G126: 66 | H126: 265 | I126: 105
C127: DOLNOŚLĄSKIE | D127: 1242 | E127: 170 | F127: 384 | G127: 89 | H127: 441 | I127: 158
C128: OPOLSKIE | D128: 427 | E128: 55 | F128: 115 | G128: 28 | H128: 172 | I128: 57
C129: KUJAWSKO-POMORSKIE | D129: 1009 | E129: 118 | F129: 288 | G129: 64 | H129: 396 | I129: 143
C130: POMORSKIE | D130: 906 | E130: 132 | F130: 241 | G130: 77 | H130: 329 | I130: 127
C131: WARMIŃSKO-MAZURSKIE | D131: 596 | E131: 73 | F131: 182 | G131: 37 | H131: 192 | I131: 112
C132: POLSKA | D132: 17213 | E132: 2403 | F132: 5013 | G132: 1350 | H132: 5941 | I132: 2506
C134: Pzij | D134: Ogółem | E134: wyższe | F134: policealne oraz średnie zawodowe | G134: średnie ogólnokształcące | H134: zasadnicze zawodowe | I134: gimnazjalne, podstawowe i niższe
C135: ŁÓDZKIE | D135: 1080 | E135: 175 | F135: 322 | G135: 92 | H135: 311 | I135: 180
C136: MAZOWIECKIE | D136: 1935 | E136: 385 | F136: 601 | G136: 184 | H136: 497 | I136: 268
C137: MAŁOPOLSKIE | D137: 1232 | E137: 205 | F137: 342 | G137: 81 | H137: 435 | I137: 169
C138: ŚLĄSKIE | D138: 1535 | E138: 239 | F138: 503 | G138: 134 | H138: 554 | I138: 105
C139: LUBELSKIE | D139: 928 | E139: 149 | F139: 251 | G139: 63 | H139: 268 | I139: 197
C140: PODKARPACKIE | D140: 755 | E140: 99 | F140: 225 | G140: 46 | H140: 244 | I140: 141
C141: PODLASKIE | D141: 448 | E141: 72 | F141: 126 | G141: 28 | H141: 121 | I141: 101
C142: ŚWIĘTOKRZYSKIE | D142: 489 | E142: 75 | F142: 149 | G142: 27 | H142: 156 | I142: 82
C143: LUBUSKIE | D143: 356 | E143: 56 | F143: 105 | G143: 31 | H143: 131 | I143: 33
C144: WIELKOPOLSKIE | D144: 1261 | E144: 169 | F144: 365 | G144: 84 | H144: 486 | I144: 157
C145: ZACHODNIOPOMORSKIE | D145: 555 | E145: 89 | F145: 175 | G145: 49 | H145: 185 | I145: 57
C146: DOLNOŚLĄSKIE | D146: 919 | E146: 158 | F146: 307 | G146: 63 | H146: 304 | I146: 87
C147: OPOLSKIE | D147: 342 | E147: 50 | F147: 97 | G147: 21 | H147: 132 | I147: 42
C148: KUJAWSKO-POMORSKIE | D148: 794 | E148: 112 | F148: 244 | G148: 49 | H148: 292 | I148: 97
C149: POMORSKIE | D149: 711 | E149: 125 | F149: 204 | G149: 60 | H149: 244 | I149: 78
C150: WARMIŃSKO-MAZURSKIE | D150: 441 | E150: 70 | F150: 146 | G150: 24 | H150: 131 | I150: 70
C151: POLSKA | D151: 13782 | E151: 2228 | F151: 4163 | G151: 1035 | H151: 4492 | I151: 1864

Sheet 2012akt (hidden)
B1: Poddekompozycja różnic we współczynniku AKTYWNOŚCI ZAWODOWEJ
B2: 2012
C4: Sekcje | D4: 15-29 | E4: 30-39 | F4: 40-49 | G4: 50 i więcej
B5: ŁÓDZKIE | C5: Poziom uczestnictwa w rynku pracy | D5: =D41 -> 0.3% | E5: =E41 -> 0.8% | F5: =F41 -> 0.7% | G5: =G41 -> 0.2%
C6: Profil struktury wiekowej | D6: =D61 -> -1.3% | E6: =E61 -> -0.9% | F6: =F61 -> 0.2% | G6: =G61 -> 1.1%
B7: MAZOWIECKIE | C7: Poziom uczestnictwa w rynku pracy | D7: =D42 -> 1.0% | E7: =E42 -> 0.9% | F7: =F42 -> 1.0% | G7: =G42 -> 3.2%
C8: Profil struktury wiekowej | D8: =D62 -> -0.5% | E8: =E62 -> 3.2% | F8: =F62 -> -0.1% | G8: =G62 -> -0.9%
B9: MAŁOPOLSKIE | C9: Poziom uczestnictwa w rynku pracy | D9: =D43 -> -0.9% | E9: =E43 -> 0.0% | F9: =F43 -> 0.1% | G9: =G43 -> -0.6%
C10: Profil struktury wiekowej | D10: =D63 -> 2.8% | E10: =E63 -> -1.3% | F10: =F63 -> 0.3% | G10: =G63 -> -1.4%
B11: ŚLĄSKIE | C11: Poziom uczestnictwa w rynku pracy | D11: =D44 -> 0.9% | E11: =E44 -> -0.2% | F11: =F44 -> -0.7% | G11: =G44 -> -3.6%
C12: Profil struktury wiekowej | D12: =D64 -> -1.5% | E12: =E64 -> -0.4% | F12: =F64 -> 0.2% | G12: =G64 -> 1.1%
B13: LUBELSKIE | C13: Poziom uczestnictwa w rynku pracy | D13: =D45 -> -1.3% | E13: =E45 -> 0.7% | F13: =F45 -> 0.6% | G13: =G45 -> 1.2%
C14: Profil struktury wiekowej | D14: =D65 -> 0.4% | E14: =E65 -> -0.3% | F14: =F65 -> 0.1% | G14: =G65 -> -0.1%
B15: PODKARPACKIE | C15: Poziom uczestnictwa w rynku pracy | D15: =D46 -> -1.8% | E15: =E46 -> 0.0% | F15: =F46 -> 0.0% | G15: =G46 -> 1.8%
C16: Profil struktury wiekowej | D16: =D66 -> 1.6% | E16: =E66 -> -0.6% | F16: =F66 -> 0.9% | G16: =G66 -> -1.2%
B17: PODLASKIE | C17: Poziom uczestnictwa w rynku pracy | D17: =D47 -> -1.7% | E17: =E47 -> 0.4% | F17: =F47 -> 0.8% | G17: =G47 -> 0.6%
C18: Profil struktury wiekowej | D18: =D67 -> -0.1% | E18: =E67 -> -2.2% | F18: =F67 -> 1.7% | G18: =G67 -> 0.3%
B19: ŚWIĘTOKRZYSKIE | C19: Poziom uczestnictwa w rynku pracy | D19: =D48 -> 0.4% | E19: =E48 -> 0.4% | F19: =F48 -> 0.7% | G19: =G48 -> 2.0%
C20: Profil struktury wiekowej | D20: =D68 -> -0.2% | E20: =E68 -> -1.1% | F20: =F68 -> -0.5% | G20: =G68 -> 0.7%
B21: LUBUSKIE | C21: Poziom uczestnictwa w rynku pracy | D21: =D49 -> -0.3% | E21: =E49 -> -1.2% | F21: =F49 -> -0.9% | G21: =G49 -> -1.3%
C22: Profil struktury wiekowej | D22: =D69 -> -0.8% | E22: =E69 -> 0.5% | F22: =F69 -> -0.1% | G22: =G69 -> 0.4%
B23: WIELKOPOLSKIE | C23: Poziom uczestnictwa w rynku pracy | D23: =D50 -> 1.4% | E23: =E50 -> -0.0% | F23: =F50 -> -0.5% | G23: =G50 -> 0.4%
C24: Profil struktury wiekowej | D24: =D70 -> 1.7% | E24: =E70 -> 0.8% | F24: =F70 -> 0.1% | G24: =G70 -> -1.5%
B25: ZACHODNIOPOMORSKIE | C25: Poziom uczestnictwa w rynku pracy | D25: =D51 -> -1.5% | E25: =E51 -> -1.4% | F25: =F51 -> -0.7% | G25: =G51 -> -1.2%
C26: Profil struktury wiekowej | D26: =D71 -> -1.7% | E26: =E71 -> -0.0% | F26: =F71 -> -2.1% | G26: =G71 -> 1.9%
B27: DOLNOŚLĄSKIE | C27: Poziom uczestnictwa w rynku pracy | D27: =D52 -> 0.0% | E27: =E52 -> -0.3% | F27: =F52 -> -0.1% | G27: =G52 -> -0.4%
C28: Profil struktury wiekowej | D28: =D72 -> -0.9% | E28: =E72 -> -1.7% | F28: =F72 -> -2.4% | G28: =G72 -> 2.2%
B29: OPOLSKIE | C29: Poziom uczestnictwa w rynku pracy | D29: =D53 -> 0.7% | E29: =E53 -> -0.6% | F29: =F53 -> -0.3% | G29: =G53 -> -1.0%
C30: Profil struktury wiekowej | D30: =D73 -> -1.7% | E30: =E73 -> -2.3% | F30: =F73 -> 1.0% | G30: =G73 -> 1.6%
B31: KUJAWSKO-POMORSKIE | C31: Poziom uczestnictwa w rynku pracy | D31: =D54 -> -0.0% | E31: =E54 -> -0.3% | F31: =F54 -> 0.0% | G31: =G54 -> 0.2%
C32: Profil struktury wiekowej | D32: =D74 -> 0.7% | E32: =E74 -> -0.9% | F32: =F74 -> 1.9% | G32: =G74 -> -0.8%
B33: POMORSKIE | C33: Poziom uczestnictwa w rynku pracy | D33: =D55 -> 0.5% | E33: =E55 -> -0.4% | F33: =F55 -> -0.5% | G33: =G55 -> -1.0%
C34: Profil struktury wiekowej | D34: =D75 -> 0.4% | E34: =E75 -> 1.9% | F34: =F75 -> -0.7% | G34: =G75 -> -0.7%
B35: WARMIŃSKO-MAZURSKIE | C35: Poziom uczestnictwa w rynku pracy | D35: =D56 -> -2.8% | E35: =E56 -> -1.7% | F35: =F56 -> -1.5% | G35: =G56 -> -2.1%
C36: Profil struktury wiekowej | D36: =D76 -> 0.6% | E36: =E76 -> -1.1% | F36: =F76 -> 1.2% | G36: =G76 -> -0.5%
C40: Poziom uczestnictwa w rynku pracy | D40: 15-29 | E40: 30-39 | F40: 40-49 | G40: 50 i więcej | H40: SUMA (*)
C41: ŁÓDZKIE | D41: =D80*(E99-E$115)/$D$115 -> 0.26% | E41: 0.81% | F41: 0.74% | G41: 0.25% | H41: =SUM(D41:G41) -> 2.05%
C42: MAZOWIECKIE | D42: 1.05% | E42: 0.89% | F42: 0.96% | G42: 3.25% | H42: 6.14%
C43: MAŁOPOLSKIE | D43: -0.85% | E43: 0.02% | F43: 0.08% | G43: -0.62% | H43: -1.38%
C44: ŚLĄSKIE | D44: 0.88% | E44: -0.23% | F44: -0.68% | G44: -3.65% | H44: -3.68%
C45: LUBELSKIE | D45: -1.32% | E45: 0.72% | F45: 0.60% | G45: 1.22% | H45: 1.22%
C46: PODKARPACKIE | D46: -1.82% | E46: 0.01% | F46: 0.01% | G46: 1.80% | H46: -0.00%
C47: PODLASKIE | D47: -1.74% | E47: 0.42% | F47: 0.77% | G47: 0.58% | H47: 0.03%
C48: ŚWIĘTOKRZYSKIE | D48: 0.36% | E48: 0.44% | F48: 0.68% | G48: 1.99% | H48: 3.47%
C49: LUBUSKIE | D49: -0.34% | E49: -1.21% | F49: -0.89% | G49: -1.33% | H49: -3.78%
C50: WIELKOPOLSKIE | D50: 1.43% | E50: -0.01% | F50: -0.51% | G50: 0.43% | H50: 1.34%
C51: ZACHODNIOPOMORSKIE | D51: -1.45% | E51: -1.38% | F51: -0.68% | G51: -1.17% | H51: -4.68%
C52: DOLNOŚLĄSKIE | D52: 0.02% | E52: -0.31% | F52: -0.12% | G52: -0.42% | H52: -0.84%
C53: OPOLSKIE | D53: 0.67% | E53: -0.62% | F53: -0.34% | G53: -0.98% | H53: -1.27%
C54: KUJAWSKO-POMORSKIE | D54: -0.05% | E54: -0.28% | F54: 0.02% | G54: 0.23% | H54: -0.08%
C55: POMORSKIE | D55: 0.51% | E55: -0.43% | F55: -0.54% | G55: -1.01% | H55: -1.47%
C56: WARMIŃSKO-MAZURSKIE | D56: -2.82% | E56: -1.72% | F56: -1.50% | G56: -2.09% | H56: -8.13%
C60: Profil struktury wiekowej | D60: 15-29 | E60: 30-39 | F60: 40-49 | G60: 50 i więcej | H60: SUMA (**)
C61: ŁÓDZKIE | D61: =E$115*(D80-D$96)/$D$115 -> -1.32% | E61: -0.87% | F61: 0.19% | G61: 1.12% | H61: =SUM(D61:G61) -> -0.89%
C62: MAZOWIECKIE | D62: -0.47% | E62: 3.20% | F62: -0.13% | G62: -0.89% | H62: 1.70%
C63: MAŁOPOLSKIE | D63: 2.76% | E63: -1.31% | F63: 0.30% | G63: -1.39% | H63: 0.37%
C64: ŚLĄSKIE | D64: -1.53% | E64: -0.44% | F64: 0.20% | G64: 1.08% | H64: -0.69%
C65: LUBELSKIE | D65: 0.36% | E65: -0.28% | F65: 0.06% | G65: -0.15% | H65: -0.00%
C66: PODKARPACKIE | D66: 1.59% | E66: -0.59% | F66: 0.91% | G66: -1.15% | H66: 0.76%
C67: PODLASKIE | D67: -0.11% | E67: -2.24% | F67: 1.71% | G67: 0.27% | H67: -0.37%
C68: ŚWIĘTOKRZYSKIE | D68: -0.18% | E68: -1.11% | F68: -0.48% | G68: 0.74% | H68: -1.03%
C69: LUBUSKIE | D69: -0.84% | E69: 0.53% | F69: -0.10% | G69: 0.37% | H69: -0.04%
C70: WIELKOPOLSKIE | D70: 1.72% | E70: 0.85% | F70: 0.08% | G70: -1.47% | H70: 1.18%
C71: ZACHODNIOPOMORSKIE | D71: -1.67% | E71: -0.04% | F71: -2.11% | G71: 1.92% | H71: -1.89%
C72: DOLNOŚLĄSKIE | D72: -0.86% | E72: -1.70% | F72: -2.43% | G72: 2.17% | H72: -2.81%
C73: OPOLSKIE | D73: -1.68% | E73: -2.33% | F73: 0.97% | G73: 1.61% | H73: -1.43%
C74: KUJAWSKO-POMORSKIE | D74: 0.66% | E74: -0.85% | F74: 1.88% | G74: -0.84% | H74: 0.86%
C75: POMORSKIE | D75: 0.38% | E75: 1.87% | F75: -0.69% | G75: -0.70% | H75: 0.86%
C76: WARMIŃSKO-MAZURSKIE | D76: 0.60% | E76: -1.08% | F76: 1.23% | G76: -0.45% | H76: 0.30%
C79: Nij/Ni(15+) | D79: 15-29 | E79: 30-39 | F79: 40-49 | G79: 50 i więcej
C80: ŁÓDZKIE | D80: =E137/$D137 -> 0.2285955293 | E80: 0.1741881063 | F80: 0.1488823281 | G80: 0.4483340363
C81: MAZOWIECKIE | D81: 0.2375565611 | E81: 0.2002262443 | F81: 0.1468325792 | G81: 0.4153846154
C82: MAŁOPOLSKIE | D82: 0.2717557252 | E82: 0.1713740458 | F82: 0.1496183206 | G82: 0.4072519084
C83: ŚLĄSKIE | D83: 0.2263959391 | E83: 0.1769035533 | F83: 0.1489847716 | G83: 0.447715736
C84: LUBELSKIE | D84: 0.2463923036 | E84: 0.17797969 | F84: 0.1480491716 | G84: 0.4275788348
C85: PODKARPACKIE | D85: 0.2593712213 | E85: 0.1759371221 | F85: 0.15356711 | G85: 0.4111245466
C86: PODLASKIE | D86: 0.2414553473 | E86: 0.1653803749 | F86: 0.1587651599 | G86: 0.434399118
C87: ŚWIĘTOKRZYSKIE | D87: 0.2406462585 | E87: 0.1726190476 | F87: 0.1445578231 | G87: 0.4421768707
C88: LUBUSKIE | D88: 0.2337349398 | E88: 0.1831325301 | F88: 0.1469879518 | G88: 0.4361445783
C89: WIELKOPOLSKIE | D89: 0.2607865598 | E89: 0.1851851852 | F89: 0.1481481481 | G89: 0.4058801069
C90: ZACHODNIOPOMORSKIE | D90: 0.2249793218 | E90: 0.1794871795 | F90: 0.1339950372 | G90: 0.4615384615
C91: DOLNOŚLĄSKIE | D91: 0.2335092348 | E91: 0.1688654354 | F91: 0.1319261214 | G91: 0.4656992084
C92: OPOLSKIE | D92: 0.2247956403 | E92: 0.1648501362 | F92: 0.1539509537 | G92: 0.4564032698
C93: KUJAWSKO-POMORSKIE | D93: 0.2495297806 | E93: 0.1742946708 | F93: 0.1598746082 | G93: 0.4163009404
C94: POMORSKIE | D94: 0.2466393922 | E94: 0.1917007598 | F94: 0.1431911163 | G94: 0.4184687317
C95: WARMIŃSKO-MAZURSKIE | D95: 0.2488687783 | E95: 0.1728506787 | F95: 0.1556561086 | G95: 0.4226244344
C96: POLSKA | D96: 0.2425736194 | E96: 0.1797474064 | F96: 0.1476577099 | G96: 0.4300212643
C98: Azij/Nij | D98: Ogółem | E98: 15-29 | F98: 30-39 | G98: 40-49 | H98: 50 i więcej
C99: ŁÓDZKIE | D99: =D118/D137 -> 0.5651623787 | E99: 0.5350553506 | F99: 0.8983050847 | G99: 0.8895184136 | H99: 0.3433678269
C100: MAZOWIECKIE | D100: 0.6024886878 | E100: 0.5533333333 | F100: 0.8971751412 | G100: 0.8983050847 | H100: 0.3839869281
C101: MAŁOPOLSKIE | D101: 0.5530534351 | E101: 0.5112359551 | F101: 0.8730512249 | G101: 0.8647959184 | H101: 0.3317713215
C102: ŚLĄSKIE | D102: 0.5342639594 | E102: 0.5504484305 | F102: 0.8651362984 | G102: 0.8364565588 | H102: 0.2947845805
C103: LUBELSKIE | D103: 0.5654730091 | E103: 0.4989154013 | F103: 0.8948948949 | G103: 0.8844765343 | H103: 0.35625
C104: PODKARPACKIE | D104: 0.5628778718 | E104: 0.4895104895 | F104: 0.8728522337 | G104: 0.8622047244 | H104: 0.3647058824
C105: PODLASKIE | D105: 0.5567805954 | E105: 0.4885844749 | F105: 0.8866666667 | G105: 0.8888888889 | H105: 0.347715736
C106: ŚWIĘTOKRZYSKIE | D106: 0.5722789116 | E106: 0.5371024735 | F106: 0.8866995074 | G106: 0.8882352941 | H106: 0.3653846154
C107: LUBUSKIE | D107: 0.5373493976 | E107: 0.5206185567 | F107: 0.8355263158 | G107: 0.8278688525 | H107: 0.3232044199
C108: WIELKOPOLSKIE | D108: 0.5727376861 | E108: 0.5592972182 | F108: 0.8721649485 | G108: 0.8427835052 | H108: 0.3461900282
C109: ZACHODNIOPOMORSKIE | D109: =D128/D147 -> 0.5219189413 | E109: 0.4926470588 | F109: 0.8294930876 | G109: 0.8333333333 | H109: 0.3261648746
C110: DOLNOŚLĄSKIE | D110: 0.5382585752 | E110: 0.5291902072 | F110: 0.8619791667 | G110: 0.8566666667 | H110: 0.3352219075
C111: OPOLSKIE | D111: 0.5435967302 | E111: 0.5454545455 | F111: 0.8512396694 | G111: 0.8495575221 | H111: 0.328358209
C112: KUJAWSKO-POMORSKIE | D112: 0.5630094044 | E112: 0.527638191 | F112: 0.8633093525 | G112: 0.862745098 | H112: 0.343373494
C113: POMORSKIE | D113: 0.5552308591 | E113: 0.5402843602 | F113: 0.8597560976 | G113: 0.8408163265 | H113: 0.3268156425
C114: WARMIŃSKO-MAZURSKIE | D114: 0.5149321267 | E114: 0.4654545455 | F114: 0.8167539267 | G114: 0.8081395349 | H114: 0.312633833
C115: POLSKA | D115: 0.5586700174 | E115: 0.5287554788 | F115: 0.8723785625 | G115: 0.8618808641 | H115: 0.3403011913
C117: Azi | D117: Ogółem | E117: 15-29 | F117: 30-39 | G117: 40-49 | H117: 50 i więcej
C118: ŁÓDZKIE | D118: 1340 | E118: 290 | F118: 371 | G118: 314 | H118: 365
C119: MAZOWIECKIE | D119: 2663 | E119: 581 | F119: 794 | G119: 583 | H119: 705
C120: MAŁOPOLSKIE | D120: 1449 | E120: 364 | F120: 392 | G120: 339 | H120: 354
C121: ŚLĄSKIE | D121: 2105 | E121: 491 | F121: 603 | G121: 491 | H121: 520
C122: LUBELSKIE | D122: 1058 | E122: 230 | F122: 298 | G122: 245 | H122: 285
C123: PODKARPACKIE | D123: 931 | E123: 210 | F123: 254 | G123: 219 | H123: 248
C124: PODLASKIE | D124: 505 | E124: 107 | F124: 133 | G124: 128 | H124: 137
C125: ŚWIĘTOKRZYSKIE | D125: 673 | E125: 152 | F125: 180 | G125: 151 | H125: 190
C126: LUBUSKIE | D126: 446 | E126: 101 | F126: 127 | G126: 101 | H126: 117
C127: WIELKOPOLSKIE | D127: 1500 | E127: 382 | F127: 423 | G127: 327 | H127: 368
C128: ZACHODNIOPOMORSKIE | D128: 631 | E128: 134 | F128: 180 | G128: 135 | H128: 182
C129: DOLNOŚLĄSKIE | D129: 1224 | E129: 281 | F129: 331 | G129: 257 | H129: 355
C130: OPOLSKIE | D130: 399 | E130: 90 | F130: 103 | G130: 96 | H130: 110
C131: KUJAWSKO-POMORSKIE | D131: 898 | E131: 210 | F131: 240 | G131: 220 | H131: 228
C132: POMORSKIE | D132: 950 | E132: 228 | F132: 282 | G132: 206 | H132: 234
C133: WARMIŃSKO-MAZURSKIE | D133: 569 | E133: 128 | F133: 156 | G133: 139 | H133: 146
C134: POLSKA | D134: 17340 | E134: 3981 | F134: 4867 | G134: 3950 | H134: 4542
C136: Ni | D136: Ogółem | E136: 15-29 | F136: 30-39 | G136: 40-49 | H136: 50 i więcej
C137: ŁÓDZKIE | D137: 2371 | E137: 542 | F137: 413 | G137: 353 | H137: 1063
C138: MAZOWIECKIE | D138: 4420 | E138: 1050 | F138: 885 | G138: 649 | H138: 1836
C139: MAŁOPOLSKIE | D139: 2620 | E139: 712 | F139: 449 | G139: 392 | H139: 1067
C140: ŚLĄSKIE | D140: 3940 | E140: 892 | F140: 697 | G140: 587 | H140: 1764
C141: LUBELSKIE | D141: 1871 | E141: 461 | F141: 333 | G141: 277 | H141: 800
C142: PODKARPACKIE | D142: 1654 | E142: 429 | F142: 291 | G142: 254 | H142: 680
C143: PODLASKIE | D143: 907 | E143: 219 | F143: 150 | G143: 144 | H143: 394
C144: ŚWIĘTOKRZYSKIE | D144: 1176 | E144: 283 | F144: 203 | G144: 170 | H144: 520
C145: LUBUSKIE | D145: 830 | E145: 194 | F145: 152 | G145: 122 | H145: 362
C146: WIELKOPOLSKIE | D146: 2619 | E146: 683 | F146: 485 | G146: 388 | H146: 1063
C147: ZACHODNIOPOMORSKIE | D147: 1209 | E147: 272 | F147: 217 | G147: 162 | H147: 558
C148: DOLNOŚLĄSKIE | D148: 2274 | E148: 531 | F148: 384 | G148: 300 | H148: 1059
C149: OPOLSKIE | D149: 734 | E149: 165 | F149: 121 | G149: 113 | H149: 335
C150: KUJAWSKO-POMORSKIE | D150: 1595 | E150: 398 | F150: 278 | G150: 255 | H150: 664
C151: POMORSKIE | D151: 1711 | E151: 422 | F151: 328 | G151: 245 | H151: 716
C152: WARMIŃSKO-MAZURSKIE | D152: 1105 | E152: 275 | F152: 191 | G152: 172 | H152: 467
C153: POLSKA | D153: 31038 | E153: 7529 | F153: 5579 | G153: 4583 | H153: 13347

Sheet 2007akt (hidden)
B1: Poddekompozycja różnic we współczynniku AKTYWNOŚCI ZAWODOWEJ
B2: 2007
C4: Sekcje | D4: 15-29 | E4: 30-39 | F4: 40-49 | G4: 50 i więcej
B5: ŁÓDZKIE | C5: Poziom uczestnictwa w rynku pracy | D5: =D41 -> 1.1% | E5: =E41 -> 0.5% | F5: =F41 -> 0.8% | G5: =G41 -> 0.7%
C6: Profil struktury wiekowej | D6: =D61 -> -1.4% | E6: =E61 -> 0.3% | F6: =F61 -> -0.8% | G6: =G61 -> 1.0%
B7: MAZOWIECKIE | C7: Poziom uczestnictwa w rynku pracy | D7: =D42 -> 1.9% | E7: =E42 -> 0.7% | F7: =F42 -> 1.1% | G7: =G42 -> 2.9%
C8: Profil struktury wiekowej | D8: =D62 -> 1.2% | E8: =E62 -> 0.1% | F8: =F62 -> -1.3% | G8: =G62 -> -0.3%
B9: MAŁOPOLSKIE | C9: Poziom uczestnictwa w rynku pracy | D9: =D43 -> 0.3% | E9: =E43 -> 1.0% | F9: =F43 -> -0.1% | G9: =G43 -> -0.7%
C10: Profil struktury wiekowej | D10: =D63 -> 2.2% | E10: =E63 -> -2.1% | F10: =F63 -> -0.9% | G10: =G63 -> -0.3%
B11: ŚLĄSKIE | C11: Poziom uczestnictwa w rynku pracy | D11: =D44 -> -0.4% | E11: =E44 -> -0.3% | F11: =F44 -> -2.0% | G11: =G44 -> -4.2%
C12: Profil struktury wiekowej | D12: =D64 -> -1.4% | E12: =E64 -> -0.3% | F12: =F64 -> 1.7% | G12: =G64 -> 0.3%
B13: LUBELSKIE | C13: Poziom uczestnictwa w rynku pracy | D13: =D45 -> 0.8% | E13: =E45 -> 0.3% | F13: =F45 -> 0.6% | G13: =G45 -> 3.8%
C14: Profil struktury wiekowej | D14: =D65 -> 0.1% | E14: =E65 -> -0.5% | F14: =F65 -> 0.1% | G14: =G65 -> 0.1%
B15: PODKARPACKIE | C15: Poziom uczestnictwa w rynku pracy | D15: =D46 -> -1.6% | E15: =E46 -> -0.2% | F15: =F46 -> 0.0% | G15: =G46 -> 1.5%
C16: Profil struktury wiekowej | D16: =D66 -> 1.9% | E16: =E66 -> 1.1% | F16: =F66 -> 0.2% | G16: =G66 -> -1.6%
B17: PODLASKIE | C17: Poziom uczestnictwa w rynku pracy | D17: =D47 -> -1.3% | E17: =E47 -> 0.1% | F17: =F47 -> 1.6% | G17: =G47 -> -0.3%
C18: Profil struktury wiekowej | D18: =D67 -> -0.0% | E18: =E67 -> 0.9% | F18: =F67 -> 0.6% | G18: =G67 -> -0.5%
B19: ŚWIĘTOKRZYSKIE | C19: Poziom uczestnictwa w rynku pracy | D19: =D48 -> 0.5% | E19: =E48 -> 0.4% | F19: =F48 -> 1.3% | G19: =G48 -> 2.9%
C20: Profil struktury wiekowej | D20: =D68 -> 0.2% | E20: =E68 -> -0.0% | F20: =F68 -> -0.7% | G20: =G68 -> 0.2%
B21: LUBUSKIE | C21: Poziom uczestnictwa w rynku pracy | D21: =D49 -> -1.2% | E21: =E49 -> -0.7% | F21: =F49 -> 0.0% | G21: =G49 -> -0.2%
C22: Profil struktury wiekowej | D22: =D69 -> -0.5% | E22: =E69 -> 2.7% | F22: =F69 -> -0.2% | G22: =G69 -> -0.6%
B23: WIELKOPOLSKIE | C23: Poziom uczestnictwa w rynku pracy | D23: =D50 -> -0.0% | E23: =E50 -> -0.2% | F23: =F50 -> 0.3% | G23: =G50 -> -0.9%
C24: Profil struktury wiekowej | D24: =D70 -> 1.8% | E24: =E70 -> 1.1% | F24: =F70 -> 1.1% | G24: =G70 -> -1.8%
B25: ZACHODNIOPOMORSKIE | C25: Poziom uczestnictwa w rynku pracy | D25: =D51 -> -2.6% | E25: =E51 -> -0.9% | F25: =F51 -> -1.2% | G25: =G51 -> -1.3%
C26: Profil struktury wiekowej | D26: =D71 -> -2.3% | E26: =E71 -> -2.0% | F26: =F71 -> 0.1% | G26: =G71 -> 2.0%
B27: DOLNOŚLĄSKIE | C27: Poziom uczestnictwa w rynku pracy | D27: =D52 -> 0.5% | E27: =E52 -> -0.3% | F27: =F52 -> -0.4% | G27: =G52 -> 0.2%
C28: Profil struktury wiekowej | D28: =D72 -> -0.9% | E28: =E72 -> -1.0% | F28: =F72 -> 0.2% | G28: =G72 -> 0.8%
B29: OPOLSKIE | C29: Poziom uczestnictwa w rynku pracy | D29: =D53 -> -0.9% | E29: =E53 -> -1.0% | F29: =F53 -> -0.4% | G29: =G53 -> -1.3%
C30: Profil struktury wiekowej | D30: =D73 -> -2.6% | E30: =E73 -> 0.7% | F30: =F73 -> -0.8% | G30: =G73 -> 1.6%
B31: KUJAWSKO-POMORSKIE | C31: Poziom uczestnictwa w rynku pracy | D31: =D54 -> -1.0% | E31: =E54 -> -0.6% | F31: =F54 -> -0.4% | G31: =G54 -> -1.9%
C32: Profil struktury wiekowej | D32: =D74 -> -0.9% | E32: =E74 -> -0.4% | F32: =F74 -> 0.9% | G32: =G74 -> 0.4%
B33: POMORSKIE | C33: Poziom uczestnictwa w rynku pracy | D33: =D55 -> 0.0% | E33: =E55 -> -0.7% | F33: =F55 -> -0.3% | G33: =G55 -> -0.1%
C34: Profil struktury wiekowej | D34: =D75 -> 0.1% | E34: =E75 -> 1.9% | F34: =F75 -> -2.2% | G34: =G75 -> 0.0%
B35: WARMIŃSKO-MAZURSKIE | C35: Poziom uczestnictwa w rynku pracy | D35: =D56 -> -2.7% | E35: =E56 -> -0.3% | F35: =F56 -> -0.7% | G35: =G56 -> -1.3%
C36: Profil struktury wiekowej | D36: =D76 -> -1.7% | E36: =E76 -> 0.4% | F36: =F76 -> 2.1% | G36: =G76 -> 0.1%
C40: Poziom uczestnictwa w rynku pracy | D40: 15-29 | E40: 30-39 | F40: 40-49 | G40: 50 i więcej | H40: SUMA (*)
C41: ŁÓDZKIE | D41: =D80*(E99-E$115)/$D$115 -> 1.09% | E41: 0.45% | F41: 0.79% | G41: 0.67% | H41: =SUM(D41:G41) -> 3.00%
C42: MAZOWIECKIE | D42: 1.89% | E42: 0.69% | F42: 1.13% | G42: 2.86% | H42: 6.58%
C43: MAŁOPOLSKIE | D43: 0.35% | E43: 1.02% | F43: -0.05% | G43: -0.70% | H43: 0.62%
C44: ŚLĄSKIE | D44: -0.44% | E44: -0.31% | F44: -1.99% | G44: -4.18% | H44: -6.92%
C45: LUBELSKIE | D45: 0.77% | E45: 0.26% | F45: 0.59% | G45: 3.76% | H45: 5.39%
C46: PODKARPACKIE | D46: -1.56% | E46: -0.22% | F46: 0.00% | G46: 1.51% | H46: -0.26%
C47: PODLASKIE | D47: -1.33% | E47: 0.12% | F47: 1.63% | G47: -0.27% | H47: 0.16%
C48: ŚWIĘTOKRZYSKIE | D48: 0.53% | E48: 0.39% | F48: 1.34% | G48: 2.94% | H48: 5.20%
C49: LUBUSKIE | D49: -1.23% | E49: -0.66% | F49: 0.01% | G49: -0.23% | H49: -2.12%
C50: WIELKOPOLSKIE | D50: -0.01% | E50: -0.18% | F50: 0.29% | G50: -0.94% | H50: -0.83%
C51: ZACHODNIOPOMORSKIE | D51: -2.65% | E51: -0.89% | F51: -1.15% | G51: -1.34% | H51: -6.04%
C52: DOLNOŚLĄSKIE | D52: 0.54% | E52: -0.35% | F52: -0.38% | G52: 0.20% | H52: 0.01%
C53: OPOLSKIE | D53: -0.93% | E53: -1.05% | F53: -0.40% | G53: -1.28% | H53: -3.65%
C54: KUJAWSKO-POMORSKIE | D54: -1.02% | E54: -0.60% | F54: -0.38% | G54: -1.88% | H54: -3.89%
C55: POMORSKIE | D55: 0.01% | E55: -0.69% | F55: -0.25% | G55: -0.10% | H55: -1.03%
C56: WARMIŃSKO-MAZURSKIE | D56: -2.73% | E56: -0.35% | F56: -0.67% | G56: -1.31% | H56: -5.05%
C60: Profil struktury wiekowej | D60: 15-29 | E60: 30-39 | F60: 40-49 | G60: 50 i więcej | H60: SUMA (**)
C61: ŁÓDZKIE | D61: =E$115*(D80-D$96)/$D$115 -> -1.41% | E61: 0.34% | F61: -0.81% | G61: 1.01% | H61: =SUM(D61:G61) -> -0.88%
C62: MAZOWIECKIE | D62: 1.17% | E62: 0.07% | F62: -1.29% | G62: -0.26% | H62: -0.31%
C63: MAŁOPOLSKIE | D63: 2.23% | E63: -2.14% | F63: -0.87% | G63: -0.28% | H63: -1.06%
C64: ŚLĄSKIE | D64: -1.38% | E64: -0.25% | F64: 1.73% | G64: 0.29% | H64: 0.39%
C65: LUBELSKIE | D65: 0.11% | E65: -0.50% | F65: 0.15% | G65: 0.06% | H65: -0.19%
C66: PODKARPACKIE | D66: 1.92% | E66: 1.12% | F66: 0.18% | G66: -1.58% | H66: 1.64%
C67: PODLASKIE | D67: -0.01% | E67: 0.87% | F67: 0.63% | G67: -0.52% | H67: 0.98%
C68: ŚWIĘTOKRZYSKIE | D68: 0.15% | E68: -0.04% | F68: -0.67% | G68: 0.16% | H68: -0.39%
C69: LUBUSKIE | D69: -0.51% | E69: 2.72% | F69: -0.17% | G69: -0.57% | H69: 1.48%
C70: WIELKOPOLSKIE | D70: 1.81% | E70: 1.06% | F70: 1.09% | G70: -1.82% | H70: 2.15%
C71: ZACHODNIOPOMORSKIE | D71: -2.26% | E71: -1.99% | F71: 0.15% | G71: 1.96% | H71: -2.14%
C72: DOLNOŚLĄSKIE | D72: -0.85% | E72: -1.01% | F72: 0.22% | G72: 0.77% | H72: -0.87%
C73: OPOLSKIE | D73: -2.57% | E73: 0.70% | F73: -0.81% | G73: 1.56% | H73: -1.12%
C74: KUJAWSKO-POMORSKIE | D74: -0.93% | E74: -0.40% | F74: 0.88% | G74: 0.38% | H74: -0.08%
C75: POMORSKIE | D75: 0.13% | E75: 1.93% | F75: -2.16% | G75: 0.03% | H75: -0.07%
C76: WARMIŃSKO-MAZURSKIE | D76: -1.69% | E76: 0.38% | F76: 2.13% | G76: 0.11% | H76: 0.94%
C79: Nij/Ni(15+) | D79: 15-29 | E79: 30-39 | F79: 40-49 | G79: 50 i więcej
C80: ŁÓDZKIE | D80: =E137/$D137 -> 0.2604166667 | E80: 0.1682692308 | F80: 0.1590544872 | G80: 0.4122596154
C81: MAZOWIECKIE | D81: 0.2880779692 | E81: 0.1665911151 | F81: 0.15593835 | G81: 0.3893925657
C82: MAŁOPOLSKIE | D82: 0.2993484094 | E82: 0.1529321579 | F82: 0.1586814872 | G82: 0.3890379456
C83: ŚLĄSKIE | D83: 0.2607786778 | E83: 0.1646198066 | F83: 0.1753331591 | G83: 0.3992683564
C84: LUBELSKIE | D84: 0.2766964755 | E84: 0.1630720673 | F84: 0.165176223 | G84: 0.3950552341
C85: PODKARPACKIE | D85: 0.296119403 | E85: 0.1731343284 | F85: 0.1653731343 | G85: 0.3653731343
C86: PODLASKIE | D86: 0.2754098361 | E86: 0.1715846995 | F86: 0.1683060109 | G86: 0.3846994536
C87: ŚWIĘTOKRZYSKIE | D87: 0.2771599658 | E87: 0.1659538067 | F87: 0.1599657827 | G87: 0.3969204448
C88: LUBUSKIE | D88: 0.2701212789 | E88: 0.1830209482 | F88: 0.1631753032 | G88: 0.3836824697
C89: WIELKOPOLSKIE | D89: 0.2949010654 | E89: 0.1727549467 | F89: 0.1712328767 | G89: 0.3611111111
C90: ZACHODNIOPOMORSKIE | D90: 0.2514101531 | E90: 0.1539081386 | F90: 0.1651893634 | G90: 0.4294923449
C91: DOLNOŚLĄSKIE | D91: 0.2664218686 | E91: 0.1599347205 | F91: 0.1656466748 | G91: 0.407996736
C92: OPOLSKIE | D92: 0.2480916031 | E92: 0.1704834606 | F92: 0.1590330789 | G92: 0.4223918575
C93: KUJAWSKO-POMORSKIE | D93: 0.2655960469 | E93: 0.1636812847 | F93: 0.169857937 | G93: 0.4008647313
C94: POMORSKIE | D94: 0.276903713 | E94: 0.1780994336 | F94: 0.1504090623 | G94: 0.3945877911
C95: WARMIŃSKO-MAZURSKIE | D95: 0.2574850299 | E95: 0.1685201027 | F95: 0.1779298546 | G95: 0.3960650128
C96: POLSKA | D96: 0.2755391329 | E96: 0.1661835441 | F96: 0.1642404358 | G96: 0.3940368872
C98: Azij/Nij | D98: Ogółem | E98: 15-29 | F98: 30-39 | G98: 40-49 | H98: 50 i więcej
C99: ŁÓDZKIE | D99: =D118/D137 -> 0.5484775641 | E99: 0.5246153846 | F99: 0.8833333333 | G99: 0.8639798489 | H99: 0.3051506317
C100: MAZOWIECKIE | D100: 0.5707162285 | E100: 0.5373721479 | F100: 0.8911564626 | G100: 0.8764534884 | H100: 0.3358556461
C101: MAŁOPOLSKIE | D101: 0.5346876198 | E101: 0.5083226633 | F101: 0.9047619048 | G101: 0.8357487923 | H101: 0.2866995074
C102: ŚLĄSKIE | D102: 0.5019597596 | E102: 0.4929859719 | F102: 0.8587301587 | G102: 0.7764530551 | H102: 0.2401832461
C103: LUBELSKIE | D103: 0.5649658075 | E103: 0.5171102662 | F103: 0.8774193548 | G103: 0.8566878981 | H103: 0.3475366178
C104: PODKARPACKIE | D104: 0.5444776119 | E104: 0.4737903226 | F104: 0.8620689655 | G104: 0.8375451264 | H104: 0.318627451
C105: PODLASKIE | D105: 0.5431693989 | E105: 0.4761904762 | F105: 0.872611465 | G105: 0.8896103896 | H105: 0.2926136364
C106: ŚWIĘTOKRZYSKIE | D106: 0.5628742515 | E106: 0.512345679 | F106: 0.881443299 | G106: 0.8823529412 | H106: 0.3362068966
C107: LUBUSKIE | D107: 0.5336273429 | E107: 0.4775510204 | F107: 0.8493975904 | G107: 0.8378378378 | H107: 0.2931034483
C108: WIELKOPOLSKIE | D108: 0.5441400304 | E108: 0.5019354839 | F108: 0.8634361233 | G108: 0.8466666667 | H108: 0.282402529
C109: ZACHODNIOPOMORSKIE | D109: =D128/D147 -> 0.4931506849 | E109: 0.4455128205 | F109: 0.8376963351 | G109: 0.8 | H109: 0.2795497186
C110: DOLNOŚLĄSKIE | D110: 0.5324357405 | E110: 0.5130168453 | F110: 0.8571428571 | G110: 0.8251231527 | H110: 0.299
C111: OPOLSKIE | D111: 0.5114503817 | E111: 0.4820512821 | F111: 0.8358208955 | G111: 0.824 | H111: 0.2801204819
C112: KUJAWSKO-POMORSKIE | D112: 0.5157504632 | E112: 0.4813953488 | F112: 0.8490566038 | G112: 0.8254545455 | H112: 0.2711864407
C113: POMORSKIE | D113: 0.5311516677 | E113: 0.5022727273 | F113: 0.8480565371 | G113: 0.8284518828 | H113: 0.2950558214
C114: WARMIŃSKO-MAZURSKIE | D114: 0.5149700599 | E114: 0.4451827243 | F114: 0.8578680203 | G114: 0.8173076923 | H114: 0.2786177106
C115: POLSKA | D115: 0.5370624024 | E115: 0.5020809249 | F115: 0.8688901668 | G115: 0.8374709077 | H115: 0.2963621665
C117: Azi | D117: Ogółem | E117: 15-29 | F117: 30-39 | G117: 40-49 | H117: 50 i więcej
C118: ŁÓDZKIE | D118: 1369 | E118: 341 | F118: 371 | G118: 343 | H118: 314
C119: MAZOWIECKIE | D119: 2518 | E119: 683 | F119: 655 | G119: 603 | H119: 577
C120: MAŁOPOLSKIE | D120: 1395 | E120: 397 | F120: 361 | G120: 346 | H120: 291
C121: ŚLĄSKIE | D121: 1921 | E121: 492 | F121: 541 | G121: 521 | H121: 367
C122: LUBELSKIE | D122: 1074 | E122: 272 | F122: 272 | G122: 269 | H122: 261
C123: PODKARPACKIE | D123: 912 | E123: 235 | F123: 250 | G123: 232 | H123: 195
C124: PODLASKIE | D124: 497 | E124: 120 | F124: 137 | G124: 137 | H124: 103
C125: ŚWIĘTOKRZYSKIE | D125: 658 | E125: 166 | F125: 171 | G125: 165 | H125: 156
C126: LUBUSKIE | D126: 484 | E126: 117 | F126: 141 | G126: 124 | H126: 102
C127: WIELKOPOLSKIE | D127: 1430 | E127: 389 | F127: 392 | G127: 381 | H127: 268
C128: ZACHODNIOPOMORSKIE | D128: 612 | E128: 139 | F128: 160 | G128: 164 | H128: 149
C129: DOLNOŚLĄSKIE | D129: 1305 | E129: 335 | F129: 336 | G129: 335 | H129: 299
C130: OPOLSKIE | D130: 402 | E130: 94 | F130: 112 | G130: 103 | H130: 93
C131: KUJAWSKO-POMORSKIE | D131: 835 | E131: 207 | F131: 225 | G131: 227 | H131: 176
C132: POMORSKIE | D132: 844 | E132: 221 | F132: 240 | G132: 198 | H132: 185
C133: WARMIŃSKO-MAZURSKIE | D133: 602 | E133: 134 | F133: 169 | G133: 170 | H133: 129
C134: POLSKA | D134: 16860 | E134: 4343 | F134: 4533 | G134: 4318 | H134: 3666
C136: Ni | D136: Ogółem | E136: 15-29 | F136: 30-39 | G136: 40-49 | H136: 50 i więcej
C137: ŁÓDZKIE | D137: 2496 | E137: 650 | F137: 420 | G137: 397 | H137: 1029
C138: MAZOWIECKIE | D138: 4412 | E138: 1271 | F138: 735 | G138: 688 | H138: 1718
C139: MAŁOPOLSKIE | D139: 2609 | E139: 781 | F139: 399 | G139: 414 | H139: 1015
C140: ŚLĄSKIE | D140: 3827 | E140: 998 | F140: 630 | G140: 671 | H140: 1528
C141: LUBELSKIE | D141: 1901 | E141: 526 | F141: 310 | G141: 314 | H141: 751
C142: PODKARPACKIE | D142: 1675 | E142: 496 | F142: 290 | G142: 277 | H142: 612
C143: PODLASKIE | D143: 915 | E143: 252 | F143: 157 | G143: 154 | H143: 352
C144: ŚWIĘTOKRZYSKIE | D144: 1169 | E144: 324 | F144: 194 | G144: 187 | H144: 464
C145: LUBUSKIE | D145: 907 | E145: 245 | F145: 166 | G145: 148 | H145: 348
C146: WIELKOPOLSKIE | D146: 2628 | E146: 775 | F146: 454 | G146: 450 | H146: 949
C147: ZACHODNIOPOMORSKIE | D147: 1241 | E147: 312 | F147: 191 | G147: 205 | H147: 533
C148: DOLNOŚLĄSKIE | D148: 2451 | E148: 653 | F148: 392 | G148: 406 | H148: 1000
C149: OPOLSKIE | D149: 786 | E149: 195 | F149: 134 | G149: 125 | H149: 332
C150: KUJAWSKO-POMORSKIE | D150: 1619 | E150: 430 | F150: 265 | G150: 275 | H150: 649
C151: POMORSKIE | D151: 1589 | E151: 440 | F151: 283 | G151: 239 | H151: 627
C152: WARMIŃSKO-MAZURSKIE | D152: 1169 | E152: 301 | F152: 197 | G152: 208 | H152: 463
C153: POLSKA | D153: 31393 | E153: 8650 | F153: 5217 | G153: 5156 | H153: 12370

Sheet 2002akt (hidden)
B1: Poddekompozycja różnic we współczynniku AKTYWNOŚCI ZAWODOWEJ
B2: 2002
C4: Sekcje | D4: 15-29 | E4: 30-39 | F4: 40-49 | G4: 50 i więcej
B5: ŁÓDZKIE | C5: Poziom uczestnictwa w rynku pracy | D5: =D41 -> 0.4% | E5: =E41 -> 1.1% | F5: =F41 -> 1.5% | G5: =G41 -> 0.6%
C6: Profil struktury wiekowej | D6: =D61 -> -1.4% | E6: =E61 -> -2.2% | F6: =F61 -> -0.8% | G6: =G61 -> 1.8%
B7: MAZOWIECKIE | C7: Poziom uczestnictwa w rynku pracy | D7: =D42 -> 0.9% | E7: =E42 -> 0.7% | F7: =F42 -> 1.4% | G7: =G42 -> 2.2%
C8: Profil struktury wiekowej | D8: =D62 -> -0.1% | E8: =E62 -> -0.9% | F8: =F62 -> 1.3% | G8: =G62 -> -0.1%
B9: MAŁOPOLSKIE | C9: Poziom uczestnictwa w rynku pracy | D9: =D43 -> 1.5% | E9: =E43 -> 0.4% | F9: =F43 -> -0.5% | G9: =G43 -> 0.8%
C10: Profil struktury wiekowej | D10: =D63 -> 0.8% | E10: =E63 -> 1.0% | F10: =F63 -> -1.6% | G10: =G63 -> -0.2%
B11: ŚLĄSKIE | C11: Poziom uczestnictwa w rynku pracy | D11: =D44 -> -1.1% | E11: =E44 -> -1.1% | F11: =F44 -> -2.4% | G11: =G44 -> -3.9%
C12: Profil struktury wiekowej | D12: =D64 -> -0.9% | E12: =E64 -> 1.0% | F12: =F64 -> -0.9% | G12: =G64 -> 0.5%
B13: LUBELSKIE | C13: Poziom uczestnictwa w rynku pracy | D13: =D45 -> 1.0% | E13: =E45 -> 0.5% | F13: =F45 -> 0.8% | G13: =G45 -> 3.7%
C14: Profil struktury wiekowej | D14: =D65 -> -0.3% | E14: =E65 -> 1.5% | F14: =F65 -> -1.7% | G14: =G65 -> 0.2%
B15: PODKARPACKIE | C15: Poziom uczestnictwa w rynku pracy | D15: =D46 -> -0.8% | E15: =E46 -> 0.1% | F15: =F46 -> 0.5% | G15: =G46 -> 3.1%
C16: Profil struktury wiekowej | D16: =D66 -> 0.2% | E16: =E66 -> 2.0% | F16: =F66 -> -0.8% | G16: =G66 -> -0.5%
B17: PODLASKIE | C17: Poziom uczestnictwa w rynku pracy | D17: =D47 -> -1.6% | E17: =E47 -> 0.7% | F17: =F47 -> 1.0% | G17: =G47 -> 3.0%
C18: Profil struktury wiekowej | D18: =D67 -> -0.3% | E18: =E67 -> 0.5% | F18: =F67 -> -0.8% | G18: =G67 -> 0.3%
B19: ŚWIĘTOKRZYSKIE | C19: Poziom uczestnictwa w rynku pracy | D19: =D48 -> -2.0% | E19: =E48 -> -0.5% | F19: =F48 -> -0.5% | G19: =G48 -> -2.0%
C20: Profil struktury wiekowej | D20: =D68 -> -0.5% | E20: =E68 -> -1.7% | F20: =F68 -> -0.1% | G20: =G68 -> 0.9%
B21: LUBUSKIE | C21: Poziom uczestnictwa w rynku pracy | D21: =D49 -> -0.6% | E21: =E49 -> -0.6% | F21: =F49 -> -1.1% | G21: =G49 -> -1.1%
C22: Profil struktury wiekowej | D22: =D69 -> 1.0% | E22: =E69 -> 0.1% | F22: =F69 -> 1.5% | G22: =G69 -> -1.1%
B23: WIELKOPOLSKIE | C23: Poziom uczestnictwa w rynku pracy | D23: =D50 -> 1.5% | E23: =E50 -> -0.3% | F23: =F50 -> -0.4% | G23: =G50 -> 0.6%
C24: Profil struktury wiekowej | D24: =D70 -> 1.8% | E24: =E70 -> 0.1% | F24: =F70 -> 0.4% | G24: =G70 -> -1.2%
B25: ZACHODNIOPOMORSKIE | C25: Poziom uczestnictwa w rynku pracy | D25: =D51 -> -1.8% | E25: =E51 -> -0.9% | F25: =F51 -> 0.2% | G25: =G51 -> -1.2%
C26: Profil struktury wiekowej | D26: =D71 -> 0.6% | E26: =E71 -> -1.3% | F26: =F71 -> 1.3% | G26: =G71 -> -0.4%
B27: DOLNOŚLĄSKIE | C27: Poziom uczestnictwa w rynku pracy | D27: =D52 -> 0.3% | E27: =E52 -> 0.2% | F27: =F52 -> 0.1% | G27: =G52 -> -1.7%
C28: Profil struktury wiekowej | D28: =D72 -> -0.6% | E28: =E72 -> -1.4% | F28: =F72 -> 1.1% | G28: =G72 -> 0.4%
B29: OPOLSKIE | C29: Poziom uczestnictwa w rynku pracy | D29: =D53 -> -1.4% | E29: =E53 -> -0.5% | F29: =F53 -> 0.6% | G29: =G53 -> -1.6%
C30: Profil struktury wiekowej | D30: =D73 -> -2.0% | E30: =E73 -> 0.8% | F30: =F73 -> -0.5% | G30: =G73 -> 1.0%
B31: KUJAWSKO-POMORSKIE | C31: Poziom uczestnictwa w rynku pracy | D31: =D54 -> 1.0% | E31: =E54 -> -0.0% | F31: =F54 -> 0.1% | G31: =G54 -> -1.9%
C32: Profil struktury wiekowej | D32: =D74 -> 0.4% | E32: =E74 -> 0.5% | F32: =F74 -> 0.3% | G32: =G74 -> -0.5%
B33: POMORSKIE | C33: Poziom uczestnictwa w rynku pracy | D33: =D55 -> -0.6% | E33: =E55 -> -0.4% | F33: =F55 -> -0.4% | G33: =G55 -> 1.0%
C34: Profil struktury wiekowej | D34: =D75 -> 1.0% | E34: =E75 -> 0.4% | F34: =F75 -> -0.0% | G34: =G75 -> -0.7%
B35: WARMIŃSKO-MAZURSKIE | C35: Poziom uczestnictwa w rynku pracy | D35: =D56 -> -2.4% | E35: =E56 -> -0.4% | F35: =F56 -> -0.5% | G35: =G56 -> -1.8%
C36: Profil struktury wiekowej | D36: =D76 -> -0.0% | E36: =E76 -> 0.3% | F36: =F76 -> 2.5% | G36: =G76 -> -0.9%
C40: Poziom uczestnictwa w rynku pracy | D40: 15-29 | E40: 30-39 | F40: 40-49 | G40: 50 i więcej | H40: SUMA (*)
C41: ŁÓDZKIE | D41: =D80*(E99-E$115)/$D$115 -> 0.44% | E41: 1.15% | F41: 1.53% | G41: 0.65% | H41: =SUM(D41:G41) -> 3.76%
C42: MAZOWIECKIE | D42: 0.87% | E42: 0.72% | F42: 1.44% | G42: 2.16% | H42: 5.20%
C43: MAŁOPOLSKIE | D43: 1.52% | E43: 0.41% | F43: -0.46% | G43: 0.79% | H43: 2.27%
C44: ŚLĄSKIE | D44: -1.08% | E44: -1.06% | F44: -2.44% | G44: -3.86% | H44: -8.44%
C45: LUBELSKIE | D45: 1.04% | E45: 0.53% | F45: 0.80% | G45: 3.67% | H45: 6.04%
C46: PODKARPACKIE | D46: -0.81% | E46: 0.14% | F46: 0.48% | G46: 3.06% | H46: 2.86%
C47: PODLASKIE | D47: -1.57% | E47: 0.68% | F47: 0.99% | G47: 3.04% | H47: 3.13%
C48: ŚWIĘTOKRZYSKIE | D48: -1.99% | E48: -0.49% | F48: -0.51% | G48: -2.02% | H48: -5.01%
C49: LUBUSKIE | D49: -0.65% | E49: -0.59% | F49: -1.12% | G49: -1.10% | H49: -3.46%
C50: WIELKOPOLSKIE | D50: 1.51% | E50: -0.31% | F50: -0.35% | G50: 0.58% | H50: 1.44%
C51: ZACHODNIOPOMORSKIE | D51: -1.84% | E51: -0.94% | F51: 0.19% | G51: -1.17% | H51: -3.76%
C52: DOLNOŚLĄSKIE | D52: 0.25% | E52: 0.19% | F52: 0.13% | G52: -1.74% | H52: -1.16%
C53: OPOLSKIE | D53: -1.41% | E53: -0.50% | F53: 0.63% | G53: -1.58% | H53: -2.87%
C54: KUJAWSKO-POMORSKIE | D54: 1.05% | E54: -0.02% | F54: 0.12% | G54: -1.87% | H54: -0.72%
C55: POMORSKIE | D55: -0.56% | E55: -0.35% | F55: -0.38% | G55: 1.00% | H55: -0.30%
C56: WARMIŃSKO-MAZURSKIE | D56: -2.38% | E56: -0.38% | F56: -0.46% | G56: -1.81% | H56: -5.03%
C60: Profil struktury wiekowej | D60: 15-29 | E60: 30-39 | F60: 40-49 | G60: 50 i więcej | H60: SUMA (**)
C61: ŁÓDZKIE | D61: =E$115*(D80-D$96)/$D$115 -> -1.41% | E61: -2.23% | F61: -0.75% | G61: 1.78% | H61: =SUM(D61:G61) -> -2.60%
C62: MAZOWIECKIE | D62: -0.12% | E62: -0.94% | F62: 1.29% | G62: -0.07% | H62: 0.16%
C63: MAŁOPOLSKIE | D63: 0.81% | E63: 1.05% | F63: -1.63% | G63: -0.23% | H63: -0.00%
C64: ŚLĄSKIE | D64: -0.85% | E64: 0.96% | F64: -0.85% | G64: 0.46% | H64: -0.29%
C65: LUBELSKIE | D65: -0.26% | E65: 1.48% | F65: -1.71% | G65: 0.25% | H65: -0.24%
C66: PODKARPACKIE | D66: 0.21% | E66: 1.99% | F66: -0.85% | G66: -0.48% | H66: 0.87%
C67: PODLASKIE | D67: -0.32% | E67: 0.46% | F67: -0.77% | G67: 0.29% | H67: -0.33%
C68: ŚWIĘTOKRZYSKIE | D68: -0.53% | E68: -1.71% | F68: -0.07% | G68: 0.89% | H68: -1.43%
C69: LUBUSKIE | D69: 1.04% | E69: 0.09% | F69: 1.53% | G69: -1.14% | H69: 1.52%
C70: WIELKOPOLSKIE | D70: 1.85% | E70: 0.14% | F70: 0.35% | G70: -1.20% | H70: 1.14%
C71: ZACHODNIOPOMORSKIE | D71: 0.61% | E71: -1.28% | F71: 1.33% | G71: -0.38% | H71: 0.28%
C72: DOLNOŚLĄSKIE | D72: -0.62% | E72: -1.37% | F72: 1.07% | G72: 0.43% | H72: -0.49%
C73: OPOLSKIE | D73: -1.98% | E73: 0.76% | F73: -0.48% | G73: 1.02% | H73: -0.67%
C74: KUJAWSKO-POMORSKIE | D74: 0.43% | E74: 0.55% | F74: 0.31% | G74: -0.53% | H74: 0.76%
C75: POMORSKIE | D75: 0.97% | E75: 0.37% | F75: -0.02% | G75: -0.66% | H75: 0.66%
C76: WARMIŃSKO-MAZURSKIE | D76: -0.05% | E76: 0.35% | F76: 2.47% | G76: -0.94% | H76: 1.82%
C79: Nij/Ni(15+) | D79: 15-29 | E79: 30-39 | F79: 40-49 | G79: 50 i więcej
C80: ŁÓDZKIE | D80: =E137/$D137 -> 0.2658123191 | E80: 0.1455146755 | F80: 0.1889210418 | G80: 0.3997519636
C81: MAZOWIECKIE | D81: 0.2795295295 | E81: 0.1536536537 | F81: 0.2024524525 | G81: 0.3643643644
C82: MAŁOPOLSKIE | D82: 0.2895142637 | E82: 0.16615266 | F82: 0.1831148805 | G82: 0.3612181958
C83: ŚLĄSKIE | D83: 0.2717219589 | E83: 0.1656134808 | F83: 0.1882569774 | G83: 0.3744075829
C84: LUBELSKIE | D84: 0.2781002639 | E84: 0.1688654354 | F84: 0.182585752 | G84: 0.3704485488
C85: PODKARPACKIE | D85: 0.283042394 | E85: 0.1720698254 | F85: 0.1882793017 | G85: 0.3566084788
C86: PODLASKIE | D86: 0.2774261603 | E86: 0.1624472574 | F86: 0.1888185654 | G86: 0.3713080169
C87: ŚWIĘTOKRZYSKIE | D87: 0.2751504729 | E87: 0.1487532244 | F87: 0.1934651763 | G87: 0.3826311264
C88: LUBUSKIE | D88: 0.2919954904 | E88: 0.1600901917 | F88: 0.2040586246 | G88: 0.3438556933
C89: WIELKOPOLSKIE | D89: 0.3006270749 | E89: 0.1604573958 | F89: 0.1962375507 | G89: 0.3426779786
C90: ZACHODNIOPOMORSKIE | D90: 0.2873399716 | E90: 0.1514935989 | F90: 0.2027027027 | G90: 0.3584637269
C91: DOLNOŚLĄSKIE | D91: 0.2742430891 | E91: 0.1509433962 | F91: 0.2009653357 | G91: 0.373848179
C92: OPOLSKIE | D92: 0.2597239649 | E92: 0.1643663739 | F92: 0.1907151819 | G92: 0.3851944793
C93: KUJAWSKO-POMORSKIE | D93: 0.2854006586 | E93: 0.1630076839 | F93: 0.1959385291 | G93: 0.3556531284
C94: POMORSKIE | D94: 0.2912323728 | E94: 0.1618638872 | F94: 0.193746168 | G94: 0.353157572
C95: WARMIŃSKO-MAZURSKIE | D95: 0.2803234501 | E95: 0.1617250674 | F95: 0.2102425876 | G95: 0.3477088949
C96: POLSKA | D96: 0.280848598 | E96: 0.1595467276 | F96: 0.1938962753 | G96: 0.3657083991
C98: Azij/Nij | D98: Ogółem | E98: 15-29 | F98: 30-39 | G98: 40-49 | H98: 50 i więcej
C99: ŁÓDZKIE | D99: =D118/D137 -> 0.5605622158 | E99: 0.5272161742 | F99: 0.9232954545 | G99: 0.8818380744 | H99: 0.2988624612
C100: MAZOWIECKIE | D100: 0.5838338338 | E100: 0.5353625783 | F100: 0.9055374593 | G100: 0.8763906057 | H100: 0.3228021978
C101: MAŁOPOLSKIE | D101: 0.566692367 | E101: 0.5472703063 | F101: 0.8932714617 | G101: 0.8231578947 | H101: 0.3020277481
C102: ŚLĄSKIE | D102: 0.5057925224 | E102: 0.496124031 | F102: 0.8441971383 | G102: 0.765034965 | H102: 0.2327707454
C103: LUBELSKIE | D103: 0.5862796834 | E103: 0.5388994307 | F103: 0.896875 | G103: 0.8612716763 | H103: 0.3447293447
C104: PODKARPACKIE | D104: 0.5748129676 | E104: 0.5022026432 | F104: 0.884057971 | G104: 0.8509933775 | H104: 0.3374125874
C105: PODLASKIE | D105: 0.5696202532 | E105: 0.4866920152 | F105: 0.9025974026 | G105: 0.8659217877 | H105: 0.3352272727
C106: ŚWIĘTOKRZYSKIE | D106: 0.5184866724 | E106: 0.478125 | F106: 0.8612716763 | G106: 0.8222222222 | H106: 0.2606741573
C107: LUBUSKIE | D107: 0.5434047351 | E107: 0.5057915058 | F107: 0.8591549296 | G107: 0.8066298343 | H107: 0.2721311475
C108: WIELKOPOLSKIE | D108: 0.5684249354 | E108: 0.5460122699 | F108: 0.8689655172 | G108: 0.8270676692 | H108: 0.2992465016
C109: ZACHODNIOPOMORSKIE | D109: =D128/D147 -> 0.5348506401 | E109: 0.4826732673 | F109: 0.8450704225 | G109: 0.8421052632 | H109: 0.2718253968
C110: DOLNOŚLĄSKIE | D110: 0.5449758666 | E110: 0.5232 | F110: 0.886627907 | G110: 0.8406113537 | H110: 0.264084507
C111: OPOLSKIE | D111: 0.5345043915 | E111: 0.4879227053 | F111: 0.8625954198 | G111: 0.8552631579 | H111: 0.2671009772
C112: KUJAWSKO-POMORSKIE | D112: 0.5543358946 | E112: 0.5384615385 | F112: 0.8787878788 | G112: 0.8403361345 | H112: 0.2608024691
C113: POMORSKIE | D113: 0.5561005518 | E113: 0.5073684211 | F113: 0.8674242424 | G113: 0.8259493671 | H113: 0.3055555556
C114: WARMIŃSKO-MAZURSKIE | D114: 0.5363881402 | E114: 0.4711538462 | F114: 0.8666666667 | G114: 0.8247863248 | H114: 0.2609819121
C115: POLSKA | D115: 0.5541319254 | E115: 0.5181109583 | F115: 0.8795399516 | G115: 0.8369583264 | H115: 0.2898767606
C117: Azi | D117: Ogółem | E117: 15-29 | F117: 30-39 | G117: 40-49 | H117: 50 i więcej
C118: ŁÓDZKIE | D118: 1356 | E118: 339 | F118: 325 | G118: 403 | H118: 289
C119: MAZOWIECKIE | D119: 2333 | E119: 598 | F119: 556 | G119: 709 | H119: 470
C120: MAŁOPOLSKIE | D120: 1470 | E120: 411 | F120: 385 | G120: 391 | H120: 283
C121: ŚLĄSKIE | D121: 1921 | E121: 512 | F121: 531 | G121: 547 | H121: 331
C122: LUBELSKIE | D122: 1111 | E122: 284 | F122: 287 | G122: 298 | H122: 242
C123: PODKARPACKIE | D123: 922 | E123: 228 | F123: 244 | G123: 257 | H123: 193
C124: PODLASKIE | D124: 540 | E124: 128 | F124: 139 | G124: 155 | H124: 118
C125: ŚWIĘTOKRZYSKIE | D125: 603 | E125: 153 | F125: 149 | G125: 185 | H125: 116
C126: LUBUSKIE | D126: 482 | E126: 131 | F126: 122 | G126: 146 | H126: 83
C127: WIELKOPOLSKIE | D127: 1541 | E127: 445 | F127: 378 | G127: 440 | H127: 278
C128: ZACHODNIOPOMORSKIE | D128: 752 | E128: 195 | F128: 180 | G128: 240 | H128: 137
C129: DOLNOŚLĄSKIE | D129: 1242 | E129: 327 | F129: 305 | G129: 385 | H129: 225
C130: OPOLSKIE | D130: 426 | E130: 101 | F130: 113 | G130: 130 | H130: 82
C131: KUJAWSKO-POMORSKIE | D131: 1010 | E131: 280 | F131: 261 | G131: 300 | H131: 169
C132: POMORSKIE | D132: 907 | E132: 241 | F132: 229 | G132: 261 | H132: 176
C133: WARMIŃSKO-MAZURSKIE | D133: 597 | E133: 147 | F133: 156 | G133: 193 | H133: 101
C134: POLSKA | D134: 17213 | E134: 4520 | F134: 4359 | G134: 5041 | H134: 3293
C136: Ni | D136: Ogółem | E136: 15-29 | F136: 30-39 | G136: 40-49 | H136: 50 i więcej
C137: ŁÓDZKIE | D137: 2419 | E137: 643 | F137: 352 | G137: 457 | H137: 967
C138: MAZOWIECKIE | D138: 3996 | E138: 1117 | F138: 614 | G138: 809 | H138: 1456
C139: MAŁOPOLSKIE | D139: 2594 | E139: 751 | F139: 431 | G139: 475 | H139: 937
C140: ŚLĄSKIE | D140: 3798 | E140: 1032 | F140: 629 | G140: 715 | H140: 1422
C141: LUBELSKIE | D141: 1895 | E141: 527 | F141: 320 | G141: 346 | H141: 702
C142: PODKARPACKIE | D142: 1604 | E142: 454 | F142: 276 | G142: 302 | H142: 572
C143: PODLASKIE | D143: 948 | E143: 263 | F143: 154 | G143: 179 | H143: 352
C144: ŚWIĘTOKRZYSKIE | D144: 1163 | E144: 320 | F144: 173 | G144: 225 | H144: 445
C145: LUBUSKIE | D145: 887 | E145: 259 | F145: 142 | G145: 181 | H145: 305
C146: WIELKOPOLSKIE | D146: 2711 | E146: 815 | F146: 435 | G146: 532 | H146: 929
C147: ZACHODNIOPOMORSKIE | D147: 1406 | E147: 404 | F147: 213 | G147: 285 | H147: 504
C148: DOLNOŚLĄSKIE | D148: 2279 | E148: 625 | F148: 344 | G148: 458 | H148: 852
C149: OPOLSKIE | D149: 797 | E149: 207 | F149: 131 | G149: 152 | H149: 307
C150: KUJAWSKO-POMORSKIE | D150: 1822 | E150: 520 | F150: 297 | G150: 357 | H150: 648
C151: POMORSKIE | D151: 1631 | E151: 475 | F151: 264 | G151: 316 | H151: 576
C152: WARMIŃSKO-MAZURSKIE | D152: 1113 | E152: 312 | F152: 180 | G152: 234 | H152: 387
C153: POLSKA | D153: 31063 | E153: 8724 | F153: 4956 | G153: 6023 | H153: 11360

Sheet 2012 (hidden)
A1: DEKOMPOZYCJA RÓŻNIC W POZIOMIE WDB PER CAPITA
A2: 2012
B3: Różnice względem średniej | C3: WDB per capita | D3: WDB na 1 pracującego | E3: Współczynnik dojazdów netto | F3: Udział pracujących wśród aktwnych zawodowo | G3: Współczynnik aktywności zawodowej | H3: Wskaźnik różnicy w metodologii BAEL/demo | I3: Wskaźnik struktury wiekowej | J3: Interakcje
C4: WDB_i/N_i | D4: WDB_i/Pp_i | E4: Pp_i/Pz_i | F4: Pz_i/Az_i | G4: Az_i/NB15+_i | H4: NB15+_i/N15+_i | I4: Ni15+_i/N_i
B5: ŁÓDZKIE | C5: =(C24-C$40)/C$40 -> -6.7% | D5: -9.4% | E5: -11.8% | F5: -1.0% | G5: 1.2% | H5: 15.1% | I5: 1.3% | J5: =C5-SUM(D5:I5) -> -2.1%
B6: MAZOWIECKIE | C6: 58.9% | D6: 30.8% | E6: 6.4% | F6: 2.3% | G6: 7.8% | H6: 4.0% | I6: -0.5% | J6: 8.1%
B7: MAŁOPOLSKIE | C7: -12.0% | D7: -12.9% | E7: 5.7% | F7: -0.4% | G7: -1.0% | H7: -2.0% | I7: -1.0% | J7: -0.3%
B8: ŚLĄSKIE | C8: 5.9% | D8: 6.5% | E8: -2.6% | F8: 0.8% | G8: -4.4% | H8: 4.6% | I8: 1.3% | J8: -0.3%
B9: LUBELSKIE | C9: -29.6% | D9: -27.5% | E9: -10.2% | F9: -0.5% | G9: 1.2% | H9: 7.3% | I9: -0.0% | J9: 0.0%
B10: PODKARPACKIE | C10: -30.1% | D10: -27.0% | E10: 2.3% | F10: -3.6% | G10: 0.8% | H10: -2.8% | I10: -0.8% | J10: 1.1%
B11: PODLASKIE | C11: -28.3% | D11: -21.5% | E11: -3.4% | F11: 1.1% | G11: -0.3% | H11: -6.5% | I11: 0.4% | J11: 2.0%
B12: ŚWIĘTOKRZYSKIE | C12: -24.9% | D12: -23.4% | E12: -13.5% | F12: -3.5% | G12: 2.4% | H12: 13.4% | I12: 1.0% | J12: -1.4%
B13: LUBUSKIE | C13: -16.9% | D13: -5.4% | E13: -10.1% | F13: 1.0% | G13: -3.8% | H13: 1.0% | I13: -0.3% | J13: 0.8%
B14: WIELKOPOLSKIE | C14: 6.2% | D14: -3.2% | E14: 12.0% | F14: 1.7% | G14: 2.5% | H14: -4.9% | I14: -1.2% | J14: -0.7%
B15: ZACHODNIOPOMORSKIE | C15: -15.7% | D15: 0.6% | E15: 3.8% | F15: -0.9% | G15: -6.6% | H15: -13.3% | I15: 0.5% | J15: 0.1%
B16: DOLNOŚLĄSKIE | C16: 13.2% | D16: 16.3% | E16: 5.6% | F16: -1.2% | G16: -3.7% | H16: -4.3% | I16: 1.3% | J16: -0.7%
B17: OPOLSKIE | C17: -19.0% | D17: -4.6% | E17: -3.9% | F17: 0.6% | G17: -2.7% | H17: -11.5% | I17: 2.0% | J17: 1.1%
B18: KUJAWSKO-POMORSKIE | C18: -18.6% | D18: -10.7% | E18: -2.2% | F18: -2.0% | G18: 0.8% | H18: -5.2% | I18: -0.3% | J18: 1.2%
B19: POMORSKIE | C19: -2.3% | D19: 6.7% | E19: -1.2% | F19: 0.6% | G19: -0.6% | H19: -5.8% | I19: -1.5% | J19: -0.4%
B20: WARMIŃSKO-MAZURSKIE | C20: -28.2% | D20: -11.8% | E20: -5.4% | F20: -1.3% | G20: -7.8% | H20: -4.7% | I20: -0.8% | J20: 3.6%
B22: Wartości | C22: WDB per capita | D22: WDB na 1 pracującego | E22: Współczynnik dojazdów netto | F22: Udział pracujących wśród aktwnych zawodowo | G22: Współczynnik aktywności zawodowej | H22: Wskaźnik różnicy w metodologii BAEL/demo | I22: Wskaźnik struktury wiekowej | J22: Weryfikacja
C23: WDB_i/N_i | D23: WDB_i/Pp_i | E23: Pp_i/Pz_i | F23: Pz_i/Az_i | G23: Az_i/NB15+_i | H23: NB15+_i/N15+_i | I23: Ni15+_i/N_i
B24: ŁÓDZKIE | C24: =C43/I43*1000000 -> 34,684.00 | D24: =C43/D43*1000000 -> 93,385.62 | E24: =D43/E43/1000 -> 0.79 | F24: =E43/F43 -> 0.89 | G24: =F43/G43 -> 0.57 | H24: =G43/H43*1000 -> 1.09 | I24: =H43/I43 -> 0.86 | J24: =IF(PRODUCT(D24:I24)-C24<0.0001,"prawidłowo","nieprawidłowo") -> prawidłowo
B25: MAZOWIECKIE | C25: =C44/I44*1000000 -> 59,057.37 | D25: =C44/D44*1000000 -> 134,768.51 | E25: =D44/E44/1000 -> 0.95 | F25: =E44/F44 -> 0.92 | G25: 0.60 | H25: =G44/H44*1000 -> 0.99 | I25: =H44/I44 -> 0.85 | J25: prawidłowo
B26: MAŁOPOLSKIE | C26: 32,715.11 | D26: 89,708.08 | E26: 0.94 | F26: 0.90 | G26: 0.55 | H26: 0.93 | I26: 0.84 | J26: prawidłowo
B27: ŚLĄSKIE | C27: 39,358.99 | D27: 109,698.30 | E27: 0.87 | F27: 0.91 | G27: 0.53 | H27: 0.99 | I27: 0.86 | J27: prawidłowo
B28: LUBELSKIE | C28: 26,157.49 | D28: 74,709.04 | E28: 0.80 | F28: 0.90 | G28: 0.57 | H28: 1.02 | I28: 0.85 | J28: prawidłowo
B29: PODKARPACKIE | C29: 25,980.41 | D29: 75,205.00 | E29: 0.91 | F29: 0.87 | G29: 0.56 | H29: 0.92 | I29: 0.84 | J29: prawidłowo
B30: PODLASKIE | C30: 26,655.77 | D30: 80,843.15 | E30: 0.86 | F30: 0.91 | G30: 0.56 | H30: 0.89 | I30: 0.85 | J30: prawidłowo
B31: ŚWIĘTOKRZYSKIE | C31: 27,909.06 | D31: 78,930.22 | E31: 0.77 | F31: 0.87 | G31: 0.57 | H31: 1.08 | I31: 0.86 | J31: prawidłowo
B32: LUBUSKIE | C32: 30,884.86 | D32: 97,426.30 | E32: 0.80 | F32: 0.91 | G32: 0.54 | H32: 0.96 | I32: 0.85 | J32: prawidłowo
B33: WIELKOPOLSKIE | C33: 39,454.15 | D33: 99,696.55 | E33: 1.00 | F33: 0.91 | G33: 0.57 | H33: 0.90 | I33: 0.84 | J33: prawidłowo
B34: ZACHODNIOPOMORSKIE | C34: 31,323.25 | D34: 103,665.68 | E34: 0.93 | F34: 0.89 | G34: 0.52 | H34: 0.82 | I34: 0.85 | J34: prawidłowo
B35: DOLNOŚLĄSKIE | C35: 42,049.68 | D35: 119,773.63 | E35: 0.94 | F35: 0.89 | G35: 0.54 | H35: 0.91 | I35: 0.86 | J35: prawidłowo
B36: OPOLSKIE | C36: 30,090.98 | D36: 98,318.22 | E36: 0.86 | F36: 0.90 | G36: 0.54 | H36: 0.84 | I36: 0.87 | J36: prawidłowo
B37: KUJAWSKO-POMORSKIE | C37: 30,233.68 | D37: 91,954.46 | E37: 0.87 | F37: 0.88 | G37: 0.56 | H37: 0.90 | I37: 0.85 | J37: prawidłowo
B38: POMORSKIE | C38: 36,317.67 | D38: 109,930.80 | E38: 0.88 | F38: 0.90 | G38: 0.56 | H38: 0.89 | I38: 0.84 | J38: prawidłowo
B39: WARMIŃSKO-MAZURSKIE | C39: 26,663.73 | D39: 90,841.15 | E39: 0.84 | F39: 0.89 | G39: 0.51 | H39: 0.90 | I39: 0.84 | J39: prawidłowo
B40: POLSKA | C40: 37,159.34 | D40: 103,022.34 | E40: 0.89 | F40: 0.90 | G40: 0.56 | H40: 0.95 | I40: 0.85 | J40: prawidłowo
B42: Dane | C42: WDB_i | D42: PP_i | E42: PZ_i | F42: AZ_i | G42: NB15+_i | H42: N15+_i | I42: N_i
B43: ŁÓDZKIE | C43: 87565 | D43: 937671.1763 | E43: 1193 | F43: 1340 | G43: 2371 | H43: 2171813 | I43: 2524651
B44: MAZOWIECKIE | C44: 313108 | D44: 2323302.389 | E44: 2450 | F44: 2663 | G44: 4420 | H44: 4482168 | I44: 5301760
B45: MAŁOPOLSKIE | C45: 109729 | D45: 1223178.498 | E45: 1298 | F45: 1449 | G45: 2620 | H45: 2820670 | I45: 3354077
B46: ŚLĄSKIE | C46: 181676 | D46: 1656142.297 | E46: 1907 | F46: 2105 | G46: 3940 | H46: 3971922 | I46: 4615870
B47: LUBELSKIE | C47: 56648 | D47: 758248.2794 | E47: 947 | F47: 1058 | G47: 1871 | H47: 1839507 | I47: 2165651
B48: PODKARPACKIE | C48: 55337 | D48: 735815.4823 | E48: 807 | F48: 931 | G48: 1654 | H48: 1794597 | I48: 2129951
B49: PODLASKIE | C49: 31952 | D49: 395234.4767 | E49: 459 | F49: 505 | G49: 907 | H49: 1022734 | I49: 1198690
B50: ŚWIĘTOKRZYSKIE | C50: 35556 | D50: 450473.8507 | E50: 584 | F50: 673 | G50: 1176 | H50: 1093487 | I50: 1273995
B51: LUBUSKIE | C51: 31605 | D51: 324399.0462 | E51: 405 | F51: 446 | G51: 830 | H51: 866999 | I51: 1023317
B52: WIELKOPOLSKIE | C52: 136598 | D52: 1370137.656 | E52: 1372 | F52: 1500 | G52: 2619 | H52: 2906029 | I52: 3462196
B53: ZACHODNIOPOMORSKIE | C53: 53920 | D53: 520133.5863 | E53: 562 | F53: 631 | G53: 1209 | H53: 1470003 | I53: 1721405
B54: DOLNOŚLĄSKIE | C54: 122548 | D54: 1023163.433 | E54: 1087 | F54: 1224 | G54: 2274 | H54: 2507043 | I54: 2914362
B55: OPOLSKIE | C55: 30398 | D55: 309179.7299 | E55: 361 | F55: 399 | G55: 734 | H55: 875084 | I55: 1010203
B56: KUJAWSKO-POMORSKIE | C56: 63382 | D56: 689275.9945 | E56: 791 | F56: 898 | G56: 1595 | H56: 1775475 | I56: 2096404
B57: POMORSKIE | C57: 83170 | D57: 756566.8257 | E57: 859 | F57: 950 | G57: 1711 | H57: 1916115 | I57: 2290070
B58: WARMIŃSKO-MAZURSKIE | C58: 38681 | D58: 425809.2406 | E58: 505 | F58: 569 | G58: 1105 | H58: 1223039 | I58: 1450697
B59: POLSKA | C59: 1431872 | D59: 13898654.86 | E59: 15591 | F59: 17340 | G59: 31038 | H59: 32736685 | I59: 38533299

Sheet 2007 (hidden)
A1: DEKOMPOZYCJA RÓŻNIC W POZIOMIE WDB PER CAPITA
A2: 2007
B3: Różnice względem średniej | C3: WDB per capita | D3: WDB na 1 pracującego | E3: Współczynnik dojazdów netto | F3: Udział pracujących wśród aktwnych zawodowo | G3: Współczynnik aktywności zawodowej | H3: Wskaźnik różnicy w metodologii BAEL/demo | I3: Wskaźnik struktury wiekowej | J3: Interakcje
C4: WDB_i/N_i | D4: WDB_i/Pp_i | E4: Pp_i/Pz_i | F4: Pz_i/Az_i | G4: Az_i/NB15+_i | H4: NB15+_i/N15+_i | I4: Ni15+_i/N_i
B5: ŁÓDZKIE | C5: =(C24-C$40)/C$40 -> -7.3% | D5: =(D24-D$40)/D$40 -> -12.1% | E5: =(E24-E$40)/E$40 -> -13.2% | F5: =(F24-F$40)/F$40 -> 0.3% | G5: =(G24-G$40)/G$40 -> 2.1% | H5: =(H24-H$40)/H$40 -> 16.9% | I5: =(I24-I$40)/I$40 -> 1.4% | J5: =C5-SUM(D5:I5) -> -2.8%
B6: MAZOWIECKIE | C6: =(C25-C$40)/C$40 -> 54.2% | D6: 28.9% | E6: 8.4% | F6: 0.6% | G6: 6.3% | H6: 2.9% | I6: 0.3% | J6: =C6-SUM(D6:I6) -> 6.8%
B7: MAŁOPOLSKIE | C7: -11.0% | D7: -9.8% | E7: 1.5% | F7: 1.1% | G7: -0.4% | H7: -2.3% | I7: -1.1% | J7: 0.1%
B8: ŚLĄSKIE | C8: 5.8% | D8: 8.0% | E8: 3.3% | F8: 1.7% | G8: -6.5% | H8: -1.8% | I8: 1.6% | J8: -0.5%
B9: LUBELSKIE | C9: -30.0% | D9: -28.8% | E9: -12.3% | F9: 0.1% | G9: 5.2% | H9: 7.2% | I9: -0.6% | J9: -0.7%
B10: PODKARPACKIE | C10: -29.5% | D10: -26.8% | E10: -2.1% | F10: 0.1% | G10: 1.4% | H10: -1.4% | I10: -1.6% | J10: 1.0%
B11: PODLASKIE | C11: -25.6% | D11: -20.9% | E11: -1.2% | F11: 1.1% | G11: 1.1% | H11: -6.6% | I11: -0.3% | J11: 1.2%
B12: ŚWIĘTOKRZYSKIE | C12: -20.4% | D12: -21.7% | E12: -10.6% | F12: -2.5% | G12: 4.8% | H12: 10.8% | I12: 0.4% | J12: -1.6%
B13: LUBUSKIE | C13: -10.6% | D13: 0.6% | E13: -18.0% | F13: -0.1% | G13: -0.6% | H13: 9.7% | I13: -0.4% | J13: -1.7%
B14: WIELKOPOLSKIE | C14: 5.5% | D14: -3.2% | E14: 12.5% | F14: 1.5% | G14: 1.3% | H14: -4.8% | I14: -1.0% | J14: -0.8%
B15: ZACHODNIOPOMORSKIE | C15: -11.2% | D15: 1.5% | E15: 9.4% | F15: -2.2% | G15: -8.2% | H15: -11.0% | I15: 0.1% | J15: -0.8%
B16: DOLNOŚLĄSKIE | C16: 9.0% | D16: 15.0% | E16: -4.4% | F16: -3.4% | G16: -0.9% | H16: 1.9% | I16: 1.5% | J16: -0.8%
B17: OPOLSKIE | C17: -15.7% | D17: -1.2% | E17: -3.0% | F17: 0.4% | G17: -4.8% | H17: -9.4% | I17: 1.6% | J17: 0.7%
B18: KUJAWSKO-POMORSKIE | C18: -13.7% | D18: -8.5% | E18: 5.2% | F18: -1.8% | G18: -4.0% | H18: -4.2% | I18: -0.7% | J18: 0.3%
B19: POMORSKIE | C19: -1.6% | D19: 7.1% | E19: 6.4% | F19: 0.1% | G19: -1.1% | H19: -11.5% | I19: -1.4% | J19: -1.2%
B20: WARMIŃSKO-MAZURSKIE | C20: -26.0% | D20: -10.9% | E20: -12.1% | F20: -0.9% | G20: -4.1% | H20: 1.0% | I20: -1.5% | J20: 2.6%
B22: Wartości | C22: WDB per capita | D22: WDB na 1 pracującego | E22: Współczynnik dojazdów netto | F22: Udział pracujących wśród aktwnych zawodowo | G22: Współczynnik aktywności zawodowej | H22: Wskaźnik różnicy w metodologii BAEL/demo | I22: Wskaźnik struktury wiekowej | J22: Weryfikacja
C23: WDB_i/N_i | D23: WDB_i/Pp_i | E23: Pp_i/Pz_i | F23: Pz_i/Az_i | G23: Az_i/NB15+_i | H23: NB15+_i/N15+_i | I23: Ni15+_i/N_i
B24: ŁÓDZKIE | C24: =C43/I43*1000000 -> 25,191.93 | D24: =C43/D43*1000000 -> 66,817.24 | E24: =D43/E43/1000 -> 0.78 | F24: =E43/F43 -> 0.91 | G24: =F43/G43 -> 0.55 | H24: =G43/H43*1000 -> 1.14 | I24: =H43/I43 -> 0.86 | J24: =IF(PRODUCT(D24:I24)-C24<0.0001,"prawidłowo","nieprawidłowo") -> prawidłowo
B25: MAZOWIECKIE | C25: =C44/I44*1000000 -> 41,910.86 | D25: =C44/D44*1000000 -> 97,989.01 | E25: =D44/E44/1000 -> 0.97 | F25: =E44/F44 -> 0.91 | G25: 0.57 | H25: =G44/H44*1000 -> 1.00 | I25: =H44/I44 -> 0.85 | J25: =IF(PRODUCT(D25:I25)-C25<0.0001,"prawidłowo","nieprawidłowo") -> prawidłowo
B26: MAŁOPOLSKIE | C26: 24,177.84 | D26: 68,536.47 | E26: 0.91 | F26: 0.91 | G26: 0.53 | H26: 0.95 | I26: 0.84 | J26: prawidłowo
B27: ŚLĄSKIE | C27: 28,747.46 | D27: 82,051.64 | E27: 0.92 | F27: 0.92 | G27: 0.50 | H27: 0.96 | I27: 0.86 | J27: prawidłowo
B28: LUBELSKIE | C28: 19,021.21 | D28: 54,082.27 | E28: 0.78 | F28: 0.91 | G28: 0.56 | H28: 1.04 | I28: 0.84 | J28: prawidłowo
B29: PODKARPACKIE | C29: 19,149.51 | D29: 55,639.73 | E29: 0.87 | F29: 0.90 | G29: 0.54 | H29: 0.96 | I29: 0.83 | J29: prawidłowo
B30: PODLASKIE | C30: 20,207.77 | D30: 60,112.15 | E30: 0.88 | F30: 0.91 | G30: 0.54 | H30: 0.91 | I30: 0.84 | J30: prawidłowo
B31: ŚWIĘTOKRZYSKIE | C31: 21,640.86 | D31: 59,543.39 | E31: 0.80 | F31: 0.88 | G31: 0.56 | H31: 1.08 | I31: 0.85 | J31: prawidłowo
B32: LUBUSKIE | C32: 24,283.06 | D32: 76,438.60 | E32: 0.73 | F32: 0.90 | G32: 0.53 | H32: 1.07 | I32: 0.84 | J32: prawidłowo
B33: WIELKOPOLSKIE | C33: 28,673.87 | D33: 73,580.61 | E33: 1.01 | F33: 0.92 | G33: 0.54 | H33: 0.93 | I33: 0.84 | J33: prawidłowo
B34: ZACHODNIOPOMORSKIE | C34: 24,117.89 | D34: 77,124.47 | E34: 0.98 | F34: 0.88 | G34: 0.49 | H34: 0.87 | I34: 0.85 | J34: prawidłowo
B35: DOLNOŚLĄSKIE | C35: 29,610.79 | D35: 87,439.28 | E35: 0.86 | F35: 0.87 | G35: 0.53 | H35: 0.99 | I35: 0.86 | J35: prawidłowo
B36: OPOLSKIE | C36: 22,911.27 | D36: 75,086.07 | E36: 0.87 | F36: 0.91 | G36: 0.51 | H36: 0.88 | I36: 0.86 | J36: prawidłowo
B37: KUJAWSKO-POMORSKIE | C37: 23,453.44 | D37: 69,521.76 | E37: 0.94 | F37: 0.89 | G37: 0.52 | H37: 0.93 | I37: 0.84 | J37: prawidłowo
B38: POMORSKIE | C38: 26,738.64 | D38: 81,376.20 | E38: 0.95 | F38: 0.91 | G38: 0.53 | H38: 0.86 | I38: 0.83 | J38: prawidłowo
B39: WARMIŃSKO-MAZURSKIE | C39: 20,110.02 | D39: 67,734.90 | E39: 0.79 | F39: 0.90 | G39: 0.51 | H39: 0.98 | I39: 0.83 | J39: prawidłowo
B40: POLSKA | C40: 27,171.37 | D40: 76,006.51 | E40: 0.89 | F40: 0.90 | G40: 0.54 | H40: 0.97 | I40: 0.85 | J40: prawidłowo
B42: Dane | C42: WDB_i | D42: PP_i | E42: PZ_i | F42: AZ_i | G42: NB15+_i | H42: N15+_i | I42: N_i
B43: ŁÓDZKIE | C43: 64388 | D43: 963643.5751 | E43: 1241 | F43: 1369 | G43: 2496 | H43: 2190899 | I43: 2555898
B44: MAZOWIECKIE | C44: 217454 | D44: 2219167.32 | E44: 2290 | F44: 2518 | G44: 4412 | H44: 4398417 | I44: 5188488
B45: MAŁOPOLSKIE | C45: 79280 | D45: 1156756.349 | E45: 1275 | F45: 1395 | G45: 2609 | H45: 2740317 | I45: 3279036
B46: ŚLĄSKIE | C46: 133794 | D46: 1630607.351 | E46: 1766 | F46: 1921 | G46: 3827 | H46: 3997797 | I46: 4654115
B47: LUBELSKIE | C47: 41204 | D47: 761876.235 | E47: 972 | F47: 1074 | G47: 1901 | H47: 1819681 | I47: 2166213
B48: PODKARPACKIE | C48: 40163 | D48: 721840.373 | E48: 825 | F48: 912 | G48: 1675 | H48: 1744109 | I48: 2097338
B49: PODLASKIE | C49: 24101 | D49: 400933.8943 | E49: 454 | F49: 497 | G49: 915 | H49: 1004784 | I49: 1192660
B50: ŚWIĘTOKRZYSKIE | C50: 27604 | D50: 463594.6721 | E50: 580 | F50: 658 | G50: 1169 | H50: 1082463 | I50: 1275550
B51: LUBUSKIE | C51: 24489 | D51: 320374.7851 | E51: 437 | F51: 484 | G51: 907 | H51: 848815 | I51: 1008481
B52: WIELKOPOLSKIE | C52: 97115 | D52: 1319845.071 | E52: 1312 | F52: 1430 | G52: 2628 | H52: 2832740 | I52: 3386882
B53: ZACHODNIOPOMORSKIE | C53: 40814 | D53: 529196.4743 | E53: 541 | F53: 612 | G53: 1241 | H53: 1431609 | I53: 1692271
B54: DOLNOŚLĄSKIE | C54: 85232 | D54: 974756.4013 | E54: 1140 | F54: 1305 | G54: 2451 | H54: 2468544 | I54: 2878410
B55: OPOLSKIE | C55: 23761 | D55: 316450.1752 | E55: 365 | F55: 402 | G55: 786 | H55: 890641 | I55: 1037088
B56: KUJAWSKO-POMORSKIE | C56: 48458 | D56: 697019.1726 | E56: 741 | F56: 835 | G56: 1619 | H56: 1733674 | I56: 2066136
B57: POMORSKIE | C57: 59117 | D57: 726465.4959 | E57: 764 | F57: 844 | G57: 1589 | H57: 1843003 | I57: 2210920
B58: WARMIŃSKO-MAZURSKIE | C58: 28680 | D58: 423415.3887 | E58: 539 | F58: 602 | G58: 1169 | H58: 1187270 | I58: 1426155
B59: POLSKA | C59: 1035654 | D59: 13625859.34 | E59: 15240 | F59: 16860 | G59: 31393 | H59: 32214763 | I59: 38115641

Sheet 2002 (hidden)
A1: DEKOMPOZYCJA RÓŻNIC W POZIOMIE WDB PER CAPITA
A2: 2002
B3: Różnice względem średniej | C3: WDB per capita | D3: WDB na 1 pracującego | E3: Współczynnik dojazdów netto | F3: Udział pracujących wśród aktwnych zawodowo | G3: Współczynnik aktywności zawodowej | H3: Wskaźnik różnicy w metodologii BAEL/demo | I3: Wskaźnik struktury wiekowej | J3: Interakcje
C4: WDB_i/N_i | D4: WDB_i/Pp_i | E4: Pp_i/Pz_i | F4: Pz_i/Az_i | G4: Az_i/NB15+_i | H4: NB15+_i/N15+_i | I4: Ni15+_i/N_i
B5: ŁÓDZKIE | C5: =(C24-C$40)/C$40 -> -8.8% | D5: =(D24-D$40)/D$40 -> -11.9% | E5: =(E24-E$40)/E$40 -> -9.9% | F5: =(F24-F$40)/F$40 -> -0.5% | G5: =(G24-G$40)/G$40 -> 1.2% | H5: =(H24-H$40)/H$40 -> 11.9% | I5: =(I24-I$40)/I$40 -> 2.0% | J5: =C5-SUM(D5:I5) -> -1.6%
B6: MAZOWIECKIE | C6: =(C25-C$40)/C$40 -> 51.3% | D6: 26.2% | E6: 14.6% | F6: 3.6% | G6: 5.4% | H6: -5.2% | I6: 1.1% | J6: =C6-SUM(D6:I6) -> 5.6%
B7: MAŁOPOLSKIE | C7: -11.5% | D7: -10.8% | E7: -5.9% | F7: 4.7% | G7: 2.3% | H7: 0.0% | I7: -1.4% | J7: -0.2%
B8: ŚLĄSKIE | C8: 8.8% | D8: 8.8% | E8: 11.2% | F8: -0.2% | G8: -8.7% | H8: -3.1% | I8: 1.9% | J8: -1.1%
B9: LUBELSKIE | C9: -27.8% | D9: -27.0% | E9: -15.6% | F9: 4.3% | G9: 5.8% | H9: 7.3% | I9: -1.1% | J9: -1.6%
B10: PODKARPACKIE | C10: -25.9% | D10: -24.1% | E10: -1.8% | F10: 2.3% | G10: 3.7% | H10: -3.4% | I10: -3.0% | J10: 0.4%
B11: PODLASKIE | C11: -23.8% | D11: -20.5% | E11: -6.9% | F11: 3.6% | G11: 2.8% | H11: -2.1% | I11: -1.3% | J11: 0.6%
B12: ŚWIĘTOKRZYSKIE | C12: -20.8% | D12: -22.3% | E12: -2.6% | F12: 1.3% | G12: -6.4% | H12: 10.5% | I12: -0.0% | J12: -1.2%
B13: LUBUSKIE | C13: -12.0% | D13: 2.0% | E13: -11.9% | F13: -7.8% | G13: -1.9% | H13: 8.8% | I13: -0.5% | J13: -0.7%
B14: WIELKOPOLSKIE | C14: 4.1% | D14: -2.4% | E14: 2.3% | F14: 2.2% | G14: 2.6% | H14: 0.5% | I14: -1.0% | J14: -0.0%
B15: ZACHODNIOPOMORSKIE | C15: -4.4% | D15: 7.2% | E15: -1.7% | F15: -7.8% | G15: -3.5% | H15: 1.8% | I15: 0.1% | J15: -0.6%
B16: DOLNOŚLĄSKIE | C16: 2.7% | D16: 10.0% | E16: 6.4% | F16: -7.6% | G16: -1.7% | H16: -5.2% | I16: 1.8% | J16: -1.1%
B17: OPOLSKIE | C17: -18.6% | D17: -4.4% | E17: -4.7% | F17: 0.3% | G17: -3.5% | H17: -8.4% | I17: 0.9% | J17: 1.3%
B18: KUJAWSKO-POMORSKIE | C18: -10.2% | D18: -5.4% | E18: -10.8% | F18: -1.8% | G18: 0.0% | H18: 9.2% | I18: -0.8% | J18: -0.6%
B19: POMORSKIE | C19: 0.3% | D19: 8.5% | E19: 2.4% | F19: -2.1% | G19: 0.4% | H19: -7.0% | I19: -1.2% | J19: -0.7%
B20: WARMIŃSKO-MAZURSKIE | C20: -24.7% | D20: -7.5% | E20: -4.9% | F20: -7.7% | G20: -3.2% | H20: -2.0% | I20: -2.2% | J20: 2.8%
B22: Wartości | C22: WDB per capita | D22: WDB na 1 pracującego | E22: Współczynnik dojazdów netto | F22: Udział pracujących wśród aktwnych zawodowo | G22: Współczynnik aktywności zawodowej | H22: Wskaźnik różnicy w metodologii BAEL/demo | I22: Wskaźnik struktury wiekowej | J22: Weryfikacja
C23: WDB_i/N_i | D23: WDB_i/Pp_i | E23: Pp_i/Pz_i | F23: Pz_i/Az_i | G23: Az_i/NB15+_i | H23: NB15+_i/N15+_i | I23: Ni15+_i/N_i
B24: ŁÓDZKIE | C24: =C43/I43*1000000 -> 17,064.64 | D24: =C43/D43*1000000 -> 48,385.81 | E24: =D43/E43/1000 -> 0.85 | F24: =E43/F43 -> 0.80 | G24: =F43/G43 -> 0.56 | H24: =G43/H43*1000 -> 1.11 | I24: =H43/I43 -> 0.84 | J24: =IF(PRODUCT(D24:I24)-C24<0.0001,"prawidłowo","nieprawidłowo") -> prawidłowo
B25: MAZOWIECKIE | C25: =C44/I44*1000000 -> 28,303.50 | D25: =C44/D44*1000000 -> 69,300.04 | E25: =D44/E44/1000 -> 1.08 | F25: =E44/F44 -> 0.83 | G25: 0.58 | H25: =G44/H44*1000 -> 0.94 | I25: =H44/I44 -> 0.83 | J25: =IF(PRODUCT(D25:I25)-C25<0.0001,"prawidłowo","nieprawidłowo") -> prawidłowo
B26: MAŁOPOLSKIE | C26: 16,560.52 | D26: 48,967.78 | E26: 0.89 | F26: 0.84 | G26: 0.57 | H26: 0.99 | I26: 0.81 | J26: prawidłowo
B27: ŚLĄSKIE | C27: 20,348.80 | D27: 59,721.73 | E27: 1.05 | F27: 0.80 | G27: 0.51 | H27: 0.96 | I27: 0.84 | J27: prawidłowo
B28: LUBELSKIE | C28: 13,506.19 | D28: 40,085.18 | E28: 0.80 | F28: 0.84 | G28: 0.59 | H28: 1.06 | I28: 0.81 | J28: prawidłowo
B29: PODKARPACKIE | C29: 13,869.03 | D29: 41,699.73 | E29: 0.93 | F29: 0.82 | G29: 0.57 | H29: 0.96 | I29: 0.80 | J29: prawidłowo
B30: PODLASKIE | C30: 14,246.04 | D30: 43,667.91 | E30: 0.88 | F30: 0.83 | G30: 0.57 | H30: 0.97 | I30: 0.81 | J30: prawidłowo
B31: ŚWIĘTOKRZYSKIE | C31: 14,809.96 | D31: 42,643.90 | E31: 0.92 | F31: 0.81 | G31: 0.52 | H31: 1.09 | I31: 0.82 | J31: prawidłowo
B32: LUBUSKIE | C32: 16,459.10 | D32: 56,026.58 | E32: 0.83 | F32: 0.74 | G32: 0.54 | H32: 1.08 | I32: 0.82 | J32: prawidłowo
B33: WIELKOPOLSKIE | C33: 19,476.77 | D33: 53,603.10 | E33: 0.97 | F33: 0.82 | G33: 0.57 | H33: 0.99 | I33: 0.81 | J33: prawidłowo
B34: ZACHODNIOPOMORSKIE | C34: 17,878.12 | D34: 58,860.58 | E34: 0.93 | F34: 0.74 | G34: 0.53 | H34: 1.01 | I34: 0.82 | J34: prawidłowo
B35: DOLNOŚLĄSKIE | C35: 19,218.55 | D35: 60,426.68 | E35: 1.01 | F35: 0.74 | G35: 0.54 | H35: 0.94 | I35: 0.84 | J35: prawidłowo
B36: OPOLSKIE | C36: 15,234.56 | D36: 52,507.60 | E36: 0.90 | F36: 0.80 | G36: 0.53 | H36: 0.91 | I36: 0.83 | J36: prawidłowo
B37: KUJAWSKO-POMORSKIE | C37: 16,803.39 | D37: 51,956.59 | E37: 0.84 | F37: 0.79 | G37: 0.55 | H37: 1.08 | I37: 0.82 | J37: prawidłowo
B38: POMORSKIE | C38: 18,764.12 | D38: 59,572.15 | E38: 0.97 | F38: 0.78 | G38: 0.56 | H38: 0.92 | I38: 0.81 | J38: prawidłowo
B39: WARMIŃSKO-MAZURSKIE | C39: 14,095.71 | D39: 50,809.47 | E39: 0.90 | F39: 0.74 | G39: 0.54 | H39: 0.97 | I39: 0.80 | J39: prawidłowo
B40: POLSKA | C40: 18,707.36 | D40: 54,908.90 | E40: 0.94 | F40: 0.80 | G40: 0.55 | H40: 0.99 | I40: 0.82 | J40: prawidłowo
B42: Dane | C42: WDB_i | D42: PP_i | E42: PZ_i | F42: AZ_i | G42: NB15+_i | H42: N15+_i | I42: N_i
B43: ŁÓDZKIE | C43: 44494 | D43: 919567.0652 | E43: 1080 | F43: 1356 | G43: 2419 | H43: 2186088 | I43: 2607380
B44: MAZOWIECKIE | C44: 145158 | D44: 2094630.907 | E44: 1935 | F44: 2333 | G44: 3996 | H44: 4262681 | I44: 5128623
B45: MAŁOPOLSKIE | C45: 53610 | D45: 1094801.525 | E45: 1232 | F45: 1470 | G45: 2594 | H45: 2623191 | I45: 3237217
B46: ŚLĄSKIE | C46: 96281 | D46: 1612160.26 | E46: 1535 | F46: 1921 | G46: 3798 | H46: 3962760 | I46: 4731533
B47: LUBELSKIE | C47: 29673 | D47: 740248.6641 | E47: 928 | F47: 1111 | G47: 1895 | H47: 1786528 | I47: 2196992
B48: PODKARPACKIE | C48: 29195 | D48: 700124.4225 | E48: 755 | F48: 922 | G48: 1604 | H48: 1678738 | I48: 2105050
B49: PODLASKIE | C49: 17205 | D49: 393996.4479 | E49: 448 | F49: 540 | G49: 948 | H49: 979495 | I49: 1207704
B50: ŚWIĘTOKRZYSKIE | C50: 19192 | D50: 450052.5967 | E50: 489 | F50: 603 | G50: 1163 | H50: 1064828 | I50: 1295885
B51: LUBUSKIE | C51: 16594 | D51: 296180.8597 | E51: 356 | F51: 482 | G51: 887 | H51: 824230 | I51: 1008196
B52: WIELKOPOLSKIE | C52: 65350 | D52: 1219145.997 | E52: 1261 | F52: 1541 | G52: 2711 | H52: 2729237 | I52: 3355279
B53: ZACHODNIOPOMORSKIE | C53: 30352 | D53: 515659.1891 | E53: 555 | F53: 752 | G53: 1406 | H53: 1396946 | I53: 1697718
B54: DOLNOŚLĄSKIE | C54: 55824 | D54: 923830.3542 | E54: 919 | F54: 1242 | G54: 2279 | H54: 2430970 | I54: 2904694
B55: OPOLSKIE | C55: 16164 | D55: 307841.1229 | E55: 342 | F55: 426 | G55: 797 | H55: 879748 | I55: 1061009
B56: KUJAWSKO-POMORSKIE | C56: 34769 | D56: 669193.2413 | E56: 794 | F56: 1010 | G56: 1822 | H56: 1687215 | I56: 2069166
B57: POMORSKIE | C57: 40974 | D57: 687804.6745 | E57: 711 | F57: 907 | G57: 1631 | H57: 1773490 | I57: 2183636
B58: WARMIŃSKO-MAZURSKIE | C58: 20135 | D58: 396284.4086 | E58: 441 | F58: 597 | G58: 1113 | H58: 1148122 | I58: 1428449
B59: POLSKA | C59: 714968 | D59: 13020986.08 | E59: 13782 | F59: 17213 | G59: 31063 | H59: 31414267 | I59: 38218531
